Workbook

Sheet Main
B10: 2021-06-30
B12: Sheet No. | C12: Template Name | D12: Summary
B13: 1 | C13: Future Intra | D13: For Intraday trading in F&O segment
B14: 2 | C14: Cash Intra | D14: For Intraday trading in cash market segment
B15: 3 | C15: Mid-cap Intra | D15: For Intraday trading in Mid-cap stocks
B16: 4 | C16: Bulk Deals | D16: Reveals Bulk Deals carried on NSE & BSE
B17: 5 | C17: Call Tracker
K27: `

Sheet Future Intra
M5: Back to Main Page
A6: FOR INTRA DAY TRADING | L6: =Main!B10 -> 2021-06-30
A9: Sr.no | B9: Sector | C9: Scrip | D9: Expiry Date | E9: CLOSE RATE | F9: Pivot Point | G9: Supports | J9: Resistances
B10: Sector | E10: Point | F10: Point | G10: S1 | H10: S2 | I10: S3 | J10: R1 | K10: R2 | L10: R3 | M10: HIGH | N10: LOW | O10: OI | P10: % Change in OI
A11: 1 | B11: Index | C11: BANKNIFTY | D11: 2021-07-29 | E11: 35186.10 | F11: 35247.75 | G11: 35028.40 | H11: 34870.70 | I11: 34651.35 | J11: 35405.45 | K11: 35624.80 | L11: 35782.50 | M11: 35467.1 | N11: 35090.05 | O11: 2110425 | P11: 2.75%
A12: 2 | B12: Index | C12: NIFTY | D12: 2021-07-29 | E12: 15785.60 | F12: 15801.43 | G12: 15742.87 | H12: 15700.13 | I12: 15641.57 | J12: 15844.17 | K12: 15902.73 | L12: 15945.47 | M12: 15860 | N12: 15758.7 | O12: 9897100 | P12: -0.37%
A13: 3 | B13: Index | C13: FINNIFTY | D13: 2021-07-29 | E13: 16589.65 | F13: 16618.72 | G13: 16512.98 | H13: 16436.32 | I13: 16330.58 | J13: 16695.38 | K13: 16801.12 | L13: 16877.78 | M13: 16724.45 | N13: 16542.05 | O13: 12240 | P13: -3.16%
A14: 4 | B14: Chemical | C14: AARTIIND | D14: 2021-07-29 | E14: 866.40 | F14: 867.47 | G14: 856.48 | H14: 846.57 | I14: 835.58 | J14: 877.38 | K14: 888.37 | L14: 898.28 | M14: 878.45 | N14: 857.55 | O14: 2460750 | P14: 4.59%
A15: 5 | B15: Textile | C15: ABFRL | D15: 2021-07-29 | E15: 214.65 | F15: 216.60 | G15: 212.20 | H15: 209.75 | I15: 205.35 | J15: 219.05 | K15: 223.45 | L15: 225.90 | M15: 221 | N15: 214.15 | O15: 4388800 | P15: -1.63%
A16: 6 | B16: Cement | C16: ACC | D16: 2021-07-29 | E16: 2061.25 | F16: 2060.80 | G16: 2050.60 | H16: 2039.95 | I16: 2029.75 | J16: 2071.45 | K16: 2081.65 | L16: 2092.30 | M16: 2071 | N16: 2050.15 | O16: 2460000 | P16: 0.10%
A17: 7 | B17: Others | C17: ADANIENT | D17: 2021-07-29 | E17: 1531.10 | F17: 1536.50 | G17: 1515.60 | H17: 1500.10 | I17: 1479.20 | J17: 1552.00 | K17: 1572.90 | L17: 1588.40 | M17: 1557.4 | N17: 1521 | O17: 16301000 | P17: -0.35%
A18: 8 | B18: Others | C18: ADANIPORTS | D18: 2021-07-29 | E18: 713.60 | F18: 717.30 | G18: 707.90 | H18: 702.20 | I18: 692.80 | J18: 723.00 | K18: 732.40 | L18: 738.10 | M18: 726.7 | N18: 711.6 | O18: 81591250 | P18: 0.11%
A19: 9 | B19: Pharma | C19: ALKEM | D19: 2021-07-29 | E19: 3213.90 | F19: 3201.58 | G19: 3151.12 | H19: 3088.33 | I19: 3037.87 | J19: 3264.37 | K19: 3314.83 | L19: 3377.62 | M19: 3252.05 | N19: 3138.8 | O19: 538600 | P19: 3.10%
A20: 10 | B20: Automobile | C20: AMARAJABAT | D20: 2021-07-29 | E20: 743.00 | F20: 746.12 | G20: 738.43 | H20: 733.87 | I20: 726.18 | J20: 750.68 | K20: 758.37 | L20: 762.93 | M20: 753.8 | N20: 741.55 | O20: 9687000 | P20: 0.94%
A21: 11 | B21: Cement | C21: AMBUJACEM | D21: 2021-07-29 | E21: 346.50 | F21: 346.17 | G21: 344.38 | H21: 342.27 | I21: 340.48 | J21: 348.28 | K21: 350.07 | L21: 352.18 | M21: 347.95 | N21: 344.05 | O21: 16650000 | P21: -1.42%
A22: 12 | B22: Pharma | C22: APLLTD | D22: 2021-07-29 | E22: 978.00 | F22: 981.88 | G22: 967.27 | H22: 956.53 | I22: 941.92 | J22: 992.62 | K22: 1007.23 | L22: 1017.97 | M22: 996.5 | N22: 971.15 | O22: 1109900 | P22: 1.87%
A23: 13 | B23: Others | C23: APOLLOHOSP | D23: 2021-07-29 | E23: 3600.45 | F23: 3551.88 | G23: 3488.57 | H23: 3376.68 | I23: 3313.37 | J23: 3663.77 | K23: 3727.08 | L23: 3838.97 | M23: 3615.2 | N23: 3440 | O23: 2090500 | P23: 1.68%
A24: 14 | B24: Automobile | C24: APOLLOTYRE | D24: 2021-07-29 | E24: 223.80 | F24: 226.88 | G24: 218.87 | H24: 213.93 | I24: 205.92 | J24: 231.82 | K24: 239.83 | L24: 244.77 | M24: 234.9 | N24: 221.95 | O24: 19487500 | P24: 14.99%
A25: 15 | B25: Automobile | C25: ASHOKLEY | D25: 2021-07-29 | E25: 124.20 | F25: 124.85 | G25: 123.10 | H25: 122.00 | I25: 120.25 | J25: 125.95 | K25: 127.70 | L25: 128.80 | M25: 126.6 | N25: 123.75 | O25: 38803500 | P25: 7.40%
A26: 16 | B26: FMCG | C26: ASIANPAINT | D26: 2021-07-29 | E26: 3012.00 | F26: 3010.22 | G26: 2988.48 | H26: 2964.97 | I26: 2943.23 | J26: 3033.73 | K26: 3055.47 | L26: 3078.98 | M26: 3031.95 | N26: 2986.7 | O26: 3941700 | P26: 0.04%
A27: 17 | B27: Banking | C27: AUBANK | D27: 2021-07-29 | E27: 1083.45 | F27: 1072.65 | G27: 1053.85 | H27: 1024.25 | I27: 1005.45 | J27: 1102.25 | K27: 1121.05 | L27: 1150.65 | M27: 1091.45 | N27: 1043.05 | O27: 3132000 | P27: 27.81%
A28: 18 | B28: Pharma | C28: AUROPHARMA | D28: 2021-07-29 | E28: 973.20 | F28: 975.30 | G28: 965.10 | H28: 957.00 | I28: 946.80 | J28: 983.40 | K28: 993.60 | L28: 1001.70 | M28: 985.5 | N28: 967.2 | O28: 11315850 | P28: -0.38%
A29: 19 | B29: Banking | C29: AXISBANK | D29: 2021-07-29 | E29: 756.35 | F29: 759.25 | G29: 751.60 | H29: 746.85 | I29: 739.20 | J29: 764.00 | K29: 771.65 | L29: 776.40 | M29: 766.9 | N29: 754.5 | O29: 33484800 | P29: 0.28%
A30: 20 | B30: Automobile | C30: BAJAJ-AUTO | D30: 2021-07-29 | E30: 4010.40 | F30: 4028.28 | G30: 3985.37 | H30: 3960.33 | I30: 3917.42 | J30: 4053.32 | K30: 4096.23 | L30: 4121.27 | M30: 4071.2 | N30: 4003.25 | O30: 1366500 | P30: 4.00%
A31: 21 | B31: Finance | C31: BAJAJFINSV | D31: 2021-07-29 | E31: 12371.95 | F31: 12415.63 | G31: 12296.32 | H31: 12220.68 | I31: 12101.37 | J31: 12491.27 | K31: 12610.58 | L31: 12686.22 | M31: 12534.95 | N31: 12340 | O31: 599100 | P31: 1.82%
A32: 22 | B32: Finance | C32: BAJFINANCE | D32: 2021-07-29 | E32: 6079.90 | F32: 6089.45 | G32: 6012.70 | H32: 5945.50 | I32: 5868.75 | J32: 6156.65 | K32: 6233.40 | L32: 6300.60 | M32: 6166.2 | N32: 6022.25 | O32: 3390750 | P32: 3.65%
A33: 23 | B33: Automobile | C33: BALKRISIND | D33: 2021-07-29 | E33: 2254.65 | F33: 2258.88 | G33: 2239.77 | H33: 2224.88 | I33: 2205.77 | J33: 2273.77 | K33: 2292.88 | L33: 2307.77 | M33: 2278 | N33: 2244 | O33: 1067600 | P33: -3.61%
A34: 24 | B34: Banking | C34: BANDHANBNK | D34: 2021-07-29 | E34: 336.65 | F34: 340.47 | G34: 330.58 | H34: 324.52 | I34: 314.63 | J34: 346.53 | K34: 356.42 | L34: 362.48 | M34: 350.35 | N34: 334.4 | O34: 13230000 | P34: 1.70%
A35: 25 | B35: Banking | C35: BANKBARODA | D35: 2021-07-29 | E35: 87.45 | F35: 87.85 | G35: 86.25 | H35: 85.05 | I35: 83.45 | J35: 89.05 | K35: 90.65 | L35: 91.85 | M35: 89.45 | N35: 86.65 | O35: 171674100 | P35: -0.62%
A36: 26 | B36: FMCG | C36: BATAINDIA | D36: 2021-07-29 | E36: 1612.10 | F36: 1619.30 | G36: 1600.60 | H36: 1589.10 | I36: 1570.40 | J36: 1630.80 | K36: 1649.50 | L36: 1661.00 | M36: 1638 | N36: 1607.8 | O36: 1219900 | P36: 6.23%
A37: 27 | B37: Capital_Goods | C37: BEL | D37: 2021-07-29 | E37: 175.75 | F37: 175.45 | G37: 173.95 | H37: 172.15 | I37: 170.65 | J37: 177.25 | K37: 178.75 | L37: 180.55 | M37: 176.95 | N37: 173.65 | O37: 29605800 | P37: 0.84%
A38: 28 | B38: FMCG | C38: BERGEPAINT | D38: 2021-07-29 | E38: 808.35 | F38: 810.60 | G38: 804.75 | H38: 801.15 | I38: 795.30 | J38: 814.20 | K38: 820.05 | L38: 823.65 | M38: 816.45 | N38: 807 | O38: 2743400 | P38: -0.04%
A39: 29 | B39: Automobile | C39: BHARATFORG | D39: 2021-07-29 | E39: 748.25 | F39: 751.37 | G39: 738.73 | H39: 729.22 | I39: 716.58 | J39: 760.88 | K39: 773.52 | L39: 783.03 | M39: 764 | N39: 741.85 | O39: 5991000 | P39: -3.67%
A40: 30 | B40: Telecom | C40: BHARTIARTL | D40: 2021-07-29 | E40: 528.25 | F40: 530.23 | G40: 525.37 | H40: 522.48 | I40: 517.62 | J40: 533.12 | K40: 537.98 | L40: 540.87 | M40: 535.1 | N40: 527.35 | O40: 111215484 | P40: 2.11%
A41: 31 | B41: Capital_Goods | C41: BHEL | D41: 2021-07-29 | E41: 65.25 | F41: 65.65 | G41: 64.20 | H41: 63.15 | I41: 61.70 | J41: 66.70 | K41: 68.15 | L41: 69.20 | M41: 67.1 | N41: 64.6 | O41: 92641500 | P41: 4.08%
A42: 32 | B42: Pharma | C42: BIOCON | D42: 2021-07-29 | E42: 409.90 | F42: 409.07 | G42: 404.93 | H42: 399.97 | I42: 395.83 | J42: 414.03 | K42: 418.17 | L42: 423.13 | M42: 413.2 | N42: 404.1 | O42: 14289900 | P42: 2.95%
A43: 33 | B43: Automobile | C43: BOSCHLTD | D43: 2021-07-29 | E43: 14996.95 | F43: 15044.07 | G43: 14903.13 | H43: 14809.32 | I43: 14668.38 | J43: 15137.88 | K43: 15278.82 | L43: 15372.63 | M43: 15185 | N43: 14950.25 | O43: 126100 | P43: 1.24%
A44: 34 | B44: Oil_Gas | C44: BPCL | D44: 2021-07-29 | E44: 467.55 | F44: 468.38 | G44: 465.62 | H44: 463.68 | I44: 460.92 | J44: 470.32 | K44: 473.08 | L44: 475.02 | M44: 471.15 | N44: 466.45 | O44: 33517800 | P44: 0.75%
A45: 35 | B45: FMCG | C45: BRITANNIA | D45: 2021-07-29 | E45: 3667.75 | F45: 3656.42 | G45: 3630.43 | H45: 3593.12 | I45: 3567.13 | J45: 3693.73 | K45: 3719.72 | L45: 3757.03 | M45: 3682.4 | N45: 3619.1 | O45: 1871800 | P45: 6.76%
A46: 36 | B46: Pharma | C46: CADILAHC | D46: 2021-07-29 | E46: 641.20 | F46: 641.30 | G46: 634.20 | H46: 627.20 | I46: 620.10 | J46: 648.30 | K46: 655.40 | L46: 662.40 | M46: 648.4 | N46: 634.3 | O46: 24767600 | P46: 1.67%
A47: 37 | B47: Banking | C47: CANBK | D47: 2021-07-29 | E47: 154.30 | F47: 155.58 | G47: 152.52 | H47: 150.73 | I47: 147.67 | J47: 157.37 | K47: 160.43 | L47: 162.22 | M47: 158.65 | N47: 153.8 | O47: 59362200 | P47: -1.98%
A48: 38 | B48: Finance | C48: CHOLAFIN | D48: 2021-07-29 | E48: 522.05 | F48: 523.25 | G48: 517.00 | H48: 511.95 | I48: 505.70 | J48: 528.30 | K48: 534.55 | L48: 539.60 | M48: 529.5 | N48: 518.2 | O48: 7955000 | P48: 8.34%
A49: 39 | B49: Pharma | C49: CIPLA | D49: 2021-07-29 | E49: 983.65 | F49: 980.25 | G49: 967.50 | H49: 951.35 | I49: 938.60 | J49: 996.40 | K49: 1009.15 | L49: 1025.30 | M49: 993 | N49: 964.1 | O49: 9163700 | P49: 4.28%
A50: 40 | B50: Others | C50: COALINDIA | D50: 2021-07-29 | E50: 145.15 | F50: 145.87 | G50: 143.93 | H50: 142.72 | I50: 140.78 | J50: 147.08 | K50: 149.02 | L50: 150.23 | M50: 147.8 | N50: 144.65 | O50: 63193200 | P50: 2.67%
A51: 41 | B51: Technology | C51: COFORGE | D51: 2021-07-29 | E51: 4084.80 | F51: 4086.22 | G51: 4039.18 | H51: 3993.57 | I51: 3946.53 | J51: 4131.83 | K51: 4178.87 | L51: 4224.48 | M51: 4133.25 | N51: 4040.6 | O51: 581200 | P51: 0.59%
A52: 42 | B52: FMCG | C52: COLPAL | D52: 2021-07-29 | E52: 1679.55 | F52: 1683.88 | G52: 1671.72 | H52: 1663.88 | I52: 1651.72 | J52: 1691.72 | K52: 1703.88 | L52: 1711.72 | M52: 1696.05 | N52: 1676.05 | O52: 2650900 | P52: 3.19%
A53: 43 | B53: Others | C53: CONCOR | D53: 2021-07-29 | E53: 697.95 | F53: 701.20 | G53: 692.00 | H53: 686.05 | I53: 676.85 | J53: 707.15 | K53: 716.35 | L53: 722.30 | M53: 710.4 | N53: 695.25 | O53: 6239496 | P53: 0.73%
A54: 44 | B54: Others | C54: COROMANDEL | D54: 2021-07-29 | E54: 898.50 | F54: 905.02 | G54: 886.03 | H54: 873.57 | I54: 854.58 | J54: 917.48 | K54: 936.47 | L54: 948.93 | M54: 924 | N54: 892.55 | O54: 491250 | P54: 19.63%
A55: 45 | B55: Banking | C55: CUB | D55: 2021-07-29 | E55: 170.90 | F55: 171.18 | G55: 168.77 | H55: 166.63 | I55: 164.22 | J55: 173.32 | K55: 175.73 | L55: 177.87 | M55: 173.6 | N55: 169.05 | O55: 10806600 | P55: 3.01%
A56: 46 | B56: Capital_Goods | C56: CUMMINSIND | D56: 2021-07-29 | E56: 854.90 | F56: 861.65 | G56: 838.30 | H56: 821.70 | I56: 798.35 | J56: 878.25 | K56: 901.60 | L56: 918.20 | M56: 885 | N56: 845.05 | O56: 3078600 | P56: -1.72%
A57: 47 | B57: FMCG | C57: DABUR | D57: 2021-07-29 | E57: 570.00 | F57: 569.32 | G57: 565.48 | H57: 560.97 | I57: 557.13 | J57: 573.83 | K57: 577.67 | L57: 582.18 | M57: 573.15 | N57: 564.8 | O57: 6981250 | P57: 6.71%
A58: 48 | B58: Chemical | C58: DEEPAKNTR | D58: 2021-07-29 | E58: 1767.65 | F58: 1773.97 | G58: 1750.23 | H58: 1732.82 | I58: 1709.08 | J58: 1791.38 | K58: 1815.12 | L58: 1832.53 | M58: 1797.7 | N58: 1756.55 | O58: 3043000 | P58: 2.82%
A59: 49 | B59: Pharma | C59: DIVISLAB | D59: 2021-07-29 | E59: 4382.35 | F59: 4369.05 | G59: 4345.10 | H59: 4307.85 | I59: 4283.90 | J59: 4406.30 | K59: 4430.25 | L59: 4467.50 | M59: 4393 | N59: 4331.8 | O59: 2448400 | P59: 0.92%
A60: 50 | B60: Realty | C60: DLF | D60: 2021-07-29 | E60: 288.25 | F60: 290.80 | G60: 283.45 | H60: 278.65 | I60: 271.30 | J60: 295.60 | K60: 302.95 | L60: 307.75 | M60: 298.15 | N60: 286 | O60: 34062600 | P60: -2.48%
A61: 51 | B61: Pharma | C61: DRREDDY | D61: 2021-07-29 | E61: 5427.30 | F61: 5416.47 | G61: 5386.83 | H61: 5346.37 | I61: 5316.73 | J61: 5456.93 | K61: 5486.57 | L61: 5527.03 | M61: 5446.1 | N61: 5376 | O61: 2409750 | P61: -0.16%
A62: 52 | B62: Automobile | C62: EICHERMOT | D62: 2021-07-29 | E62: 2709.40 | F62: 2723.82 | G62: 2689.98 | H62: 2670.57 | I62: 2636.73 | J62: 2743.23 | K62: 2777.07 | L62: 2796.48 | M62: 2757.65 | N62: 2704.4 | O62: 1834350 | P62: 4.13%
A63: 53 | B63: Automobile | C63: ESCORTS | D63: 2021-07-29 | E63: 1195.80 | F63: 1199.63 | G63: 1185.27 | H63: 1174.73 | I63: 1160.37 | J63: 1210.17 | K63: 1224.53 | L63: 1235.07 | M63: 1214 | N63: 1189.1 | O63: 5286050 | P63: 1.32%
A64: 54 | B64: Automobile | C64: EXIDEIND | D64: 2021-07-29 | E64: 183.90 | F64: 184.22 | G64: 182.78 | H64: 181.67 | I64: 180.23 | J64: 185.33 | K64: 186.77 | L64: 187.88 | M64: 185.65 | N64: 183.1 | O64: 14252400 | P64: 2.96%
A65: 55 | B65: Banking | C65: FEDERALBNK | D65: 2021-07-29 | E65: 86.30 | F65: 86.43 | G65: 85.42 | H65: 84.53 | I65: 83.52 | J65: 87.32 | K65: 88.33 | L65: 89.22 | M65: 87.45 | N65: 85.55 | O65: 83000000 | P65: -1.53%
A66: 56 | B66: Oil_Gas | C66: GAIL | D66: 2021-07-29 | E66: 152.65 | F66: 152.87 | G66: 151.63 | H66: 150.62 | I66: 149.38 | J66: 153.88 | K66: 155.12 | L66: 156.13 | M66: 154.1 | N66: 151.85 | O66: 29414200 | P66: -0.74%
A67: 57 | B67: Pharma | C67: GLENMARK | D67: 2021-07-29 | E67: 659.35 | F67: 663.92 | G67: 652.63 | H67: 645.92 | I67: 634.63 | J67: 670.63 | K67: 681.92 | L67: 688.63 | M67: 675.2 | N67: 657.2 | O67: 7593450 | P67: -0.24%
A68: 58 | B68: Infrastructure | C68: GMRINFRA | D68: 2021-07-29 | E68: 30.85 | F68: 31.08 | G68: 30.37 | H68: 29.88 | I68: 29.17 | J68: 31.57 | K68: 32.28 | L68: 32.77 | M68: 31.8 | N68: 30.6 | O68: 108315000 | P68: 0.35%
A69: 59 | B69: FMCG | C69: GODREJCP | D69: 2021-07-29 | E69: 881.60 | F69: 890.52 | G69: 869.08 | H69: 856.57 | I69: 835.13 | J69: 903.03 | K69: 924.47 | L69: 936.98 | M69: 911.95 | N69: 878 | O69: 4537000 | P69: 12.78%
A70: 60 | B70: Realty | C70: GODREJPROP | D70: 2021-07-29 | E70: 1410.55 | F70: 1410.33 | G70: 1400.77 | H70: 1390.98 | I70: 1381.42 | J70: 1420.12 | K70: 1429.68 | L70: 1439.47 | M70: 1419.9 | N70: 1400.55 | O70: 1835600 | P70: -0.39%
A71: 61 | B71: Pharma | C71: GRANULES | D71: 2021-07-29 | E71: 326.10 | F71: 324.00 | G71: 319.70 | H71: 313.30 | I71: 309.00 | J71: 330.40 | K71: 334.70 | L71: 341.10 | M71: 328.3 | N71: 317.6 | O71: 11604850 | P71: 1.39%
A72: 62 | B72: Cement | C72: GRASIM | D72: 2021-07-29 | E72: 1511.05 | F72: 1514.62 | G72: 1500.68 | H72: 1490.32 | I72: 1476.38 | J72: 1524.98 | K72: 1538.92 | L72: 1549.28 | M72: 1528.55 | N72: 1504.25 | O72: 11351075 | P72: 0.39%
A73: 63 | B73: Oil_Gas | C73: GUJGASLTD | D73: 2021-07-29 | E73: 666.25 | F73: 670.97 | G73: 658.03 | H73: 649.82 | I73: 636.88 | J73: 679.18 | K73: 692.12 | L73: 700.33 | M73: 683.9 | N73: 662.75 | O73: 2376250 | P73: 5.91%
A74: 64 | B74: Capital_Goods | C74: HAVELLS | D74: 2021-07-29 | E74: 984.95 | F74: 989.32 | G74: 978.78 | H74: 972.62 | I74: 962.08 | J74: 995.48 | K74: 1006.02 | L74: 1012.18 | M74: 999.85 | N74: 983.15 | O74: 6504500 | P74: 2.17%
A75: 65 | B75: Technology | C75: HCLTECH | D75: 2021-07-29 | E75: 986.30 | F75: 987.70 | G75: 981.00 | H75: 975.70 | I75: 969.00 | J75: 993.00 | K75: 999.70 | L75: 1005.00 | M75: 994.4 | N75: 982.4 | O75: 18636100 | P75: 0.56%
A76: 66 | B76: Finance | C76: HDFC | D76: 2021-07-29 | E76: 2512.15 | F76: 2505.03 | G76: 2494.07 | H76: 2475.98 | I76: 2465.02 | J76: 2523.12 | K76: 2534.08 | L76: 2552.17 | M76: 2516 | N76: 2486.95 | O76: 16136100 | P76: -0.24%
A77: 67 | B77: Finance | C77: HDFCAMC | D77: 2021-07-29 | E77: 2954.90 | F77: 2959.72 | G77: 2934.93 | H77: 2914.97 | I77: 2890.18 | J77: 2979.68 | K77: 3004.47 | L77: 3024.43 | M77: 2984.5 | N77: 2939.75 | O77: 503600 | P77: -1.95%
A78: 68 | B78: Banking | C78: HDFCBANK | D78: 2021-07-29 | E78: 1506.35 | F78: 1504.93 | G78: 1499.92 | H78: 1493.48 | I78: 1488.47 | J78: 1511.37 | K78: 1516.38 | L78: 1522.82 | M78: 1509.95 | N78: 1498.5 | O78: 25546950 | P78: 0.76%
A79: 69 | B79: Finance | C79: HDFCLIFE | D79: 2021-07-29 | E79: 688.65 | F79: 689.62 | G79: 675.28 | H79: 661.92 | I79: 647.58 | J79: 702.98 | K79: 717.32 | L79: 730.68 | M79: 703.95 | N79: 676.25 | O79: 20499600 | P79: 48.46%
A80: 70 | B80: Automobile | C80: HEROMOTOCO | D80: 2021-07-29 | E80: 2901.95 | F80: 2909.43 | G80: 2884.07 | H80: 2866.18 | I80: 2840.82 | J80: 2927.32 | K80: 2952.68 | L80: 2970.57 | M80: 2934.8 | N80: 2891.55 | O80: 4069800 | P80: 1.87%
A81: 71 | B81: Metals | C81: HINDALCO | D81: 2021-07-29 | E81: 375.55 | F81: 378.28 | G81: 371.17 | H81: 366.78 | I81: 359.67 | J81: 382.67 | K81: 389.78 | L81: 394.17 | M81: 385.4 | N81: 373.9 | O81: 28635850 | P81: 1.83%
A82: 72 | B82: Oil_Gas | C82: HINDPETRO | D82: 2021-07-29 | E82: 293.85 | F82: 295.80 | G82: 290.80 | H82: 287.75 | I82: 282.75 | J82: 298.85 | K82: 303.85 | L82: 306.90 | M82: 300.8 | N82: 292.75 | O82: 20722500 | P82: -1.41%
A83: 73 | B83: FMCG | C83: HINDUNILVR | D83: 2021-07-29 | E83: 2500.20 | F83: 2486.08 | G83: 2466.42 | H83: 2432.63 | I83: 2412.97 | J83: 2519.87 | K83: 2539.53 | L83: 2573.32 | M83: 2505.75 | N83: 2452.3 | O83: 6374100 | P83: 0.71%
A84: 74 | B84: Finance | C84: IBULHSGFIN | D84: 2021-07-29 | E84: 265.30 | F84: 266.88 | G84: 261.42 | H84: 257.53 | I84: 252.07 | J84: 270.77 | K84: 276.23 | L84: 280.12 | M84: 272.35 | N84: 263 | O84: 31260400 | P84: -0.81%
A85: 75 | B85: Banking | C85: ICICIBANK | D85: 2021-07-29 | E85: 641.40 | F85: 643.32 | G85: 637.13 | H85: 632.87 | I85: 626.68 | J85: 647.58 | K85: 653.77 | L85: 658.03 | M85: 649.5 | N85: 639.05 | O85: 70214375 | P85: 1.15%
A86: 76 | B86: Finance | C86: ICICIGI | D86: 2021-07-29 | E86: 1581.75 | F86: 1589.88 | G86: 1567.77 | H86: 1553.78 | I86: 1531.67 | J86: 1603.87 | K86: 1625.98 | L86: 1639.97 | M86: 1612 | N86: 1575.9 | O86: 1035725 | P86: -5.98%
A87: 77 | B87: Finance | C87: ICICIPRULI | D87: 2021-07-29 | E87: 615.20 | F87: 615.40 | G87: 611.50 | H87: 607.80 | I87: 603.90 | J87: 619.10 | K87: 623.00 | L87: 626.70 | M87: 619.3 | N87: 611.7 | O87: 5952000 | P87: 5.50%
A88: 78 | B88: Telecom | C88: IDEA | D88: 2021-07-29 | E88: 10.20 | F88: 10.35 | G88: 9.95 | H88: 9.70 | I88: 9.30 | J88: 10.60 | K88: 11.00 | L88: 11.25 | M88: 10.75 | N88: 10.1 | O88: 641830000 | P88: -0.08%
A89: 79 | B89: Banking | C89: IDFCFIRSTB | D89: 2021-07-29 | E89: 56.20 | F89: 56.60 | G89: 55.65 | H89: 55.10 | I89: 54.15 | J89: 57.15 | K89: 58.10 | L89: 58.65 | M89: 57.55 | N89: 56.05 | O89: 143450000 | P89: 5.04%
A90: 80 | B90: Oil_Gas | C90: IGL | D90: 2021-07-29 | E90: 553.40 | F90: 550.07 | G90: 538.18 | H90: 522.97 | I90: 511.08 | J90: 565.28 | K90: 577.17 | L90: 592.38 | M90: 561.95 | N90: 534.85 | O90: 10245125 | P90: 6.47%
A91: 81 | B91: Infrastructure | C91: INDHOTEL | D91: 2021-07-29 | E91: 143.40 | F91: 144.70 | G91: 141.50 | H91: 139.60 | I91: 136.40 | J91: 146.60 | K91: 149.80 | L91: 151.70 | M91: 147.9 | N91: 142.8 | O91: 3915600 | P91: 12.68%
A92: 82 | B92: Others | C92: INDIGO | D92: 2021-07-29 | E92: 1733.20 | F92: 1739.43 | G92: 1721.92 | H92: 1710.63 | I92: 1693.12 | J92: 1750.72 | K92: 1768.23 | L92: 1779.52 | M92: 1756.95 | N92: 1728.15 | O92: 2582000 | P92: -3.15%
A93: 83 | B93: Banking | C93: INDUSINDBK | D93: 2021-07-29 | E93: 1017.15 | F93: 1012.35 | G93: 1003.80 | H93: 990.45 | I93: 981.90 | J93: 1025.70 | K93: 1034.25 | L93: 1047.60 | M93: 1020.9 | N93: 999 | O93: 16883100 | P93: -4.22%
A94: 84 | B94: Telecom | C94: INDUSTOWER | D94: 2021-07-29 | E94: 242.35 | F94: 243.33 | G94: 240.07 | H94: 237.78 | I94: 234.52 | J94: 245.62 | K94: 248.88 | L94: 251.17 | M94: 246.6 | N94: 241.05 | O94: 13745200 | P94: -1.82%
A95: 85 | B95: Technology | C95: INFY | D95: 2021-07-29 | E95: 1568.60 | F95: 1570.37 | G95: 1562.88 | H95: 1557.17 | I95: 1549.68 | J95: 1576.08 | K95: 1583.57 | L95: 1589.28 | M95: 1577.85 | N95: 1564.65 | O95: 31137600 | P95: 0.47%
A96: 86 | B96: Oil_Gas | C96: IOC | D96: 2021-07-29 | E96: 108.70 | F96: 109.72 | G96: 107.43 | H96: 106.17 | I96: 103.88 | J96: 110.98 | K96: 113.27 | L96: 114.53 | M96: 112 | N96: 108.45 | O96: 50927500 | P96: 2.54%
A97: 87 | B97: Others | C97: IRCTC | D97: 2021-07-29 | E97: 2086.05 | F97: 2098.02 | G97: 2061.13 | H97: 2036.22 | I97: 1999.33 | J97: 2122.93 | K97: 2159.82 | L97: 2184.73 | M97: 2134.9 | N97: 2073.1 | O97: 1798225 | P97: 3.81%
A98: 88 | B98: FMCG | C98: ITC | D98: 2021-07-29 | E98: 204.35 | F98: 204.80 | G98: 203.60 | H98: 202.85 | I98: 201.65 | J98: 205.55 | K98: 206.75 | L98: 207.50 | M98: 206 | N98: 204.05 | O98: 168867200 | P98: 0.94%
A99: 89 | B99: Metals | C99: JINDALSTEL | D99: 2021-07-29 | E99: 401.15 | F99: 404.30 | G99: 395.50 | H99: 389.85 | I99: 381.05 | J99: 409.95 | K99: 418.75 | L99: 424.40 | M99: 413.1 | N99: 398.65 | O99: 32625000 | P99: 0.15%
A100: 90 | B100: Metals | C100: JSWSTEEL | D100: 2021-07-29 | E100: 683.45 | F100: 685.43 | G100: 677.67 | H100: 671.88 | I100: 664.12 | J100: 691.22 | K100: 698.98 | L100: 704.77 | M100: 693.2 | N100: 679.65 | O100: 40373100 | P100: 1.51%
A101: 91 | B101: Others | C101: JUBLFOOD | D101: 2021-07-29 | E101: 3125.80 | F101: 3135.20 | G101: 3102.65 | H101: 3079.50 | I101: 3046.95 | J101: 3158.35 | K101: 3190.90 | L101: 3214.05 | M101: 3167.75 | N101: 3112.05 | O101: 1468000 | P101: 0.27%
A102: 92 | B102: Banking | C102: KOTAKBANK | D102: 2021-07-29 | E102: 1717.25 | F102: 1724.58 | G102: 1706.22 | H102: 1695.18 | I102: 1676.82 | J102: 1735.62 | K102: 1753.98 | L102: 1765.02 | M102: 1742.95 | N102: 1713.55 | O102: 21435600 | P102: 16.42%
A103: 93 | B103: Finance | C103: L&TFH | D103: 2021-07-29 | E103: 94.30 | F103: 94.78 | G103: 93.32 | H103: 92.33 | I103: 90.87 | J103: 95.77 | K103: 97.23 | L103: 98.22 | M103: 96.25 | N103: 93.8 | O103: 61834396 | P103: 3.46%
A104: 94 | B104: Others | C104: LALPATHLAB | D104: 2021-07-29 | E104: 3158.05 | F104: 3154.77 | G104: 3126.53 | H104: 3095.02 | I104: 3066.78 | J104: 3186.28 | K104: 3214.52 | L104: 3246.03 | M104: 3183 | N104: 3123.25 | O104: 469750 | P104: 3.93%
A105: 95 | B105: Finance | C105: LICHSGFIN | D105: 2021-07-29 | E105: 474.55 | F105: 474.37 | G105: 469.88 | H105: 465.22 | I105: 460.73 | J105: 479.03 | K105: 483.52 | L105: 488.18 | M105: 478.85 | N105: 469.7 | O105: 13712000 | P105: -4.18%
A106: 96 | B106: Capital_Goods | C106: LT | D106: 2021-07-29 | E106: 1505.20 | F106: 1507.65 | G106: 1493.65 | H106: 1482.10 | I106: 1468.10 | J106: 1519.20 | K106: 1533.20 | L106: 1544.75 | M106: 1521.65 | N106: 1496.1 | O106: 13469375 | P106: -0.44%
A107: 97 | B107: Technology | C107: LTI | D107: 2021-07-29 | E107: 4121.20 | F107: 4113.58 | G107: 4080.17 | H107: 4039.13 | I107: 4005.72 | J107: 4154.62 | K107: 4188.03 | L107: 4229.07 | M107: 4147 | N107: 4072.55 | O107: 587250 | P107: -3.40%
A108: 98 | B108: Technology | C108: LTTS | D108: 2021-07-29 | E108: 2890.35 | F108: 2888.68 | G108: 2859.72 | H108: 2829.08 | I108: 2800.12 | J108: 2919.32 | K108: 2948.28 | L108: 2978.92 | M108: 2917.65 | N108: 2858.05 | O108: 475600 | P108: 0.42%
A109: 99 | B109: Pharma | C109: LUPIN | D109: 2021-07-29 | E109: 1164.70 | F109: 1166.13 | G109: 1157.77 | H109: 1150.83 | I109: 1142.47 | J109: 1173.07 | K109: 1181.43 | L109: 1188.37 | M109: 1174.5 | N109: 1159.2 | O109: 6647850 | P109: -0.15%
A110: 100 | B110: Automobile | C110: M&M | D110: 2021-07-29 | E110: 777.75 | F110: 780.42 | G110: 772.83 | H110: 767.92 | I110: 760.33 | J110: 785.33 | K110: 792.92 | L110: 797.83 | M110: 788 | N110: 775.5 | O110: 10409000 | P110: 4.59%
A111: 101 | B111: Finance | C111: M&MFIN | D111: 2021-07-29 | E111: 157.70 | F111: 158.23 | G111: 156.37 | H111: 155.03 | I111: 153.17 | J111: 159.57 | K111: 161.43 | L111: 162.77 | M111: 160.1 | N111: 156.9 | O111: 44224000 | P111: -0.02%
A112: 102 | B112: Finance | C112: MANAPPURAM | D112: 2021-07-29 | E112: 163.80 | F112: 164.73 | G112: 162.27 | H112: 160.73 | I112: 158.27 | J112: 166.27 | K112: 168.73 | L112: 170.27 | M112: 167.2 | N112: 163.2 | O112: 23160000 | P112: 2.50%
A113: 103 | B113: FMCG | C113: MARICO | D113: 2021-07-29 | E113: 539.85 | F113: 531.90 | G113: 521.80 | H113: 503.75 | I113: 493.65 | J113: 549.95 | K113: 560.05 | L113: 578.10 | M113: 542 | N113: 513.85 | O113: 6748000 | P113: 24.18%
A114: 104 | B114: Automobile | C114: MARUTI | D114: 2021-07-29 | E114: 7535.80 | F114: 7550.40 | G114: 7479.40 | H114: 7423.00 | I114: 7352.00 | J114: 7606.80 | K114: 7677.80 | L114: 7734.20 | M114: 7621.4 | N114: 7494 | O114: 1780200 | P114: -2.72%
A115: 105 | B115: FMCG | C115: MCDOWELL-N | D115: 2021-07-29 | E115: 671.30 | F115: 673.58 | G115: 665.57 | H115: 659.83 | I115: 651.82 | J115: 679.32 | K115: 687.33 | L115: 693.07 | M115: 681.6 | N115: 667.85 | O115: 11268750 | P115: 0.22%
A116: 106 | B116: Finance | C116: METROPOLIS | D116: 2021-07-29 | E116: 2804.70 | F116: 2822.98 | G116: 2761.97 | H116: 2719.23 | I116: 2658.22 | J116: 2865.72 | K116: 2926.73 | L116: 2969.47 | M116: 2884 | N116: 2780.25 | O116: 217600 | P116: 11.25%
A117: 107 | B117: Pharma | C117: MFSL | D117: 2021-07-29 | E117: 1083.10 | F117: 1087.72 | G117: 1073.88 | H117: 1064.67 | I117: 1050.83 | J117: 1096.93 | K117: 1110.77 | L117: 1119.98 | M117: 1101.55 | N117: 1078.5 | O117: 2410850 | P117: -0.56%
A118: 108 | B118: Oil_Gas | C118: MGL | D118: 2021-07-29 | E118: 1161.60 | F118: 1162.57 | G118: 1149.43 | H118: 1137.27 | I118: 1124.13 | J118: 1174.73 | K118: 1187.87 | L118: 1200.03 | M118: 1175.7 | N118: 1150.4 | O118: 2434200 | P118: 0.45%
A119: 109 | B119: Technology | C119: MINDTREE | D119: 2021-07-29 | E119: 2572.10 | F119: 2566.70 | G119: 2552.40 | H119: 2532.70 | I119: 2518.40 | J119: 2586.40 | K119: 2600.70 | L119: 2620.40 | M119: 2581 | N119: 2547 | O119: 1736800 | P119: -1.72%
A120: 110 | B120: Automobile | C120: MOTHERSUMI | D120: 2021-07-29 | E120: 238.05 | F120: 240.42 | G120: 234.63 | H120: 231.22 | I120: 225.43 | J120: 243.83 | K120: 249.62 | L120: 253.03 | M120: 246.2 | N120: 237 | O120: 32511500 | P120: 9.06%
A121: 111 | B121: Technology | C121: MPHASIS | D121: 2021-07-29 | E121: 2048.35 | F121: 2041.10 | G121: 2022.25 | H121: 1996.15 | I121: 1977.30 | J121: 2067.20 | K121: 2086.05 | L121: 2112.15 | M121: 2059.95 | N121: 2015 | O121: 691925 | P121: 7.85%
A122: 112 | B122: Automobile | C122: MRF | D122: 2021-07-29 | E122: 80671.00 | F122: 80632.28 | G122: 80088.72 | H122: 79506.43 | I122: 78962.87 | J122: 81214.57 | K122: 81758.13 | L122: 82340.42 | M122: 81175.85 | N122: 80050 | O122: 45070 | P122: 2.99%
A123: 113 | B123: Finance | C123: MUTHOOTFIN | D123: 2021-07-29 | E123: 1477.65 | F123: 1486.45 | G123: 1462.20 | H123: 1446.75 | I123: 1422.50 | J123: 1501.90 | K123: 1526.15 | L123: 1541.60 | M123: 1510.7 | N123: 1471 | O123: 3081000 | P123: 6.23%
A124: 114 | B124: Others | C124: NAM-INDIA | D124: 2021-07-29 | E124: 367.85 | F124: 367.87 | G124: 363.73 | H124: 359.62 | I124: 355.48 | J124: 371.98 | K124: 376.12 | L124: 380.23 | M124: 372 | N124: 363.75 | O124: 2316800 | P124: -1.63%
A125: 115 | B125: Metals | C125: NATIONALUM | D125: 2021-07-29 | E125: 77.60 | F125: 79.10 | G125: 75.70 | H125: 73.80 | I125: 70.40 | J125: 81.00 | K125: 84.40 | L125: 86.30 | M125: 82.5 | N125: 77.2 | O125: 97257000 | P125: -17.01%
A126: 116 | B126: Others | C126: NAUKRI | D126: 2021-07-29 | E126: 4969.05 | F126: 4973.68 | G126: 4927.47 | H126: 4885.88 | I126: 4839.67 | J126: 5015.27 | K126: 5061.48 | L126: 5103.07 | M126: 5019.9 | N126: 4932.1 | O126: 1065000 | P126: -0.98%
A127: 117 | B127: Chemical | C127: NAVINFLUOR | D127: 2021-07-29 | E127: 3721.20 | F127: 3710.20 | G127: 3678.40 | H127: 3635.60 | I127: 3603.80 | J127: 3753.00 | K127: 3784.80 | L127: 3827.60 | M127: 3742 | N127: 3667.4 | O127: 354375 | P127: 2.67%
A128: 118 | B128: FMCG | C128: NESTLEIND | D128: 2021-07-29 | E128: 17668.20 | F128: 17659.97 | G128: 17549.23 | H128: 17430.27 | I128: 17319.53 | J128: 17778.93 | K128: 17889.67 | L128: 18008.63 | M128: 17770.7 | N128: 17541 | O128: 236350 | P128: -1.83%
A129: 119 | B129: Metals | C129: NMDC | D129: 2021-07-29 | E129: 182.25 | F129: 183.02 | G129: 180.53 | H129: 178.82 | I129: 176.33 | J129: 184.73 | K129: 187.22 | L129: 188.93 | M129: 185.5 | N129: 181.3 | O129: 68232800 | P129: -6.31%
A130: 120 | B130: Power | C130: NTPC | D130: 2021-07-29 | E130: 117.05 | F130: 116.73 | G130: 115.67 | H130: 114.28 | I130: 113.22 | J130: 118.12 | K130: 119.18 | L130: 120.57 | M130: 117.8 | N130: 115.35 | O130: 47406900 | P130: -2.58%
A131: 121 | B131: Oil_Gas | C131: ONGC | D131: 2021-07-29 | E131: 119.65 | F131: 120.48 | G131: 118.47 | H131: 117.28 | I131: 115.27 | J131: 121.67 | K131: 123.68 | L131: 124.87 | M131: 122.5 | N131: 119.3 | O131: 74320400 | P131: -2.63%
A132: 122 | B132: Textile | C132: PAGEIND | D132: 2021-07-29 | E132: 29817.90 | F132: 29882.70 | G132: 29590.40 | H132: 29362.90 | I132: 29070.60 | J132: 30110.20 | K132: 30402.50 | L132: 30630.00 | M132: 30175 | N132: 29655.2 | O132: 72960 | P132: -2.64%
A133: 123 | B133: Pharma | C133: PEL | D133: 2021-07-29 | E133: 2396.70 | F133: 2405.17 | G133: 2377.53 | H133: 2358.37 | I133: 2330.73 | J133: 2424.33 | K133: 2451.97 | L133: 2471.13 | M133: 2432.8 | N133: 2386 | O133: 3119325 | P133: 0.82%
A134: 124 | B134: Oil_Gas | C134: PETRONET | D134: 2021-07-29 | E134: 223.75 | F134: 224.48 | G134: 222.17 | H134: 220.58 | I134: 218.27 | J134: 226.07 | K134: 228.38 | L134: 229.97 | M134: 226.8 | N134: 222.9 | O134: 25698000 | P134: -0.67%
A135: 125 | B135: Finance | C135: PFC | D135: 2021-07-29 | E135: 122.40 | F135: 122.65 | G135: 121.55 | H135: 120.70 | I135: 119.60 | J135: 123.50 | K135: 124.60 | L135: 125.45 | M135: 123.75 | N135: 121.8 | O135: 40988200 | P135: -0.23%
A136: 126 | B136: Pharma | C136: PFIZER | D136: 2021-07-29 | E136: 5682.50 | F136: 5696.32 | G136: 5614.63 | H136: 5546.77 | I136: 5465.08 | J136: 5764.18 | K136: 5845.87 | L136: 5913.73 | M136: 5778 | N136: 5628.45 | O136: 369625 | P136: 5.42%
A137: 127 | B137: FMCG | C137: PIDILITIND | D137: 2021-07-29 | E137: 2170.75 | F137: 2170.97 | G137: 2157.93 | H137: 2145.12 | I137: 2132.08 | J137: 2183.78 | K137: 2196.82 | L137: 2209.63 | M137: 2184 | N137: 2158.15 | O137: 1910500 | P137: -1.34%
A138: 128 | B138: Chemical | C138: PIIND | D138: 2021-07-29 | E138: 2922.00 | F138: 2931.85 | G138: 2890.65 | H138: 2859.30 | I138: 2818.10 | J138: 2963.20 | K138: 3004.40 | L138: 3035.75 | M138: 2973.05 | N138: 2900.5 | O138: 732000 | P138: 0.58%
A139: 129 | B139: Banking | C139: PNB | D139: 2021-07-29 | E139: 43.20 | F139: 43.50 | G139: 42.80 | H139: 42.40 | I139: 41.70 | J139: 43.90 | K139: 44.60 | L139: 45.00 | M139: 44.2 | N139: 43.1 | O139: 349520000 | P139: 1.34%
A140: 130 | B140: Power | C140: POWERGRID | D140: 2021-07-29 | E140: 234.90 | F140: 234.33 | G140: 232.07 | H140: 229.23 | I140: 226.97 | J140: 237.17 | K140: 239.43 | L140: 242.27 | M140: 236.6 | N140: 231.5 | O140: 20408000 | P140: 8.58%
A141: 131 | B141: Media | C141: PVR | D141: 2021-07-29 | E141: 1355.05 | F141: 1361.43 | G141: 1341.57 | H141: 1328.08 | I141: 1308.22 | J141: 1374.92 | K141: 1394.78 | L141: 1408.27 | M141: 1381.3 | N141: 1347.95 | O141: 1438745 | P141: -3.57%
A142: 132 | B142: Cement | C142: RAMCOCEM | D142: 2021-07-29 | E142: 1039.35 | F142: 1039.70 | G142: 1031.95 | H142: 1024.55 | I142: 1016.80 | J142: 1047.10 | K142: 1054.85 | L142: 1062.25 | M142: 1047.45 | N142: 1032.3 | O142: 1751850 | P142: -1.90%
A143: 133 | B143: Banking | C143: RBLBANK | D143: 2021-07-29 | E143: 212.60 | F143: 213.72 | G143: 210.13 | H143: 207.67 | I143: 204.08 | J143: 216.18 | K143: 219.77 | L143: 222.23 | M143: 217.3 | N143: 211.25 | O143: 23942400 | P143: -1.05%
A144: 134 | B144: Power | C144: RECLTD | D144: 2021-07-29 | E144: 143.50 | F144: 143.77 | G144: 142.53 | H144: 141.57 | I144: 140.33 | J144: 144.73 | K144: 145.97 | L144: 146.93 | M144: 145 | N144: 142.8 | O144: 24126000 | P144: 4.31%
A145: 135 | B145: Oil_Gas | C145: RELIANCE | D145: 2021-07-29 | E145: 2098.25 | F145: 2102.15 | G145: 2086.30 | H145: 2074.35 | I145: 2058.50 | J145: 2114.10 | K145: 2129.95 | L145: 2141.90 | M145: 2118 | N145: 2090.2 | O145: 45609500 | P145: 3.58%
A146: 136 | B146: Metals | C146: SAIL | D146: 2021-07-29 | E146: 130.65 | F146: 131.57 | G146: 128.53 | H146: 126.42 | I146: 123.38 | J146: 133.68 | K146: 136.72 | L146: 138.83 | M146: 134.6 | N146: 129.45 | O146: 174923500 | P146: 0.52%
A147: 137 | B147: Finance | C147: SBILIFE | D147: 2021-07-29 | E147: 1001.60 | F147: 1006.87 | G147: 992.73 | H147: 983.87 | I147: 969.73 | J147: 1015.73 | K147: 1029.87 | L147: 1038.73 | M147: 1021 | N147: 998 | O147: 5886750 | P147: -7.38%
A148: 138 | B148: Banking | C148: SBIN | D148: 2021-07-29 | E148: 424.10 | F148: 426.05 | G148: 421.10 | H148: 418.10 | I148: 413.15 | J148: 429.05 | K148: 434.00 | L148: 437.00 | M148: 431 | N148: 423.05 | O148: 83280000 | P148: 3.14%
A149: 139 | B149: Cement | C149: SHREECEM | D149: 2021-07-29 | E149: 28291.55 | F149: 28356.50 | G149: 28101.15 | H149: 27910.75 | I149: 27655.40 | J149: 28546.90 | K149: 28802.25 | L149: 28992.65 | M149: 28611.85 | N149: 28166.1 | O149: 121250 | P149: 2.17%
A150: 140 | B150: Capital_Goods | C150: SIEMENS | D150: 2021-07-29 | E150: 2002.65 | F150: 2007.98 | G150: 1986.22 | H150: 1969.78 | I150: 1948.02 | J150: 2024.42 | K150: 2046.18 | L150: 2062.62 | M150: 2029.75 | N150: 1991.55 | O150: 1134375 | P150: 0.54%
A151: 141 | B151: Textile | C151: SRF | D151: 2021-07-29 | E151: 7118.65 | F151: 7149.55 | G151: 7069.10 | H151: 7019.55 | I151: 6939.10 | J151: 7199.10 | K151: 7279.55 | L151: 7329.10 | M151: 7230 | N151: 7100 | O151: 296625 | P151: -0.75%
A152: 142 | B152: Finance | C152: SRTRANSFIN | D152: 2021-07-29 | E152: 1366.45 | F152: 1376.05 | G152: 1347.10 | H152: 1327.75 | I152: 1298.80 | J152: 1395.40 | K152: 1424.35 | L152: 1443.70 | M152: 1405 | N152: 1356.7 | O152: 4450800 | P152: 0.80%
A153: 143 | B153: Pharma | C153: SUNPHARMA | D153: 2021-07-29 | E153: 681.20 | F153: 681.37 | G153: 676.83 | H153: 672.47 | I153: 667.93 | J153: 685.73 | K153: 690.27 | L153: 694.63 | M153: 685.9 | N153: 677 | O153: 37046800 | P153: -0.86%
A154: 144 | B154: Media | C154: SUNTV | D154: 2021-07-29 | E154: 539.50 | F154: 541.60 | G154: 534.30 | H154: 529.10 | I154: 521.80 | J154: 546.80 | K154: 554.10 | L154: 559.30 | M154: 548.9 | N154: 536.4 | O154: 12355500 | P154: 1.47%
A155: 145 | B155: Chemical | C155: TATACHEM | D155: 2021-07-29 | E155: 723.00 | F155: 725.67 | G155: 716.93 | H155: 710.87 | I155: 702.13 | J155: 731.73 | K155: 740.47 | L155: 746.53 | M155: 734.4 | N155: 719.6 | O155: 6812000 | P155: 0.04%
A156: 146 | B156: FMCG | C156: TATACONSUM | D156: 2021-07-29 | E156: 762.75 | F156: 766.00 | G156: 757.20 | H156: 751.65 | I156: 742.85 | J156: 771.55 | K156: 780.35 | L156: 785.90 | M156: 774.8 | N156: 760.45 | O156: 6882300 | P156: 0.53%
A157: 147 | B157: Automobile | C157: TATAMOTORS | D157: 2021-07-29 | E157: 342.95 | F157: 343.93 | G157: 339.77 | H157: 336.58 | I157: 332.42 | J157: 347.12 | K157: 351.28 | L157: 354.47 | M157: 348.1 | N157: 340.75 | O157: 91747200 | P157: 2.97%
A158: 148 | B158: Power | C158: TATAPOWER | D158: 2021-07-29 | E158: 123.40 | F158: 123.67 | G158: 121.93 | H158: 120.47 | I158: 118.73 | J158: 125.13 | K158: 126.87 | L158: 128.33 | M158: 125.4 | N158: 122.2 | O158: 129093750 | P158: 2.83%
A159: 149 | B159: Metals | C159: TATASTEEL | D159: 2021-07-29 | E159: 1177.75 | F159: 1181.65 | G159: 1165.45 | H159: 1153.15 | I159: 1136.95 | J159: 1193.95 | K159: 1210.15 | L159: 1222.45 | M159: 1197.85 | N159: 1169.35 | O159: 46572350 | P159: -0.35%
A160: 150 | B160: Technology | C160: TCS | D160: 2021-07-29 | E160: 3348.45 | F160: 3353.35 | G160: 3332.70 | H160: 3316.95 | I160: 3296.30 | J160: 3369.10 | K160: 3389.75 | L160: 3405.50 | M160: 3374 | N160: 3337.6 | O160: 7835700 | P160: 0.88%
A161: 151 | B161: Technology | C161: TECHM | D161: 2021-07-29 | E161: 1064.70 | F161: 1069.47 | G161: 1055.23 | H161: 1045.77 | I161: 1031.53 | J161: 1078.93 | K161: 1093.17 | L161: 1102.63 | M161: 1083.7 | N161: 1060 | O161: 13764600 | P161: 4.26%
A162: 152 | B162: FMCG | C162: TITAN | D162: 2021-07-29 | E162: 1736.90 | F162: 1738.38 | G162: 1725.97 | H162: 1715.03 | I162: 1702.62 | J162: 1749.32 | K162: 1761.73 | L162: 1772.67 | M162: 1750.8 | N162: 1727.45 | O162: 4643625 | P162: 0.03%
A163: 153 | B163: Pharma | C163: TORNTPHARM | D163: 2021-07-29 | E163: 2934.85 | F163: 2935.27 | G163: 2905.58 | H163: 2876.32 | I163: 2846.63 | J163: 2964.53 | K163: 2994.22 | L163: 3023.48 | M163: 2964.95 | N163: 2906 | O163: 668000 | P163: 2.81%
A164: 154 | B164: Power | C164: TORNTPOWER | D164: 2021-07-29 | E164: 456.40 | F164: 454.65 | G164: 451.05 | H164: 445.70 | I164: 442.10 | J164: 460.00 | K164: 463.60 | L164: 468.95 | M164: 458.25 | N164: 449.3 | O164: 3372000 | P164: -3.02%
A165: 155 | B165: Others | C165: TRENT | D165: 2021-07-29 | E165: 864.35 | F165: 870.12 | G165: 855.23 | H165: 846.12 | I165: 831.23 | J165: 879.23 | K165: 894.12 | L165: 903.23 | M165: 885 | N165: 861 | O165: 857675 | P165: -2.79%
A166: 156 | B166: Automobile | C166: TVSMOTOR | D166: 2021-07-29 | E166: 615.60 | F166: 618.43 | G166: 610.82 | H166: 606.03 | I166: 598.42 | J166: 623.22 | K166: 630.83 | L166: 635.62 | M166: 626.05 | N166: 613.65 | O166: 5493600 | P166: 1.00%
A167: 157 | B167: FMCG | C167: UBL | D167: 2021-07-29 | E167: 1450.00 | F167: 1443.33 | G167: 1429.27 | H167: 1408.53 | I167: 1394.47 | J167: 1464.07 | K167: 1478.13 | L167: 1498.87 | M167: 1457.4 | N167: 1422.6 | O167: 1995000 | P167: -8.09%
A168: 158 | B168: Cement | C168: ULTRACEMCO | D168: 2021-07-29 | E168: 6844.55 | F168: 6847.83 | G168: 6805.77 | H168: 6766.98 | I168: 6724.92 | J168: 6886.62 | K168: 6928.68 | L168: 6967.47 | M168: 6889.9 | N168: 6809.05 | O168: 2065100 | P168: -0.79%
A169: 159 | B169: Chemical | C169: UPL | D169: 2021-07-29 | E169: 801.00 | F169: 803.50 | G169: 792.60 | H169: 784.20 | I169: 773.30 | J169: 811.90 | K169: 822.80 | L169: 831.20 | M169: 814.4 | N169: 795.1 | O169: 21733400 | P169: -0.49%
A170: 160 | B170: Metals | C170: VEDL | D170: 2021-07-29 | E170: 267.35 | F170: 267.70 | G170: 264.70 | H170: 262.05 | I170: 259.05 | J170: 270.35 | K170: 273.35 | L170: 276.00 | M170: 270.7 | N170: 265.05 | O170: 119160900 | P170: -0.52%
A171: 161 | B171: Capital_Goods | C171: VOLTAS | D171: 2021-07-29 | E171: 1033.65 | F171: 1036.67 | G171: 1024.58 | H171: 1015.52 | I171: 1003.43 | J171: 1045.73 | K171: 1057.82 | L171: 1066.88 | M171: 1048.75 | N171: 1027.6 | O171: 2868500 | P171: -3.73%
A172: 162 | B172: Technology | C172: WIPRO | D172: 2021-07-29 | E172: 545.85 | F172: 548.77 | G172: 541.58 | H172: 537.32 | I172: 530.13 | J172: 553.03 | K172: 560.22 | L172: 564.48 | M172: 555.95 | N172: 544.5 | O172: 30628800 | P172: 4.73%
A173: 163 | B173: Media | C173: ZEEL | D173: 2021-07-29 | E173: 217.00 | F173: 218.32 | G173: 214.68 | H173: 212.37 | I173: 208.73 | J173: 220.63 | K173: 224.27 | L173: 226.58 | M173: 221.95 | N173: 216 | O173: 68772000 | P173: -0.30%
A184: Pivot Point: This is trigger point for intra day buy/sell based on the price range of the previous day
A185: As per the tool,the trader should take BUY position just above Pivot and keep the stop loss of pivot point and the first target would be Resistance 1(R1)
A186: If R1 is crossed then R2 becomes the next target with stop loss of at R1
A187: Similarly if price goes below pivot point then the trader should sell and keep a stop loss of pivot point and the first target would be S1
A188: If S1 is crossed then S2 becomes the next target with stop loss of at S1
A190: Disclaimer:
A191: This document has been prepared by the Retail Research Desk of Asit C Mehta
A192: Investment Intermediates Ltd. and is meant for use of the recipient only
A193: and is not for circulation. This document is not to be reported or
A194: copied or made available to others. It should not be considered to be
A195: taken as an offer to sell or a solicitation to buy any security. The
A196: information contained herein is from sources believed reliable. We do
A197: not represent that it is accurate or complete and it should not be
A198: relied upon as such. We may from time to time have positions in and buy
A199: and sell securities referred to herein

Sheet Cash Intra
M5: Back to Main Page
A6: FOR INTRA DAY TRADING | K6: =Main!B10 -> 2021-06-30
A8: Sr.no | C8: CLOSE RATE | D8: Pivot Point | E8: Supports | H8: Resistances
C9: Point | E9: S1 | F9: S2 | G9: S3 | H9: R1 | I9: R2 | J9: R3 | K9: HIGH | L9: LOW | M9: Total Trade Quanity in Lakhs
A10: 1 | B10: Nifty 50 | C10: 15748.45 | D10: 15769.47 | E10: 15703.03 | F10: 15657.62 | G10: 15591.18 | H10: 15814.88 | I10: 15881.32 | J10: 15926.73 | K10: 15835.9 | L10: 15724.05
A11: 2 | B11: Nifty Bank | C11: 35010.3 | D11: 35087.15 | E11: 34836.85 | F11: 34663.40 | G11: 34413.10 | H11: 35260.60 | I11: 35510.90 | J11: 35684.35 | K11: 35337.45 | L11: 34913.7
A12: 3 | B12: Nifty CPSE | C12: 2055.95 | D12: 2061.68 | E12: 2044.72 | F12: 2033.48 | G12: 2016.52 | H12: 2072.92 | I12: 2089.88 | J12: 2101.12 | K12: 2078.65 | L12: 2050.45
A13: 4 | B13: Nifty Infra | C13: 4350.05 | D13: 4358.35 | E13: 4332.15 | F13: 4314.25 | G13: 4288.05 | H13: 4376.25 | I13: 4402.45 | J13: 4420.35 | K13: 4384.55 | L13: 4340.45
A14: 5 | B14: Nifty IT | C14: 28986.25 | D14: 29034.75 | E14: 28885.65 | F14: 28785.05 | G14: 28635.95 | H14: 29135.35 | I14: 29284.45 | J14: 29385.05 | K14: 29183.85 | L14: 28934.15
A15: 6 | B15: Nifty PSE | C15: 3609.7 | D15: 3618.65 | E15: 3588.50 | F15: 3567.30 | G15: 3537.15 | H15: 3639.85 | I15: 3670.00 | J15: 3691.20 | K15: 3648.8 | L15: 3597.45
A16: 7 | B16: Nifty Midcap 50 | C16: 7474.2 | D16: 7495.98 | E16: 7433.27 | F16: 7392.33 | G16: 7329.62 | H16: 7536.92 | I16: 7599.63 | J16: 7640.57 | K16: 7558.7 | L16: 7455.05
A17: 8 | B17: ACC | C17: 2053.05 | D17: 2052.65 | E17: 2040.40 | F17: 2027.75 | G17: 2015.50 | H17: 2065.30 | I17: 2077.55 | J17: 2090.20 | K17: 2064.9 | L17: 2040 | M17: 2.79895
A18: 9 | B18: AUBANK | C18: 1077.3 | D18: 1067.62 | E18: 1049.68 | F18: 1022.07 | G18: 1004.13 | H18: 1095.23 | I18: 1113.17 | J18: 1140.78 | K18: 1085.55 | L18: 1040 | M18: 22.10068
A19: 10 | B19: AARTIIND | C19: 863.95 | D19: 866.60 | E19: 854.20 | F19: 844.45 | G19: 832.05 | H19: 876.35 | I19: 888.75 | J19: 898.50 | K19: 879 | L19: 856.85 | M19: 5.88826
A20: 11 | B20: ABBOTINDIA | C20: 16537.35 | D20: 16625.78 | E20: 16341.57 | F20: 16145.78 | G20: 15861.57 | H20: 16821.57 | I20: 17105.78 | J20: 17301.57 | K20: 16910 | L20: 16430 | M20: 0.08739
A21: 12 | B21: ADANIENT | C21: 1523.55 | D21: 1528.42 | E21: 1508.13 | F21: 1492.72 | G21: 1472.43 | H21: 1543.83 | I21: 1564.12 | J21: 1579.53 | K21: 1548.7 | L21: 1513 | M21: 55.51918
A22: 13 | B22: ADANIGREEN | C22: 1126.3 | D22: 1123.80 | E22: 1102.60 | F22: 1078.90 | G22: 1057.70 | H22: 1147.50 | I22: 1168.70 | J22: 1192.40 | K22: 1145 | L22: 1100.1 | M22: 19.95959
A23: 14 | B23: ADANIPORTS | C23: 711 | D23: 714.33 | E23: 705.67 | F23: 700.33 | G23: 691.67 | H23: 719.67 | I23: 728.33 | J23: 733.67 | K23: 723 | L23: 709 | M23: 93.03151
A24: 15 | B24: ATGL | C24: 1073.5 | D24: 1073.50 | E24: 1073.50 | F24: 1073.50 | G24: 1073.50 | H24: 1073.50 | I24: 1073.50 | J24: 1073.50 | K24: 1073.5 | L24: 1073.5 | M24: 1.49796
A25: 16 | B25: ADANITRANS | C25: 1115.2 | D25: 1138.68 | E25: 1077.57 | F25: 1039.93 | G25: 978.82 | H25: 1176.32 | I25: 1237.43 | J25: 1275.07 | K25: 1199.8 | L25: 1101.05 | M25: 3.34173
A26: 17 | B26: ABCAPITAL | C26: 117.15 | D26: 117.43 | E26: 116.17 | F26: 115.18 | G26: 113.92 | H26: 118.42 | I26: 119.68 | J26: 120.67 | K26: 118.7 | L26: 116.45 | M26: 21.22213
A27: 18 | B27: ABFRL | C27: 213.6 | D27: 215.48 | E27: 210.97 | F27: 208.33 | G27: 203.82 | H27: 218.12 | I27: 222.63 | J27: 225.27 | K27: 220 | L27: 212.85 | M27: 15.0953
A28: 19 | B28: AJANTPHARM | C28: 2085.85 | D28: 2063.55 | E28: 2012.30 | F28: 1938.75 | G28: 1887.50 | H28: 2137.10 | I28: 2188.35 | J28: 2261.90 | K28: 2114.8 | L28: 1990 | M28: 4.7899
A29: 20 | B29: APLLTD | C29: 986.8 | D29: 990.17 | E29: 975.83 | F29: 964.87 | G29: 950.53 | H29: 1001.13 | I29: 1015.47 | J29: 1026.43 | K29: 1004.5 | L29: 979.2 | M29: 2.851
A30: 21 | B30: ALKEM | C30: 3195.75 | D30: 3182.27 | E30: 3129.53 | F30: 3063.32 | G30: 3010.58 | H30: 3248.48 | I30: 3301.22 | J30: 3367.43 | K30: 3235 | L30: 3116.05 | M30: 1.9951
A31: 22 | B31: AMARAJABAT | C31: 745.9 | D31: 748.63 | E31: 742.32 | F31: 738.73 | G31: 732.42 | H31: 752.22 | I31: 758.53 | J31: 762.12 | K31: 754.95 | L31: 745.05 | M31: 6.19799
A32: 23 | B32: AMBUJACEM | C32: 344.4 | D32: 344.07 | E32: 342.33 | F32: 340.27 | G32: 338.53 | H32: 346.13 | I32: 347.87 | J32: 349.93 | K32: 345.8 | L32: 342 | M32: 16.71869
A33: 24 | B33: APOLLOHOSP | C33: 3591.15 | D33: 3538.70 | E33: 3472.45 | F33: 3353.75 | G33: 3287.50 | H33: 3657.40 | I33: 3723.65 | J33: 3842.35 | K33: 3604.95 | L33: 3420 | M33: 22.68589
A34: 25 | B34: APOLLOTYRE | C34: 226.45 | D34: 229.10 | E34: 222.20 | F34: 217.95 | G34: 211.05 | H34: 233.35 | I34: 240.25 | J34: 244.50 | K34: 236 | L34: 224.85 | M34: 107.36632
A35: 26 | B35: ASHOKLEY | C35: 123.55 | D35: 124.23 | E35: 122.47 | F35: 121.38 | G35: 119.62 | H35: 125.32 | I35: 127.08 | J35: 128.17 | K35: 126 | L35: 123.15 | M35: 128.22253
A36: 27 | B36: ASIANPAINT | C36: 3001.5 | D36: 2999.47 | E36: 2975.08 | F36: 2948.67 | G36: 2924.28 | H36: 3025.88 | I36: 3050.27 | J36: 3076.68 | K36: 3023.85 | L36: 2973.05 | M36: 12.42734
A37: 28 | B37: AUROPHARMA | C37: 967.2 | D37: 970.20 | E37: 960.50 | F37: 953.80 | G37: 944.10 | H37: 976.90 | I37: 986.60 | J37: 993.30 | K37: 979.9 | L37: 963.5 | M37: 12.43208
A38: 29 | B38: DMART | C38: 3270.85 | D38: 3290.52 | E38: 3231.33 | F38: 3191.82 | G38: 3132.63 | H38: 3330.03 | I38: 3389.22 | J38: 3428.73 | K38: 3349.7 | L38: 3251 | M38: 3.10346
A39: 30 | B39: AXISBANK | C39: 751.95 | D39: 755.18 | E39: 746.82 | F39: 741.68 | G39: 733.32 | H39: 760.32 | I39: 768.68 | J39: 773.82 | K39: 763.55 | L39: 750.05 | M39: 75.00655
A40: 31 | B40: BAJAJ-AUTO | C40: 4124.65 | D40: 4143.50 | E40: 4098.15 | F40: 4071.65 | G40: 4026.30 | H40: 4170.00 | I40: 4215.35 | J40: 4241.85 | K40: 4188.85 | L40: 4117 | M40: 3.32405
A41: 32 | B41: BAJFINANCE | C41: 6052.4 | D41: 6064.05 | E41: 5990.45 | F41: 5928.50 | G41: 5854.90 | H41: 6126.00 | I41: 6199.60 | J41: 6261.55 | K41: 6137.65 | L41: 6002.1 | M41: 13.10079
A42: 33 | B42: BAJAJFINSV | C42: 12299.9 | D42: 12353.65 | E42: 12217.30 | F42: 12134.70 | G42: 11998.35 | H42: 12436.25 | I42: 12572.60 | J42: 12655.20 | K42: 12490 | L42: 12271.05 | M42: 1.57178
A43: 34 | B43: BAJAJHLDNG | C43: 3581.55 | D43: 3600.40 | E43: 3534.95 | F43: 3488.35 | G43: 3422.90 | H43: 3647.00 | I43: 3712.45 | J43: 3759.05 | K43: 3665.85 | L43: 3553.8 | M43: 0.44642
A44: 35 | B44: BALKRISIND | C44: 2242.65 | D44: 2248.87 | E44: 2229.78 | F44: 2216.92 | G44: 2197.83 | H44: 2261.73 | I44: 2280.82 | J44: 2293.68 | K44: 2267.95 | L44: 2236 | M44: 1.47567
A45: 36 | B45: BANDHANBNK | C45: 335.8 | D45: 339.60 | E45: 330.20 | F45: 324.60 | G45: 315.20 | H45: 345.20 | I45: 354.60 | J45: 360.20 | K45: 349 | L45: 334 | M45: 65.53062
A46: 37 | B46: BANKBARODA | C46: 87.1 | D46: 87.47 | E46: 86.03 | F46: 84.97 | G46: 83.53 | H46: 88.53 | I46: 89.97 | J46: 91.03 | K46: 88.9 | L46: 86.4 | M46: 636.82439
A47: 38 | B47: BANKINDIA | C47: 78.65 | D47: 79.15 | E47: 77.60 | F47: 76.55 | G47: 75.00 | H47: 80.20 | I47: 81.75 | J47: 82.80 | K47: 80.7 | L47: 78.1 | M47: 39.4239
A48: 39 | B48: BATAINDIA | C48: 1601 | D48: 1608.73 | E48: 1590.52 | F48: 1580.03 | G48: 1561.82 | H48: 1619.22 | I48: 1637.43 | J48: 1647.92 | K48: 1626.95 | L48: 1598.25 | M48: 3.75572
A49: 40 | B49: BERGEPAINT | C49: 804.35 | D49: 807.20 | E49: 800.40 | F49: 796.45 | G49: 789.65 | H49: 811.15 | I49: 817.95 | J49: 821.90 | K49: 814 | L49: 803.25 | M49: 4.04991
A50: 41 | B50: BEL | C50: 174.65 | D50: 174.35 | E50: 172.85 | F50: 171.05 | G50: 169.55 | H50: 176.15 | I50: 177.65 | J50: 179.45 | K50: 175.85 | L50: 172.55 | M50: 165.35082
A51: 42 | B51: BHARATFORG | C51: 747.55 | D51: 750.73 | E51: 737.52 | F51: 727.48 | G51: 714.27 | H51: 760.77 | I51: 773.98 | J51: 784.02 | K51: 763.95 | L51: 740.7 | M51: 44.42304
A52: 43 | B52: BHEL | C52: 64.9 | D52: 65.32 | E52: 63.88 | F52: 62.87 | G52: 61.43 | H52: 66.33 | I52: 67.77 | J52: 68.78 | K52: 66.75 | L52: 64.3 | M52: 606.9592
A53: 44 | B53: BPCL | C53: 466.25 | D53: 466.92 | E53: 464.33 | F53: 462.42 | G53: 459.83 | H53: 468.83 | I53: 471.42 | J53: 473.33 | K53: 469.5 | L53: 465 | M53: 29.60797
A54: 45 | B54: BHARTIARTL | C54: 524.95 | D54: 527.07 | E54: 521.88 | F54: 518.82 | G54: 513.63 | H54: 530.13 | I54: 535.32 | J54: 538.38 | K54: 532.25 | L54: 524 | M54: 85.53386
A55: 46 | B55: BIOCON | C55: 407.55 | D55: 406.85 | E55: 402.70 | F55: 397.85 | G55: 393.70 | H55: 411.70 | I55: 415.85 | J55: 420.70 | K55: 411 | L55: 402 | M55: 22.39813
A56: 47 | B56: BBTC | C56: 1337.4 | D56: 1346.20 | E56: 1325.20 | F56: 1313.00 | G56: 1292.00 | H56: 1358.40 | I56: 1379.40 | J56: 1391.60 | K56: 1367.2 | L56: 1334 | M56: 1.15386
A57: 48 | B57: BOSCHLTD | C57: 15025.6 | D57: 15081.87 | E57: 14913.73 | F57: 14801.87 | G57: 14633.73 | H57: 15193.73 | I57: 15361.87 | J57: 15473.73 | K57: 15250 | L57: 14970 | M57: 0.30973
A58: 49 | B58: BRITANNIA | C58: 3657.15 | D58: 3644.77 | E58: 3622.43 | F58: 3587.72 | G58: 3565.38 | H58: 3679.48 | I58: 3701.82 | J58: 3736.53 | K58: 3667.1 | L58: 3610.05 | M58: 3.57263
A59: 50 | B59: CESC | C59: 777.35 | D59: 777.03 | E59: 768.07 | F59: 758.78 | G59: 749.82 | H59: 786.32 | I59: 795.28 | J59: 804.57 | K59: 786 | L59: 767.75 | M59: 4.89151
A60: 51 | B60: CADILAHC | C60: 640.65 | D60: 640.95 | E60: 633.00 | F60: 625.35 | G60: 617.40 | H60: 648.60 | I60: 656.55 | J60: 664.20 | K60: 648.9 | L60: 633.3 | M60: 58.96727
A61: 52 | B61: CANBK | C61: 153.75 | D61: 154.93 | E61: 152.12 | F61: 150.48 | G61: 147.67 | H61: 156.57 | I61: 159.38 | J61: 161.02 | K61: 157.75 | L61: 153.3 | M61: 99.26727
A62: 53 | B62: CASTROLIND | C62: 143.85 | D62: 144.10 | E62: 143.00 | F62: 142.15 | G62: 141.05 | H62: 144.95 | I62: 146.05 | J62: 146.90 | K62: 145.2 | L62: 143.25 | M62: 4.95514
A63: 54 | B63: CHOLAFIN | C63: 519.35 | D63: 520.68 | E63: 514.37 | F63: 509.38 | G63: 503.07 | H63: 525.67 | I63: 531.98 | J63: 536.97 | K63: 527 | L63: 515.7 | M63: 25.68036
A64: 55 | B64: CIPLA | C64: 979.6 | D64: 976.22 | E64: 963.43 | F64: 947.27 | G64: 934.48 | H64: 992.38 | I64: 1005.17 | J64: 1021.33 | K64: 989 | L64: 960.05 | M64: 43.00755
A65: 56 | B65: CUB | C65: 169.75 | D65: 170.08 | E65: 167.67 | F65: 165.58 | G65: 163.17 | H65: 172.17 | I65: 174.58 | J65: 176.67 | K65: 172.5 | L65: 168 | M65: 17.81994
A66: 57 | B66: COALINDIA | C66: 144.5 | D66: 145.45 | E66: 143.00 | F66: 141.50 | G66: 139.05 | H66: 146.95 | I66: 149.40 | J66: 150.90 | K66: 147.9 | L66: 143.95 | M66: 215.76435
A67: 58 | B67: COFORGE | C67: 4061.3 | D67: 4071.72 | E67: 4021.58 | F67: 3981.87 | G67: 3931.73 | H67: 4111.43 | I67: 4161.57 | J67: 4201.28 | K67: 4121.85 | L67: 4032 | M67: 2.89428
A68: 59 | B68: COLPAL | C68: 1669.55 | D68: 1674.85 | E68: 1659.70 | F68: 1649.85 | G68: 1634.70 | H68: 1684.70 | I68: 1699.85 | J68: 1709.70 | K68: 1690 | L68: 1665 | M68: 5.12449
A69: 60 | B69: CONCOR | C69: 694.3 | D69: 698.02 | E69: 688.78 | F69: 683.27 | G69: 674.03 | H69: 703.53 | I69: 712.77 | J69: 718.28 | K69: 707.25 | L69: 692.5 | M69: 5.17367
A70: 61 | B70: COROMANDEL | C70: 898.6 | D70: 905.42 | E70: 887.28 | F70: 875.97 | G70: 857.83 | H70: 916.73 | I70: 934.87 | J70: 946.18 | K70: 923.55 | L70: 894.1 | M70: 3.41182
A71: 62 | B71: CROMPTON | C71: 421.95 | D71: 423.73 | E71: 413.97 | F71: 405.98 | G71: 396.22 | H71: 431.72 | I71: 441.48 | J71: 449.47 | K71: 433.5 | L71: 415.75 | M71: 14.17476
A72: 63 | B72: CUMMINSIND | C72: 850.95 | D72: 857.25 | E72: 835.25 | F72: 819.55 | G72: 797.55 | H72: 872.95 | I72: 894.95 | J72: 910.65 | K72: 879.25 | L72: 841.55 | M72: 9.5094
A73: 64 | B73: DLF | C73: 287.2 | D73: 289.52 | E73: 282.68 | F73: 278.17 | G73: 271.33 | H73: 294.03 | I73: 300.87 | J73: 305.38 | K73: 296.35 | L73: 285 | M73: 79.69215
A74: 65 | B74: DABUR | C74: 567.35 | D74: 566.47 | E74: 562.43 | F74: 557.52 | G74: 553.48 | H74: 571.38 | I74: 575.42 | J74: 580.33 | K74: 570.5 | L74: 561.55 | M74: 17.61569
A75: 66 | B75: DALBHARAT | C75: 1874.15 | D75: 1872.12 | E75: 1856.23 | F75: 1838.32 | G75: 1822.43 | H75: 1890.03 | I75: 1905.92 | J75: 1923.83 | K75: 1888 | L75: 1854.2 | M75: 0.68307
A76: 67 | B76: DHANI | C76: 177.05 | D76: 178.67 | E76: 172.98 | F76: 168.92 | G76: 163.23 | H76: 182.73 | I76: 188.42 | J76: 192.48 | K76: 184.35 | L76: 174.6 | M76: 26.70808
A77: 68 | B77: DIVISLAB | C77: 4356.15 | D77: 4341.88 | E77: 4314.27 | F77: 4272.38 | G77: 4244.77 | H77: 4383.77 | I77: 4411.38 | J77: 4453.27 | K77: 4369.5 | L77: 4300 | M77: 3.74334
A78: 69 | B78: LALPATHLAB | C78: 3184.25 | D78: 3181.70 | E78: 3149.50 | F78: 3114.75 | G78: 3082.55 | H78: 3216.45 | I78: 3248.65 | J78: 3283.40 | K78: 3213.9 | L78: 3146.95 | M78: 2.92037
A79: 70 | B79: DRREDDY | C79: 5433.1 | D79: 5422.68 | E79: 5390.42 | F79: 5347.73 | G79: 5315.47 | H79: 5465.37 | I79: 5497.63 | J79: 5540.32 | K79: 5454.95 | L79: 5380 | M79: 5.76261
A80: 71 | B80: EDELWEISS | C80: 72.2 | D80: 72.68 | E80: 71.47 | F80: 70.73 | G80: 69.52 | H80: 73.42 | I80: 74.63 | J80: 75.37 | K80: 73.9 | L80: 71.95 | M80: 12.69472
A81: 72 | B81: EICHERMOT | C81: 2705.1 | D81: 2718.03 | E81: 2687.07 | F81: 2669.03 | G81: 2638.07 | H81: 2736.07 | I81: 2767.03 | J81: 2785.07 | K81: 2749 | L81: 2700 | M81: 2.90136
A82: 73 | B82: EMAMILTD | C82: 549.9 | D82: 547.42 | E82: 542.83 | F82: 535.77 | G82: 531.18 | H82: 554.48 | I82: 559.07 | J82: 566.13 | K82: 552 | L82: 540.35 | M82: 2.76323
A83: 74 | B83: ENDURANCE | C83: 1593.35 | D83: 1581.22 | E83: 1557.43 | F83: 1521.52 | G83: 1497.73 | H83: 1617.13 | I83: 1640.92 | J83: 1676.83 | K83: 1605 | L83: 1545.3 | M83: 1.76827
A84: 75 | B84: ESCORTS | C84: 1195.35 | D84: 1199.90 | E84: 1184.85 | F84: 1174.35 | G84: 1159.30 | H84: 1210.40 | I84: 1225.45 | J84: 1235.95 | K84: 1214.95 | L84: 1189.4 | M84: 9.50899
A85: 76 | B85: EXIDEIND | C85: 182.85 | D85: 183.30 | E85: 181.65 | F85: 180.45 | G85: 178.80 | H85: 184.50 | I85: 186.15 | J85: 187.35 | K85: 184.95 | L85: 182.1 | M85: 20.05216
A86: 77 | B86: FEDERALBNK | C86: 86.5 | D86: 86.75 | E86: 85.75 | F86: 85.00 | G86: 84.00 | H86: 87.50 | I86: 88.50 | J86: 89.25 | K86: 87.75 | L86: 86 | M86: 171.0026
A87: 78 | B87: FORTIS | C87: 240.3 | D87: 240.57 | E87: 235.78 | F87: 231.27 | G87: 226.48 | H87: 245.08 | I87: 249.87 | J87: 254.38 | K87: 245.35 | L87: 236.05 | M87: 35.67997
A88: 79 | B88: FRETAIL | C88: 63.7 | D88: 64.35 | E88: 62.75 | F88: 61.80 | G88: 60.20 | H88: 65.30 | I88: 66.90 | J88: 67.85 | K88: 65.95 | L88: 63.4 | M88: 18.1857
A89: 80 | B89: GAIL | C89: 152 | D89: 152.37 | E89: 150.98 | F89: 149.97 | G89: 148.58 | H89: 153.38 | I89: 154.77 | J89: 155.78 | K89: 153.75 | L89: 151.35 | M89: 64.09358
A90: 81 | B90: GMRINFRA | C90: 30.7 | D90: 30.95 | E90: 30.25 | F90: 29.80 | G90: 29.10 | H90: 31.40 | I90: 32.10 | J90: 32.55 | K90: 31.65 | L90: 30.5 | M90: 520.48148
A91: 82 | B91: GICRE | C91: 204.3 | D91: 203.60 | E91: 199.45 | F91: 194.60 | G91: 190.45 | H91: 208.45 | I91: 212.60 | J91: 217.45 | K91: 207.75 | L91: 198.75 | M91: 25.89861
A92: 83 | B92: GLENMARK | C92: 655.2 | D92: 659.83 | E92: 648.37 | F92: 641.53 | G92: 630.07 | H92: 666.67 | I92: 678.13 | J92: 684.97 | K92: 671.3 | L92: 653 | M92: 14.33644
A93: 84 | B93: GODREJAGRO | C93: 638.4 | D93: 632.08 | E93: 615.32 | F93: 592.23 | G93: 575.47 | H93: 655.17 | I93: 671.93 | J93: 695.02 | K93: 648.85 | L93: 609 | M93: 18.55259
A94: 85 | B94: GODREJCP | C94: 877.8 | D94: 886.28 | E94: 864.57 | F94: 851.33 | G94: 829.62 | H94: 899.52 | I94: 921.23 | J94: 934.47 | K94: 908 | L94: 873.05 | M94: 42.06824
A95: 86 | B95: GODREJIND | C95: 583.6 | D95: 583.93 | E95: 570.87 | F95: 558.13 | G95: 545.07 | H95: 596.67 | I95: 609.73 | J95: 622.47 | K95: 597 | L95: 571.2 | M95: 8.19141
A96: 87 | B96: GODREJPROP | C96: 1406.05 | D96: 1404.55 | E96: 1395.45 | F96: 1384.85 | G96: 1375.75 | H96: 1415.15 | I96: 1424.25 | J96: 1434.85 | K96: 1413.65 | L96: 1393.95 | M96: 3.04321
A97: 88 | B97: GRASIM | C97: 1503.3 | D97: 1508.52 | E97: 1493.78 | F97: 1484.27 | G97: 1469.53 | H97: 1518.03 | I97: 1532.77 | J97: 1542.28 | K97: 1523.25 | L97: 1499 | M97: 7.34358
A98: 89 | B98: GUJGASLTD | C98: 662.45 | D98: 667.82 | E98: 652.73 | F98: 643.02 | G98: 627.93 | H98: 677.53 | I98: 692.62 | J98: 702.33 | K98: 682.9 | L98: 658.1 | M98: 28.72417
A99: 90 | B99: GSPL | C99: 335.2 | D99: 333.57 | E99: 330.73 | F99: 326.27 | G99: 323.43 | H99: 338.03 | I99: 340.87 | J99: 345.33 | K99: 336.4 | L99: 329.1 | M99: 4.92726
A100: 91 | B100: HCLTECH | C100: 983.6 | D100: 986.00 | E100: 978.10 | F100: 972.60 | G100: 964.70 | H100: 991.50 | I100: 999.40 | J100: 1004.90 | K100: 993.9 | L100: 980.5 | M100: 18.9517
A101: 92 | B101: HDFCAMC | C101: 2944 | D101: 2950.30 | E101: 2923.70 | F101: 2903.40 | G101: 2876.80 | H101: 2970.60 | I101: 2997.20 | J101: 3017.50 | K101: 2976.9 | L101: 2930 | M101: 2.26803
A102: 93 | B102: HDFCBANK | C102: 1502.05 | D102: 1500.80 | E102: 1493.40 | F102: 1484.75 | G102: 1477.35 | H102: 1509.45 | I102: 1516.85 | J102: 1525.50 | K102: 1508.2 | L102: 1492.15 | M102: 54.85846
A103: 94 | B103: HDFCLIFE | C103: 686.5 | D103: 689.68 | E103: 676.87 | F103: 667.23 | G103: 654.42 | H103: 699.32 | I103: 712.13 | J103: 721.77 | K103: 702.5 | L103: 680.05 | M103: 308.20343
A104: 95 | B104: HAVELLS | C104: 978.8 | D104: 984.15 | E104: 971.65 | F104: 964.50 | G104: 952.00 | H104: 991.30 | I104: 1003.80 | J104: 1010.95 | K104: 996.65 | L104: 977 | M104: 11.04845
A105: 96 | B105: HEROMOTOCO | C105: 2927.5 | D105: 2933.35 | E105: 2909.15 | F105: 2890.80 | G105: 2866.60 | H105: 2951.70 | I105: 2975.90 | J105: 2994.25 | K105: 2957.55 | L105: 2915 | M105: 4.70337
A106: 97 | B106: HINDALCO | C106: 374.25 | D106: 376.82 | E106: 370.13 | F106: 366.02 | G106: 359.33 | H106: 380.93 | I106: 387.62 | J106: 391.73 | K106: 383.5 | L106: 372.7 | M106: 91.06037
A107: 98 | B107: HINDPETRO | C107: 292.55 | D107: 294.23 | E107: 289.07 | F107: 285.58 | G107: 280.42 | H107: 297.72 | I107: 302.88 | J107: 306.37 | K107: 299.4 | L107: 290.75 | M107: 42.92255
A108: 99 | B108: HINDUNILVR | C108: 2492.55 | D108: 2478.35 | E108: 2459.20 | F108: 2425.85 | G108: 2406.70 | H108: 2511.70 | I108: 2530.85 | J108: 2564.20 | K108: 2497.5 | L108: 2445 | M108: 13.54397
A109: 100 | B109: HINDZINC | C109: 340.1 | D109: 338.80 | E109: 336.60 | F109: 333.10 | G109: 330.90 | H109: 342.30 | I109: 344.50 | J109: 348.00 | K109: 341 | L109: 335.3 | M109: 6.47407
A110: 101 | B110: HUDCO | C110: 55.15 | D110: 55.45 | E110: 54.15 | F110: 53.15 | G110: 51.85 | H110: 56.45 | I110: 57.75 | J110: 58.75 | K110: 56.75 | L110: 54.45 | M110: 67.05207
A111: 102 | B111: HDFC | C111: 2501.2 | D111: 2496.03 | E111: 2482.07 | F111: 2462.93 | G111: 2448.97 | H111: 2515.17 | I111: 2529.13 | J111: 2548.27 | K111: 2510 | L111: 2476.9 | M111: 26.71608
A112: 103 | B112: ICICIBANK | C112: 640.1 | D112: 641.77 | E112: 634.78 | F112: 629.47 | G112: 622.48 | H112: 647.08 | I112: 654.07 | J112: 659.38 | K112: 648.75 | L112: 636.45 | M112: 122.2547
A113: 104 | B113: ICICIGI | C113: 1581.9 | D113: 1587.63 | E113: 1567.27 | F113: 1552.63 | G113: 1532.27 | H113: 1602.27 | I113: 1622.63 | J113: 1637.27 | K113: 1608 | L113: 1573 | M113: 5.75662
A114: 105 | B114: ICICIPRULI | C114: 614.7 | D114: 614.90 | E114: 610.80 | F114: 606.90 | G114: 602.80 | H114: 618.80 | I114: 622.90 | J114: 626.80 | K114: 619 | L114: 611 | M114: 13.27365
A115: 106 | B115: ISEC | C115: 636.2 | D115: 638.73 | E115: 624.72 | F115: 613.23 | G115: 599.22 | H115: 650.22 | I115: 664.23 | J115: 675.72 | K115: 652.75 | L115: 627.25 | M115: 6.09343
A116: 107 | B116: IDFCFIRSTB | C116: 55.85 | D116: 56.32 | E116: 55.28 | F116: 54.72 | G116: 53.68 | H116: 56.88 | I116: 57.92 | J116: 58.48 | K116: 57.35 | L116: 55.75 | M116: 347.93174
A117: 108 | B117: ITC | C117: 203.3 | D117: 203.92 | E117: 202.53 | F117: 201.77 | G117: 200.38 | H117: 204.68 | I117: 206.07 | J117: 206.83 | K117: 205.3 | L117: 203.15 | M117: 133.26068
A118: 109 | B118: IBULHSGFIN | C118: 264 | D118: 265.63 | E118: 260.37 | F118: 256.73 | G118: 251.47 | H118: 269.27 | I118: 274.53 | J118: 278.17 | K118: 270.9 | L118: 262 | M118: 122.29932
A119: 110 | B119: INDHOTEL | C119: 142.45 | D119: 144.00 | E119: 140.45 | F119: 138.45 | G119: 134.90 | H119: 146.00 | I119: 149.55 | J119: 151.55 | K119: 147.55 | L119: 142 | M119: 34.09231
A120: 111 | B120: IOC | C120: 108.15 | D120: 109.28 | E120: 106.67 | F120: 105.18 | G120: 102.57 | H120: 110.77 | I120: 113.38 | J120: 114.87 | K120: 111.9 | L120: 107.8 | M120: 151.90047
A121: 112 | B121: IRCTC | C121: 2081.85 | D121: 2091.27 | E121: 2055.63 | F121: 2029.42 | G121: 1993.78 | H121: 2117.48 | I121: 2153.12 | J121: 2179.33 | K121: 2126.9 | L121: 2065.05 | M121: 16.73477
A122: 113 | B122: IGL | C122: 549.95 | D122: 546.75 | E122: 535.50 | F122: 521.05 | G122: 509.80 | H122: 561.20 | I122: 572.45 | J122: 586.90 | K122: 558 | L122: 532.3 | M122: 86.82058
A123: 114 | B123: INDUSTOWER | C123: 241.7 | D123: 242.53 | E123: 239.67 | F123: 237.63 | G123: 234.77 | H123: 244.57 | I123: 247.43 | J123: 249.47 | K123: 245.4 | L123: 240.5 | M123: 18.74012
A124: 115 | B124: INDUSINDBK | C124: 1018.15 | D124: 1013.38 | E124: 1004.77 | F124: 991.38 | G124: 982.77 | H124: 1026.77 | I124: 1035.38 | J124: 1048.77 | K124: 1022 | L124: 1000 | M124: 45.43628
A125: 116 | B125: NAUKRI | C125: 4952.85 | D125: 4958.95 | E125: 4910.05 | F125: 4867.25 | G125: 4818.35 | H125: 5001.75 | I125: 5050.65 | J125: 5093.45 | K125: 5007.85 | L125: 4916.15 | M125: 2.22913
A126: 117 | B126: INFY | C126: 1563.05 | D126: 1565.30 | E126: 1556.95 | F126: 1550.85 | G126: 1542.50 | H126: 1571.40 | I126: 1579.75 | J126: 1585.85 | K126: 1573.65 | L126: 1559.2 | M126: 59.13567
A127: 118 | B127: INDIGO | C127: 1729.25 | D127: 1734.73 | E127: 1716.52 | F127: 1703.78 | G127: 1685.57 | H127: 1747.47 | I127: 1765.68 | J127: 1778.42 | K127: 1752.95 | L127: 1722 | M127: 3.54016
A128: 119 | B128: IPCALAB | C128: 2022.15 | D128: 2019.07 | E128: 1998.13 | F128: 1974.12 | G128: 1953.18 | H128: 2043.08 | I128: 2064.02 | J128: 2088.03 | K128: 2040 | L128: 1995.05 | M128: 1.32242
A129: 120 | B129: JSWENERGY | C129: 162.65 | D129: 158.63 | E129: 152.27 | F129: 141.88 | G129: 135.52 | H129: 169.02 | I129: 175.38 | J129: 185.77 | K129: 165 | L129: 148.25 | M129: 61.90571
A130: 121 | B130: JSWSTEEL | C130: 685.9 | D130: 688.67 | E130: 680.83 | F130: 675.77 | G130: 667.93 | H130: 693.73 | I130: 701.57 | J130: 706.63 | K130: 696.5 | L130: 683.6 | M130: 43.77422
A131: 122 | B131: JINDALSTEL | C131: 398.95 | D131: 402.28 | E131: 393.87 | F131: 388.78 | G131: 380.37 | H131: 407.37 | I131: 415.78 | J131: 420.87 | K131: 410.7 | L131: 397.2 | M131: 71.6205
A132: 123 | B132: JUBLFOOD | C132: 3108.7 | D132: 3120.90 | E132: 3084.15 | F132: 3059.60 | G132: 3022.85 | H132: 3145.45 | I132: 3182.20 | J132: 3206.75 | K132: 3157.65 | L132: 3096.35 | M132: 3.84725
A133: 124 | B133: KOTAKBANK | C133: 1705.85 | D133: 1715.28 | E133: 1692.57 | F133: 1679.28 | G133: 1656.57 | H133: 1728.57 | I133: 1751.28 | J133: 1764.57 | K133: 1738 | L133: 1702 | M133: 103.94662
A134: 125 | B134: L&TFH | C134: 93.7 | D134: 94.25 | E134: 92.85 | F134: 92.00 | G134: 90.60 | H134: 95.10 | I134: 96.50 | J134: 97.35 | K134: 95.65 | L134: 93.4 | M134: 66.54807
A135: 126 | B135: LTTS | C135: 2892.75 | D135: 2892.05 | E135: 2861.05 | F135: 2829.35 | G135: 2798.35 | H135: 2923.75 | I135: 2954.75 | J135: 2986.45 | K135: 2923.05 | L135: 2860.35 | M135: 1.29858
A136: 127 | B136: LICHSGFIN | C136: 473.25 | D136: 472.93 | E136: 467.87 | F136: 462.48 | G136: 457.42 | H136: 478.32 | I136: 483.38 | J136: 488.77 | K136: 478 | L136: 467.55 | M136: 38.94114
A137: 128 | B137: LTI | C137: 4134.15 | D137: 4124.60 | E137: 4097.20 | F137: 4060.25 | G137: 4032.85 | H137: 4161.55 | I137: 4188.95 | J137: 4225.90 | K137: 4152 | L137: 4087.65 | M137: 2.26795
A138: 129 | B138: LT | C138: 1510.9 | D138: 1514.87 | E138: 1499.93 | F138: 1488.97 | G138: 1474.03 | H138: 1525.83 | I138: 1540.77 | J138: 1551.73 | K138: 1529.8 | L138: 1503.9 | M138: 21.74022
A139: 130 | B139: LUPIN | C139: 1161.2 | D139: 1163.60 | E139: 1152.95 | F139: 1144.70 | G139: 1134.05 | H139: 1171.85 | I139: 1182.50 | J139: 1190.75 | K139: 1174.25 | L139: 1155.35 | M139: 8.33
A140: 131 | B140: MRF | C140: 80222.25 | D140: 80166.67 | E140: 79583.33 | F140: 78944.42 | G140: 78361.08 | H140: 80805.58 | I140: 81388.92 | J140: 82027.83 | K140: 80750 | L140: 79527.75 | M140: 0.1428
A141: 132 | B141: MGL | C141: 1159.6 | D141: 1158.87 | E141: 1146.73 | F141: 1133.87 | G141: 1121.73 | H141: 1171.73 | I141: 1183.87 | J141: 1196.73 | K141: 1171 | L141: 1146 | M141: 6.64622
A142: 133 | B142: M&MFIN | C142: 157.65 | D142: 158.12 | E142: 156.33 | F142: 155.02 | G142: 153.23 | H142: 159.43 | I142: 161.22 | J142: 162.53 | K142: 159.9 | L142: 156.8 | M142: 27.60577
A143: 134 | B143: M&M | C143: 781.6 | D143: 784.33 | E143: 776.67 | F143: 771.73 | G143: 764.07 | H143: 789.27 | I143: 796.93 | J143: 801.87 | K143: 792 | L143: 779.4 | M143: 31.67773
A144: 135 | B144: MANAPPURAM | C144: 162.75 | D144: 163.73 | E144: 161.17 | F144: 159.58 | G144: 157.02 | H144: 165.32 | I144: 167.88 | J144: 169.47 | K144: 166.3 | L144: 162.15 | M144: 33.57493
A145: 136 | B145: MARICO | C145: 537.7 | D145: 530.72 | E145: 517.98 | F145: 498.27 | G145: 485.53 | H145: 550.43 | I145: 563.17 | J145: 582.88 | K145: 543.45 | L145: 511 | M145: 89.75819
A146: 137 | B146: MARUTI | C146: 7487.5 | D146: 7513.68 | E146: 7426.37 | F146: 7365.23 | G146: 7277.92 | H146: 7574.82 | I146: 7662.13 | J146: 7723.27 | K146: 7601 | L146: 7452.55 | M146: 4.80219
A147: 138 | B147: MFSL | C147: 1079.5 | D147: 1082.35 | E147: 1067.15 | F147: 1054.80 | G147: 1039.60 | H147: 1094.70 | I147: 1109.90 | J147: 1122.25 | K147: 1097.55 | L147: 1070 | M147: 9.79696
A148: 139 | B148: MINDTREE | C148: 2581.8 | D148: 2571.42 | E148: 2553.48 | F148: 2525.17 | G148: 2507.23 | H148: 2599.73 | I148: 2617.67 | J148: 2645.98 | K148: 2589.35 | L148: 2543.1 | M148: 4.63308
A149: 140 | B149: MOTHERSUMI | C149: 236.5 | D149: 238.95 | E149: 233.15 | F149: 229.80 | G149: 224.00 | H149: 242.30 | I149: 248.10 | J149: 251.45 | K149: 244.75 | L149: 235.6 | M149: 291.97466
A150: 141 | B150: MPHASIS | C150: 2086.15 | D150: 2070.25 | E150: 2046.50 | F150: 2006.85 | G150: 1983.10 | H150: 2109.90 | I150: 2133.65 | J150: 2173.30 | K150: 2094 | L150: 2030.6 | M150: 4.80765
A151: 142 | B151: MUTHOOTFIN | C151: 1468.75 | D151: 1477.58 | E151: 1454.17 | F151: 1439.58 | G151: 1416.17 | H151: 1492.17 | I151: 1515.58 | J151: 1530.17 | K151: 1501 | L151: 1463 | M151: 10.35297
A152: 143 | B152: NATCOPHARM | C152: 1094.3 | D152: 1093.53 | E152: 1084.07 | F152: 1073.83 | G152: 1064.37 | H152: 1103.77 | I152: 1113.23 | J152: 1123.47 | K152: 1103 | L152: 1083.3 | M152: 3.37712
A153: 144 | B153: NMDC | C153: 181.55 | D153: 182.27 | E153: 179.93 | F153: 178.32 | G153: 175.98 | H153: 183.88 | I153: 186.22 | J153: 187.83 | K153: 184.6 | L153: 180.65 | M153: 202.25772
A154: 145 | B154: NTPC | C154: 117.6 | D154: 117.18 | E154: 115.82 | F154: 114.03 | G154: 112.67 | H154: 118.97 | I154: 120.33 | J154: 122.12 | K154: 118.55 | L154: 115.4 | M154: 334.88455
A155: 146 | B155: NATIONALUM | C155: 77.15 | D155: 78.73 | E155: 74.92 | F155: 72.68 | G155: 68.87 | H155: 80.97 | I155: 84.78 | J155: 87.02 | K155: 82.55 | L155: 76.5 | M155: 1004.54076
A156: 147 | B156: NAVINFLUOR | C156: 3714.2 | D156: 3691.05 | E156: 3648.15 | F156: 3582.10 | G156: 3539.20 | H156: 3757.10 | I156: 3800.00 | J156: 3866.05 | K156: 3733.95 | L156: 3625 | M156: 2.12049
A157: 148 | B157: NESTLEIND | C157: 17599.25 | D157: 17612.97 | E157: 17475.93 | F157: 17352.62 | G157: 17215.58 | H157: 17736.28 | I157: 17873.32 | J157: 17996.63 | K157: 17750 | L157: 17489.65 | M157: 0.71096
A158: 149 | B158: NAM-INDIA | C158: 366.9 | D158: 367.25 | E158: 362.20 | F158: 357.50 | G158: 352.45 | H158: 371.95 | I158: 377.00 | J158: 381.70 | K158: 372.3 | L158: 362.55 | M158: 10.49386
A159: 150 | B159: OBEROIRLTY | C159: 610.5 | D159: 610.65 | E159: 604.15 | F159: 597.80 | G159: 591.30 | H159: 617.00 | I159: 623.50 | J159: 629.85 | K159: 617.15 | L159: 604.3 | M159: 2.36596
A160: 151 | B160: ONGC | C160: 119.4 | D160: 120.32 | E160: 118.18 | F160: 116.97 | G160: 114.83 | H160: 121.53 | I160: 123.67 | J160: 124.88 | K160: 122.45 | L160: 119.1 | M160: 208.57415
A161: 152 | B161: OIL | C161: 154.35 | D161: 156.42 | E161: 148.93 | F161: 143.52 | G161: 136.03 | H161: 161.83 | I161: 169.32 | J161: 174.73 | K161: 163.9 | L161: 151 | M161: 47.05925
A162: 153 | B162: OFSS | C162: 3574.5 | D162: 3582.65 | E162: 3554.35 | F162: 3534.20 | G162: 3505.90 | H162: 3602.80 | I162: 3631.10 | J162: 3651.25 | K162: 3610.95 | L162: 3562.5 | M162: 0.55797
A163: 154 | B163: PIIND | C163: 2902.65 | D163: 2914.92 | E163: 2870.83 | F163: 2839.02 | G163: 2794.93 | H163: 2946.73 | I163: 2990.82 | J163: 3022.63 | K163: 2959 | L163: 2883.1 | M163: 1.93258
A164: 155 | B164: PAGEIND | C164: 29640.85 | D164: 29729.98 | E164: 29423.52 | F164: 29206.18 | G164: 28899.72 | H164: 29947.32 | I164: 30253.78 | J164: 30471.12 | K164: 30036.45 | L164: 29512.65 | M164: 0.18379
A165: 156 | B165: PETRONET | C165: 225.85 | D165: 226.58 | E165: 224.27 | F165: 222.68 | G165: 220.37 | H165: 228.17 | I165: 230.48 | J165: 232.07 | K165: 228.9 | L165: 225 | M165: 51.61028
A166: 157 | B166: PFIZER | C166: 5647.85 | D166: 5657.62 | E166: 5575.23 | F166: 5502.62 | G166: 5420.23 | H166: 5730.23 | I166: 5812.62 | J166: 5885.23 | K166: 5740 | L166: 5585 | M166: 1.97253
A167: 158 | B167: PIDILITIND | C167: 2161.75 | D167: 2164.95 | E167: 2144.90 | F167: 2128.05 | G167: 2108.00 | H167: 2181.80 | I167: 2201.85 | J167: 2218.70 | K167: 2185 | L167: 2148.1 | M167: 3.528
A168: 159 | B168: PEL | C168: 2414.4 | D168: 2422.35 | E168: 2394.70 | F168: 2375.00 | G168: 2347.35 | H168: 2442.05 | I168: 2469.70 | J168: 2489.40 | K168: 2450 | L168: 2402.65 | M168: 6.42993
A169: 160 | B169: POLYCAB | C169: 1947.6 | D169: 1956.20 | E169: 1931.40 | F169: 1915.20 | G169: 1890.40 | H169: 1972.40 | I169: 1997.20 | J169: 2013.40 | K169: 1981 | L169: 1940 | M169: 1.10313
A170: 161 | B170: PFC | C170: 124.05 | D170: 124.30 | E170: 123.25 | F170: 122.45 | G170: 121.40 | H170: 125.10 | I170: 126.15 | J170: 126.95 | K170: 125.35 | L170: 123.5 | M170: 38.21959
A171: 162 | B171: POWERGRID | C171: 236 | D171: 235.18 | E171: 232.47 | F171: 228.93 | G171: 226.22 | H171: 238.72 | I171: 241.43 | J171: 244.97 | K171: 237.9 | L171: 231.65 | M171: 343.62892
A172: 163 | B172: PRESTIGE | C172: 291.15 | D172: 291.62 | E172: 287.03 | F172: 282.92 | G172: 278.33 | H172: 295.73 | I172: 300.32 | J172: 304.43 | K172: 296.2 | L172: 287.5 | M172: 6.69686
A173: 164 | B173: PGHH | C173: 13168.5 | D173: 13323.22 | E173: 12946.43 | F173: 12724.37 | G173: 12347.58 | H173: 13545.28 | I173: 13922.07 | J173: 14144.13 | K173: 13700 | L173: 13101.15 | M173: 0.0937
A174: 165 | B174: PNB | C174: 43 | D174: 43.27 | E174: 42.63 | F174: 42.27 | G174: 41.63 | H174: 43.63 | I174: 44.27 | J174: 44.63 | K174: 43.9 | L174: 42.9 | M174: 1379.2551
A175: 166 | B175: RBLBANK | C175: 211.85 | D175: 212.88 | E175: 209.67 | F175: 207.48 | G175: 204.27 | H175: 215.07 | I175: 218.28 | J175: 220.47 | K175: 216.1 | L175: 210.7 | M175: 52.66622
A176: 167 | B176: RECLTD | C176: 143 | D176: 143.25 | E176: 142.00 | F176: 141.00 | G176: 139.75 | H176: 144.25 | I176: 145.50 | J176: 146.50 | K176: 144.5 | L176: 142.25 | M176: 34.58225
A177: 168 | B177: RAJESHEXPO | C177: 571.05 | D177: 572.72 | E177: 566.33 | F177: 561.62 | G177: 555.23 | H177: 577.43 | I177: 583.82 | J177: 588.53 | K177: 579.1 | L177: 568 | M177: 2.11544
A178: 169 | B178: RELIANCE | C178: 2087.8 | D178: 2093.63 | E178: 2078.27 | F178: 2068.73 | G178: 2053.37 | H178: 2103.17 | I178: 2118.53 | J178: 2128.07 | K178: 2109 | L178: 2084.1 | M178: 125.26981
A179: 170 | B179: SBICARD | C179: 974.8 | D179: 971.15 | E179: 964.30 | F179: 953.80 | G179: 946.95 | H179: 981.65 | I179: 988.50 | J179: 999.00 | K179: 978 | L179: 960.65 | M179: 33.2981
A180: 171 | B180: SBILIFE | C180: 999.4 | D180: 1003.98 | E180: 990.67 | F180: 981.93 | G180: 968.62 | H180: 1012.72 | I180: 1026.03 | J180: 1034.77 | K180: 1017.3 | L180: 995.25 | M180: 24.86963
A181: 172 | B181: SRF | C181: 7081.9 | D181: 7112.55 | E181: 7029.15 | F181: 6976.40 | G181: 6893.00 | H181: 7165.30 | I181: 7248.70 | J181: 7301.45 | K181: 7195.95 | L181: 7059.8 | M181: 0.85691
A182: 173 | B182: SANOFI | C182: 7619.65 | D182: 7626.88 | E182: 7593.77 | F182: 7567.88 | G182: 7534.77 | H182: 7652.77 | I182: 7685.88 | J182: 7711.77 | K182: 7660 | L182: 7601 | M182: 0.17428
A183: 174 | B183: SHREECEM | C183: 28134.45 | D183: 28234.15 | E183: 28000.60 | F183: 27866.75 | G183: 27633.20 | H183: 28368.00 | I183: 28601.55 | J183: 28735.40 | K183: 28467.7 | L183: 28100.3 | M183: 0.259
A184: 175 | B184: SRTRANSFIN | C184: 1357.85 | D184: 1367.35 | E184: 1338.70 | F184: 1319.55 | G184: 1290.90 | H184: 1386.50 | I184: 1415.15 | J184: 1434.30 | K184: 1396 | L184: 1348.2 | M184: 11.75
A185: 176 | B185: SIEMENS | C185: 1992.25 | D185: 1999.43 | E185: 1973.92 | F185: 1955.58 | G185: 1930.07 | H185: 2017.77 | I185: 2043.28 | J185: 2061.62 | K185: 2024.95 | L185: 1981.1 | M185: 1.86875
A186: 177 | B186: SBIN | C186: 421.5 | D186: 423.67 | E186: 418.38 | F186: 415.27 | G186: 409.98 | H186: 426.78 | I186: 432.07 | J186: 435.18 | K186: 428.95 | L186: 420.55 | M186: 222.75961
A187: 178 | B187: SAIL | C187: 130.3 | D187: 131.13 | E187: 128.42 | F187: 126.53 | G187: 123.82 | H187: 133.02 | I187: 135.73 | J187: 137.62 | K187: 133.85 | L187: 129.25 | M187: 314.3745
A188: 179 | B188: SUNPHARMA | C188: 677.6 | D188: 677.40 | E188: 673.30 | F188: 669.00 | G188: 664.90 | H188: 681.70 | I188: 685.80 | J188: 690.10 | K188: 681.5 | L188: 673.1 | M188: 29.37766
A189: 180 | B189: SUNTV | C189: 536.4 | D189: 538.55 | E189: 531.10 | F189: 525.80 | G189: 518.35 | H189: 543.85 | I189: 551.30 | J189: 556.60 | K189: 546 | L189: 533.25 | M189: 22.97703
A190: 181 | B190: SYNGENE | C190: 584.05 | D190: 583.35 | E190: 580.70 | F190: 577.35 | G190: 574.70 | H190: 586.70 | I190: 589.35 | J190: 592.70 | K190: 586 | L190: 580 | M190: 2.50799
A191: 182 | B191: TVSMOTOR | C191: 612.3 | D191: 615.98 | E191: 607.32 | F191: 602.33 | G191: 593.67 | H191: 620.97 | I191: 629.63 | J191: 634.62 | K191: 624.65 | L191: 611 | M191: 5.60987
A192: 183 | B192: TATACHEM | C192: 720.6 | D192: 722.73 | E192: 714.67 | F192: 708.73 | G192: 700.67 | H192: 728.67 | I192: 736.73 | J192: 742.67 | K192: 730.8 | L192: 716.8 | M192: 15.21271
A193: 184 | B193: TCS | C193: 3340.85 | D193: 3344.55 | E193: 3322.80 | F193: 3304.75 | G193: 3283.00 | H193: 3362.60 | I193: 3384.35 | J193: 3402.40 | K193: 3366.3 | L193: 3326.5 | M193: 14.97322
A194: 185 | B194: TATACONSUM | C194: 758.05 | D194: 761.93 | E194: 751.97 | F194: 745.88 | G194: 735.92 | H194: 768.02 | I194: 777.98 | J194: 784.07 | K194: 771.9 | L194: 755.85 | M194: 15.06378
A195: 186 | B195: TATAMOTORS | C195: 341.55 | D195: 342.55 | E195: 338.60 | F195: 335.65 | G195: 331.70 | H195: 345.50 | I195: 349.45 | J195: 352.40 | K195: 346.5 | L195: 339.6 | M195: 224.62297
A196: 187 | B196: TATAPOWER | C196: 122.8 | D196: 123.10 | E196: 121.45 | F196: 120.10 | G196: 118.45 | H196: 124.45 | I196: 126.10 | J196: 127.45 | K196: 124.75 | L196: 121.75 | M196: 309.81874
A197: 188 | B197: TATASTEEL | C197: 1172.55 | D197: 1176.70 | E197: 1161.40 | F197: 1150.25 | G197: 1134.95 | H197: 1187.85 | I197: 1203.15 | J197: 1214.30 | K197: 1192 | L197: 1165.55 | M197: 78.03759
A198: 189 | B198: TECHM | C198: 1088.15 | D198: 1093.52 | E198: 1077.63 | F198: 1067.12 | G198: 1051.23 | H198: 1104.03 | I198: 1119.92 | J198: 1130.43 | K198: 1109.4 | L198: 1083 | M198: 29.56332
A199: 190 | B199: RAMCOCEM | C199: 1035.9 | D199: 1035.30 | E199: 1028.60 | F199: 1021.30 | G199: 1014.60 | H199: 1042.60 | I199: 1049.30 | J199: 1056.60 | K199: 1042 | L199: 1028 | M199: 1.85312
A200: 191 | B200: TITAN | C200: 1731.6 | D200: 1732.95 | E200: 1719.90 | F200: 1708.20 | G200: 1695.15 | H200: 1744.65 | I200: 1757.70 | J200: 1769.40 | K200: 1746 | L200: 1721.25 | M200: 12.36704
A201: 192 | B201: TORNTPHARM | C201: 2922.25 | D201: 2919.67 | E201: 2890.58 | F201: 2858.92 | G201: 2829.83 | H201: 2951.33 | I201: 2980.42 | J201: 3012.08 | K201: 2948.75 | L201: 2888 | M201: 1.92105
A202: 193 | B202: TORNTPOWER | C202: 454.85 | D202: 452.53 | E202: 448.92 | F202: 442.98 | G202: 439.37 | H202: 458.47 | I202: 462.08 | J202: 468.02 | K202: 456.15 | L202: 446.6 | M202: 6.98402
A203: 194 | B203: TRENT | C203: 862.65 | D203: 866.58 | E203: 852.17 | F203: 841.68 | G203: 827.27 | H203: 877.07 | I203: 891.48 | J203: 901.97 | K203: 881 | L203: 856.1 | M203: 3.24166
A204: 195 | B204: UPL | C204: 805.4 | D204: 807.55 | E204: 797.15 | F204: 788.90 | G204: 778.50 | H204: 815.80 | I204: 826.20 | J204: 834.45 | K204: 817.95 | L204: 799.3 | M204: 25.09072
A205: 196 | B205: ULTRACEMCO | C205: 6824.7 | D205: 6834.73 | E205: 6789.47 | F205: 6754.23 | G205: 6708.97 | H205: 6869.97 | I205: 6915.23 | J205: 6950.47 | K205: 6880 | L205: 6799.5 | M205: 2.35008
... 29 more rows

Sheet MidCap Intra
L5: Back To Main Page
A6: FOR INTRA DAY TRADING | K6: =Main!B10 -> 2021-06-30
A9: Sr.no | B9: Scrip | C9: CLOSE RATE | D9: Pivot Point | E9: Supports | H9: Resistances
C10: Point | E10: S1 | F10: S2 | G10: S3 | H10: R1 | I10: R2 | J10: R3 | K10: HIGH | L10: LOW | M10: Total Trade Quanity in Lakhs
A11: 1 | B11: 3MINDIA | C11: 24501.8 | D11: 24616.93 | E11: 24334.87 | F11: 24167.93 | G11: 23885.87 | H11: 24783.87 | I11: 25065.93 | J11: 25232.87 | K11: 24899 | L11: 24450 | M11: 0.03409
A12: 2 | B12: ABB | C12: 1788.85 | D12: 1791.78 | E12: 1768.07 | F12: 1747.28 | G12: 1723.57 | H12: 1812.57 | I12: 1836.28 | J12: 1857.07 | K12: 1815.5 | L12: 1771 | M12: 0.84656
A13: 3 | B13: POWERINDIA | C13: 1805.9 | D13: 1815.63 | E13: 1792.27 | F13: 1778.63 | G13: 1755.27 | H13: 1829.27 | I13: 1852.63 | J13: 1866.27 | K13: 1839 | L13: 1802 | M13: 0.07422
A14: 4 | B14: ACC | C14: 2053.05 | D14: 2052.65 | E14: 2040.40 | F14: 2027.75 | G14: 2015.50 | H14: 2065.30 | I14: 2077.55 | J14: 2090.20 | K14: 2064.9 | L14: 2040 | M14: 2.79895
A15: 5 | B15: AIAENG | C15: 2149.85 | D15: 2141.83 | E15: 2109.67 | F15: 2069.48 | G15: 2037.32 | H15: 2182.02 | I15: 2214.18 | J15: 2254.37 | K15: 2174 | L15: 2101.65 | M15: 0.35848
A16: 6 | B16: APLAPOLLO | C16: 1576.35 | D16: 1586.70 | E16: 1544.60 | F16: 1512.85 | G16: 1470.75 | H16: 1618.45 | I16: 1660.55 | J16: 1692.30 | K16: 1628.8 | L16: 1554.95 | M16: 1.02697
A17: 7 | B17: AUBANK | C17: 1077.3 | D17: 1067.62 | E17: 1049.68 | F17: 1022.07 | G17: 1004.13 | H17: 1095.23 | I17: 1113.17 | J17: 1140.78 | K17: 1085.55 | L17: 1040 | M17: 22.10068
A18: 8 | B18: AARTIDRUGS | C18: 708 | D18: 710.65 | E18: 703.35 | F18: 698.70 | G18: 691.40 | H18: 715.30 | I18: 722.60 | J18: 727.25 | K18: 717.95 | L18: 706 | M18: 2.04776
A19: 9 | B19: AARTIIND | C19: 863.95 | D19: 866.60 | E19: 854.20 | F19: 844.45 | G19: 832.05 | H19: 876.35 | I19: 888.75 | J19: 898.50 | K19: 879 | L19: 856.85 | M19: 5.88826
A20: 10 | B20: AAVAS | C20: 2698.6 | D20: 2676.27 | E20: 2640.43 | F20: 2582.27 | G20: 2546.43 | H20: 2734.43 | I20: 2770.27 | J20: 2828.43 | K20: 2712.1 | L20: 2618.1 | M20: 1.3263
A21: 11 | B21: ABBOTINDIA | C21: 16537.35 | D21: 16625.78 | E21: 16341.57 | F21: 16145.78 | G21: 15861.57 | H21: 16821.57 | I21: 17105.78 | J21: 17301.57 | K21: 16910 | L21: 16430 | M21: 0.08739
A22: 12 | B22: ADANIENT | C22: 1523.55 | D22: 1528.42 | E22: 1508.13 | F22: 1492.72 | G22: 1472.43 | H22: 1543.83 | I22: 1564.12 | J22: 1579.53 | K22: 1548.7 | L22: 1513 | M22: 55.51918
A23: 13 | B23: ADANIGREEN | C23: 1126.3 | D23: 1123.80 | E23: 1102.60 | F23: 1078.90 | G23: 1057.70 | H23: 1147.50 | I23: 1168.70 | J23: 1192.40 | K23: 1145 | L23: 1100.1 | M23: 19.95959
A24: 14 | B24: ADANIPORTS | C24: 711 | D24: 714.33 | E24: 705.67 | F24: 700.33 | G24: 691.67 | H24: 719.67 | I24: 728.33 | J24: 733.67 | K24: 723 | L24: 709 | M24: 93.03151
A25: 15 | B25: ATGL | C25: 1073.5 | D25: 1073.50 | E25: 1073.50 | F25: 1073.50 | G25: 1073.50 | H25: 1073.50 | I25: 1073.50 | J25: 1073.50 | K25: 1073.5 | L25: 1073.5 | M25: 1.49796
A26: 16 | B26: ADANITRANS | C26: 1115.2 | D26: 1138.68 | E26: 1077.57 | F26: 1039.93 | G26: 978.82 | H26: 1176.32 | I26: 1237.43 | J26: 1275.07 | K26: 1199.8 | L26: 1101.05 | M26: 3.34173
A27: 17 | B27: ABCAPITAL | C27: 117.15 | D27: 117.43 | E27: 116.17 | F27: 115.18 | G27: 113.92 | H27: 118.42 | I27: 119.68 | J27: 120.67 | K27: 118.7 | L27: 116.45 | M27: 21.22213
A28: 18 | B28: ABFRL | C28: 213.6 | D28: 215.48 | E28: 210.97 | F28: 208.33 | G28: 203.82 | H28: 218.12 | I28: 222.63 | J28: 225.27 | K28: 220 | L28: 212.85 | M28: 15.0953
A29: 19 | B29: ADVENZYMES | C29: 414.5 | D29: 416.55 | E29: 409.10 | F29: 403.70 | G29: 396.25 | H29: 421.95 | I29: 429.40 | J29: 434.80 | K29: 424 | L29: 411.15 | M29: 2.43252
A30: 20 | B30: AEGISCHEM | C30: 344.75 | D30: 348.30 | E30: 339.50 | F30: 334.25 | G30: 325.45 | H30: 353.55 | I30: 362.35 | J30: 367.60 | K30: 357.1 | L30: 343.05 | M30: 2.09887
A31: 21 | B31: AFFLE | C31: 4529.8 | D31: 4542.93 | E31: 4485.87 | F31: 4441.93 | G31: 4384.87 | H31: 4586.87 | I31: 4643.93 | J31: 4687.87 | K31: 4600 | L31: 4499 | M31: 0.2737
A32: 22 | B32: AJANTPHARM | C32: 2085.85 | D32: 2063.55 | E32: 2012.30 | F32: 1938.75 | G32: 1887.50 | H32: 2137.10 | I32: 2188.35 | J32: 2261.90 | K32: 2114.8 | L32: 1990 | M32: 4.7899
A33: 23 | B33: AKZOINDIA | C33: 2321.15 | D33: 2309.70 | E33: 2281.40 | F33: 2241.65 | G33: 2213.35 | H33: 2349.45 | I33: 2377.75 | J33: 2417.50 | K33: 2338 | L33: 2269.95 | M33: 0.19627
A34: 24 | B34: ALEMBICLTD | C34: 127.35 | D34: 127.68 | E34: 126.17 | F34: 124.98 | G34: 123.47 | H34: 128.87 | I34: 130.38 | J34: 131.57 | K34: 129.2 | L34: 126.5 | M34: 4.13679
A35: 25 | B35: APLLTD | C35: 986.8 | D35: 990.17 | E35: 975.83 | F35: 964.87 | G35: 950.53 | H35: 1001.13 | I35: 1015.47 | J35: 1026.43 | K35: 1004.5 | L35: 979.2 | M35: 2.851
A36: 26 | B36: ALKEM | C36: 3195.75 | D36: 3182.27 | E36: 3129.53 | F36: 3063.32 | G36: 3010.58 | H36: 3248.48 | I36: 3301.22 | J36: 3367.43 | K36: 3235 | L36: 3116.05 | M36: 1.9951
A37: 27 | B37: ALKYLAMINE | C37: 3594.05 | D37: 3604.82 | E37: 3571.23 | F37: 3548.42 | G37: 3514.83 | H37: 3627.63 | I37: 3661.22 | J37: 3684.03 | K37: 3638.4 | L37: 3582 | M37: 0.29298
A38: 28 | B38: ALOKINDS | C38: 27.65 | D38: 26.78 | E38: 25.92 | F38: 24.18 | G38: 23.32 | H38: 28.52 | I38: 29.38 | J38: 31.12 | K38: 27.65 | L38: 25.05 | M38: 230.76721
A39: 29 | B39: AMARAJABAT | C39: 745.9 | D39: 748.63 | E39: 742.32 | F39: 738.73 | G39: 732.42 | H39: 752.22 | I39: 758.53 | J39: 762.12 | K39: 754.95 | L39: 745.05 | M39: 6.19799
A40: 30 | B40: AMBER | C40: 2910.45 | D40: 2925.82 | E40: 2876.63 | F40: 2842.82 | G40: 2793.63 | H40: 2959.63 | I40: 3008.82 | J40: 3042.63 | K40: 2975 | L40: 2892 | M40: 0.95906
A41: 31 | B41: AMBUJACEM | C41: 344.4 | D41: 344.07 | E41: 342.33 | F41: 340.27 | G41: 338.53 | H41: 346.13 | I41: 347.87 | J41: 349.93 | K41: 345.8 | L41: 342 | M41: 16.71869
A42: 32 | B42: APOLLOHOSP | C42: 3591.15 | D42: 3538.70 | E42: 3472.45 | F42: 3353.75 | G42: 3287.50 | H42: 3657.40 | I42: 3723.65 | J42: 3842.35 | K42: 3604.95 | L42: 3420 | M42: 22.68589
A43: 33 | B43: APOLLOTYRE | C43: 226.45 | D43: 229.10 | E43: 222.20 | F43: 217.95 | G43: 211.05 | H43: 233.35 | I43: 240.25 | J43: 244.50 | K43: 236 | L43: 224.85 | M43: 107.36632
A44: 34 | B44: ASHOKLEY | C44: 123.55 | D44: 124.23 | E44: 122.47 | F44: 121.38 | G44: 119.62 | H44: 125.32 | I44: 127.08 | J44: 128.17 | K44: 126 | L44: 123.15 | M44: 128.22253
A45: 35 | B45: ASHOKA | C45: 108.95 | D45: 108.23 | E45: 106.72 | F45: 104.48 | G45: 102.97 | H45: 110.47 | I45: 111.98 | J45: 114.22 | K45: 109.75 | L45: 106 | M45: 34.84835
A46: 36 | B46: ASIANPAINT | C46: 3001.5 | D46: 2999.47 | E46: 2975.08 | F46: 2948.67 | G46: 2924.28 | H46: 3025.88 | I46: 3050.27 | J46: 3076.68 | K46: 3023.85 | L46: 2973.05 | M46: 12.42734
A47: 37 | B47: ASTERDM | C47: 155.3 | D47: 155.53 | E47: 154.07 | F47: 152.83 | G47: 151.37 | H47: 156.77 | I47: 158.23 | J47: 159.47 | K47: 157 | L47: 154.3 | M47: 5.71912
A48: 38 | B48: ASTRAZEN | C48: 3621.9 | D48: 3633.92 | E48: 3597.98 | F48: 3574.07 | G48: 3538.13 | H48: 3657.83 | I48: 3693.77 | J48: 3717.68 | K48: 3669.85 | L48: 3610 | M48: 0.15147
A49: 39 | B49: ASTRAL | C49: 1926.4 | D49: 1939.37 | E49: 1904.13 | F49: 1881.87 | G49: 1846.63 | H49: 1961.63 | I49: 1996.87 | J49: 2019.13 | K49: 1974.6 | L49: 1917.1 | M49: 2.34433
A50: 40 | B50: ATUL | C50: 8869.75 | D50: 8914.25 | E50: 8795.50 | F50: 8721.25 | G50: 8602.50 | H50: 8988.50 | I50: 9107.25 | J50: 9181.50 | K50: 9033 | L50: 8840 | M50: 0.06344
A51: 41 | B51: AUROPHARMA | C51: 967.2 | D51: 970.20 | E51: 960.50 | F51: 953.80 | G51: 944.10 | H51: 976.90 | I51: 986.60 | J51: 993.30 | K51: 979.9 | L51: 963.5 | M51: 12.43208
A52: 42 | B52: AVANTIFEED | C52: 531.45 | D52: 536.58 | E52: 520.37 | F52: 509.28 | G52: 493.07 | H52: 547.67 | I52: 563.88 | J52: 574.97 | K52: 552.8 | L52: 525.5 | M52: 8.13662
A53: 43 | B53: DMART | C53: 3270.85 | D53: 3290.52 | E53: 3231.33 | F53: 3191.82 | G53: 3132.63 | H53: 3330.03 | I53: 3389.22 | J53: 3428.73 | K53: 3349.7 | L53: 3251 | M53: 3.10346
A54: 44 | B54: AXISBANK | C54: 751.95 | D54: 755.18 | E54: 746.82 | F54: 741.68 | G54: 733.32 | H54: 760.32 | I54: 768.68 | J54: 773.82 | K54: 763.55 | L54: 750.05 | M54: 75.00655
A55: 45 | B55: BASF | C55: 2532.2 | D55: 2567.40 | E55: 2484.80 | F55: 2437.40 | G55: 2354.80 | H55: 2614.80 | I55: 2697.40 | J55: 2744.80 | K55: 2650 | L55: 2520 | M55: 0.37266
A56: 46 | B56: BEML | C56: 1335.55 | D56: 1344.18 | E56: 1323.87 | F56: 1312.18 | G56: 1291.87 | H56: 1355.87 | I56: 1376.18 | J56: 1387.87 | K56: 1364.5 | L56: 1332.5 | M56: 3.08977
A57: 47 | B57: BSE | C57: 914.55 | D57: 919.52 | E57: 905.03 | F57: 895.52 | G57: 881.03 | H57: 929.03 | I57: 943.52 | J57: 953.03 | K57: 934 | L57: 910 | M57: 4.09625
A58: 48 | B58: BAJAJ-AUTO | C58: 4124.65 | D58: 4143.50 | E58: 4098.15 | F58: 4071.65 | G58: 4026.30 | H58: 4170.00 | I58: 4215.35 | J58: 4241.85 | K58: 4188.85 | L58: 4117 | M58: 3.32405
A59: 49 | B59: BAJAJCON | C59: 288.65 | D59: 289.07 | E59: 285.63 | F59: 282.62 | G59: 279.18 | H59: 292.08 | I59: 295.52 | J59: 298.53 | K59: 292.5 | L59: 286.05 | M59: 8.75469
A60: 50 | B60: BAJAJELEC | C60: 1030.55 | D60: 1032.03 | E60: 1020.52 | F60: 1010.48 | G60: 998.97 | H60: 1042.07 | I60: 1053.58 | J60: 1063.62 | K60: 1043.55 | L60: 1022 | M60: 0.49986
A61: 51 | B61: BAJFINANCE | C61: 6052.4 | D61: 6064.05 | E61: 5990.45 | F61: 5928.50 | G61: 5854.90 | H61: 6126.00 | I61: 6199.60 | J61: 6261.55 | K61: 6137.65 | L61: 6002.1 | M61: 13.10079
A62: 52 | B62: BAJAJFINSV | C62: 12299.9 | D62: 12353.65 | E62: 12217.30 | F62: 12134.70 | G62: 11998.35 | H62: 12436.25 | I62: 12572.60 | J62: 12655.20 | K62: 12490 | L62: 12271.05 | M62: 1.57178
A63: 53 | B63: BAJAJHLDNG | C63: 3581.55 | D63: 3600.40 | E63: 3534.95 | F63: 3488.35 | G63: 3422.90 | H63: 3647.00 | I63: 3712.45 | J63: 3759.05 | K63: 3665.85 | L63: 3553.8 | M63: 0.44642
A64: 54 | B64: BALKRISIND | C64: 2242.65 | D64: 2248.87 | E64: 2229.78 | F64: 2216.92 | G64: 2197.83 | H64: 2261.73 | I64: 2280.82 | J64: 2293.68 | K64: 2267.95 | L64: 2236 | M64: 1.47567
A65: 55 | B65: BALMLAWRIE | C65: 140.4 | D65: 141.10 | E65: 139.30 | F65: 138.20 | G65: 136.40 | H65: 142.20 | I65: 144.00 | J65: 145.10 | K65: 142.9 | L65: 140 | M65: 3.77396
A66: 56 | B66: BALRAMCHIN | C66: 364.25 | D66: 364.42 | E66: 358.83 | F66: 353.42 | G66: 347.83 | H66: 369.83 | I66: 375.42 | J66: 380.83 | K66: 370 | L66: 359 | M66: 19.82586
A67: 57 | B67: BANDHANBNK | C67: 335.8 | D67: 339.60 | E67: 330.20 | F67: 324.60 | G67: 315.20 | H67: 345.20 | I67: 354.60 | J67: 360.20 | K67: 349 | L67: 334 | M67: 65.53062
A68: 58 | B68: BANKBARODA | C68: 87.1 | D68: 87.47 | E68: 86.03 | F68: 84.97 | G68: 83.53 | H68: 88.53 | I68: 89.97 | J68: 91.03 | K68: 88.9 | L68: 86.4 | M68: 636.82439
A69: 59 | B69: BANKINDIA | C69: 78.65 | D69: 79.15 | E69: 77.60 | F69: 76.55 | G69: 75.00 | H69: 80.20 | I69: 81.75 | J69: 82.80 | K69: 80.7 | L69: 78.1 | M69: 39.4239
A70: 60 | B70: MAHABANK | C70: 25.35 | D70: 25.45 | E70: 25.15 | F70: 24.95 | G70: 24.65 | H70: 25.65 | I70: 25.95 | J70: 26.15 | K70: 25.75 | L70: 25.25 | M70: 29.11921
A71: 61 | B71: BATAINDIA | C71: 1601 | D71: 1608.73 | E71: 1590.52 | F71: 1580.03 | G71: 1561.82 | H71: 1619.22 | I71: 1637.43 | J71: 1647.92 | K71: 1626.95 | L71: 1598.25 | M71: 3.75572
A72: 62 | B72: BAYERCROP | C72: 5696.5 | D72: 5662.83 | E72: 5604.77 | F72: 5513.03 | G72: 5454.97 | H72: 5754.57 | I72: 5812.63 | J72: 5904.37 | K72: 5720.9 | L72: 5571.1 | M72: 0.11338
A73: 63 | B73: BERGEPAINT | C73: 804.35 | D73: 807.20 | E73: 800.40 | F73: 796.45 | G73: 789.65 | H73: 811.15 | I73: 817.95 | J73: 821.90 | K73: 814 | L73: 803.25 | M73: 4.04991
A74: 64 | B74: BDL | C74: 359.65 | D74: 360.38 | E74: 357.27 | F74: 354.88 | G74: 351.77 | H74: 362.77 | I74: 365.88 | J74: 368.27 | K74: 363.5 | L74: 358 | M74: 1.85946
A75: 65 | B75: BEL | C75: 174.65 | D75: 174.35 | E75: 172.85 | F75: 171.05 | G75: 169.55 | H75: 176.15 | I75: 177.65 | J75: 179.45 | K75: 175.85 | L75: 172.55 | M75: 165.35082
A76: 66 | B76: BHARATFORG | C76: 747.55 | D76: 750.73 | E76: 737.52 | F76: 727.48 | G76: 714.27 | H76: 760.77 | I76: 773.98 | J76: 784.02 | K76: 763.95 | L76: 740.7 | M76: 44.42304
A77: 67 | B77: BHEL | C77: 64.9 | D77: 65.32 | E77: 63.88 | F77: 62.87 | G77: 61.43 | H77: 66.33 | I77: 67.77 | J77: 68.78 | K77: 66.75 | L77: 64.3 | M77: 606.9592
A78: 68 | B78: BPCL | C78: 466.25 | D78: 466.92 | E78: 464.33 | F78: 462.42 | G78: 459.83 | H78: 468.83 | I78: 471.42 | J78: 473.33 | K78: 469.5 | L78: 465 | M78: 29.60797
A79: 69 | B79: BHARATRAS | C79: 12609.75 | D79: 12633.58 | E79: 12517.17 | F79: 12424.58 | G79: 12308.17 | H79: 12726.17 | I79: 12842.58 | J79: 12935.17 | K79: 12750 | L79: 12541 | M79: 0.01967
A80: 70 | B80: BHARTIARTL | C80: 524.95 | D80: 527.07 | E80: 521.88 | F80: 518.82 | G80: 513.63 | H80: 530.13 | I80: 535.32 | J80: 538.38 | K80: 532.25 | L80: 524 | M80: 85.53386
A81: 71 | B81: BIOCON | C81: 407.55 | D81: 406.85 | E81: 402.70 | F81: 397.85 | G81: 393.70 | H81: 411.70 | I81: 415.85 | J81: 420.70 | K81: 411 | L81: 402 | M81: 22.39813
A82: 72 | B82: BIRLACORPN | C82: 1229 | D82: 1230.00 | E82: 1214.00 | F82: 1199.00 | G82: 1183.00 | H82: 1245.00 | I82: 1261.00 | J82: 1276.00 | K82: 1246 | L82: 1215 | M82: 0.55765
A83: 73 | B83: BSOFT | C83: 392.9 | D83: 391.60 | E83: 384.30 | F83: 375.70 | G83: 368.40 | H83: 400.20 | I83: 407.50 | J83: 416.10 | K83: 398.9 | L83: 383 | M83: 20.35242
A84: 74 | B84: BLISSGVS | C84: 108.1 | D84: 108.62 | E84: 107.33 | F84: 106.57 | G84: 105.28 | H84: 109.38 | I84: 110.67 | J84: 111.43 | K84: 109.9 | L84: 107.85 | M84: 1.79998
A85: 75 | B85: BLUEDART | C85: 5799.55 | D85: 5798.78 | E85: 5747.57 | F85: 5695.58 | G85: 5644.37 | H85: 5850.77 | I85: 5901.98 | J85: 5953.97 | K85: 5850 | L85: 5746.8 | M85: 0.37727
A86: 76 | B86: BLUESTARCO | C86: 815.3 | D86: 814.47 | E86: 809.73 | F86: 804.17 | G86: 799.43 | H86: 820.03 | I86: 824.77 | J86: 830.33 | K86: 819.2 | L86: 808.9 | M86: 0.8666
A87: 77 | B87: BBTC | C87: 1337.4 | D87: 1346.20 | E87: 1325.20 | F87: 1313.00 | G87: 1292.00 | H87: 1358.40 | I87: 1379.40 | J87: 1391.60 | K87: 1367.2 | L87: 1334 | M87: 1.15386
A88: 78 | B88: BOMDYEING | C88: 87.55 | D88: 88.12 | E88: 86.33 | F88: 85.12 | G88: 83.33 | H88: 89.33 | I88: 91.12 | J88: 92.33 | K88: 89.9 | L88: 86.9 | M88: 40.11492
A89: 79 | B89: BOSCHLTD | C89: 15025.6 | D89: 15081.87 | E89: 14913.73 | F89: 14801.87 | G89: 14633.73 | H89: 15193.73 | I89: 15361.87 | J89: 15473.73 | K89: 15250 | L89: 14970 | M89: 0.30973
A90: 80 | B90: BRIGADE | C90: 278.45 | D90: 279.68 | E90: 275.77 | F90: 273.08 | G90: 269.17 | H90: 282.37 | I90: 286.28 | J90: 288.97 | K90: 283.6 | L90: 277 | M90: 2.40653
A91: 81 | B91: BRITANNIA | C91: 3657.15 | D91: 3644.77 | E91: 3622.43 | F91: 3587.72 | G91: 3565.38 | H91: 3679.48 | I91: 3701.82 | J91: 3736.53 | K91: 3667.1 | L91: 3610.05 | M91: 3.57263
A92: 82 | B92: CARERATING | C92: 719.2 | D92: 721.90 | E92: 713.80 | F92: 708.40 | G92: 700.30 | H92: 727.30 | I92: 735.40 | J92: 740.80 | K92: 730 | L92: 716.5 | M92: 1.29153
A93: 83 | B93: CCL | C93: 362.25 | D93: 362.75 | E93: 357.50 | F93: 352.75 | G93: 347.50 | H93: 367.50 | I93: 372.75 | J93: 377.50 | K93: 368 | L93: 358 | M93: 6.78936
A94: 84 | B94: CESC | C94: 777.35 | D94: 777.03 | E94: 768.07 | F94: 758.78 | G94: 749.82 | H94: 786.32 | I94: 795.28 | J94: 804.57 | K94: 786 | L94: 767.75 | M94: 4.89151
A95: 85 | B95: CRISIL | C95: 2571.9 | D95: 2578.48 | E95: 2507.02 | F95: 2442.13 | G95: 2370.67 | H95: 2643.37 | I95: 2714.83 | J95: 2779.72 | K95: 2649.95 | L95: 2513.6 | M95: 0.37343
A96: 86 | B96: CSBBANK | C96: 347.6 | D96: 351.13 | E96: 341.47 | F96: 335.33 | G96: 325.67 | H96: 357.27 | I96: 366.93 | J96: 373.07 | K96: 360.8 | L96: 345 | M96: 11.43307
A97: 87 | B97: CADILAHC | C97: 640.65 | D97: 640.95 | E97: 633.00 | F97: 625.35 | G97: 617.40 | H97: 648.60 | I97: 656.55 | J97: 664.20 | K97: 648.9 | L97: 633.3 | M97: 58.96727
A98: 88 | B98: CANFINHOME | C98: 520.05 | D98: 520.45 | E98: 514.10 | F98: 508.15 | G98: 501.80 | H98: 526.40 | I98: 532.75 | J98: 538.70 | K98: 526.8 | L98: 514.5 | M98: 4.34086
A99: 89 | B99: CANBK | C99: 153.75 | D99: 154.93 | E99: 152.12 | F99: 150.48 | G99: 147.67 | H99: 156.57 | I99: 159.38 | J99: 161.02 | K99: 157.75 | L99: 153.3 | M99: 99.26727
A100: 90 | B100: CAPLIPOINT | C100: 658.5 | D100: 660.55 | E100: 653.35 | F100: 648.20 | G100: 641.00 | H100: 665.70 | I100: 672.90 | J100: 678.05 | K100: 667.75 | L100: 655.4 | M100: 0.76843
A101: 91 | B101: CGCL | C101: 530.55 | D101: 531.58 | E101: 526.97 | F101: 523.38 | G101: 518.77 | H101: 535.17 | I101: 539.78 | J101: 543.37 | K101: 536.2 | L101: 528 | M101: 0.34821
A102: 92 | B102: CARBORUNIV | C102: 596.2 | D102: 598.17 | E102: 586.33 | F102: 576.47 | G102: 564.63 | H102: 608.03 | I102: 619.87 | J102: 629.73 | K102: 610 | L102: 588.3 | M102: 1.84274
A103: 93 | B103: CASTROLIND | C103: 143.85 | D103: 144.10 | E103: 143.00 | F103: 142.15 | G103: 141.05 | H103: 144.95 | I103: 146.05 | J103: 146.90 | K103: 145.2 | L103: 143.25 | M103: 4.95514
A104: 94 | B104: CEATLTD | C104: 1350.65 | D104: 1349.55 | E104: 1339.10 | F104: 1327.55 | G104: 1317.10 | H104: 1361.10 | I104: 1371.55 | J104: 1383.10 | K104: 1360 | L104: 1338 | M104: 0.79026
A105: 95 | B105: CENTRALBK | C105: 26 | D105: 26.02 | E105: 25.53 | F105: 25.07 | G105: 24.58 | H105: 26.48 | I105: 26.97 | J105: 27.43 | K105: 26.5 | L105: 25.55 | M105: 200.46319
A106: 96 | B106: CDSL | C106: 985.05 | D106: 988.25 | E106: 978.50 | F106: 971.95 | G106: 962.20 | H106: 994.80 | I106: 1004.55 | J106: 1011.10 | K106: 998 | L106: 981.7 | M106: 3.13177
A107: 97 | B107: CENTURYPLY | C107: 406.35 | D107: 405.82 | E107: 401.63 | F107: 396.92 | G107: 392.73 | H107: 410.53 | I107: 414.72 | J107: 419.43 | K107: 410 | L107: 401.1 | M107: 1.805
A108: 98 | B108: CENTURYTEX | C108: 607.1 | D108: 606.50 | E108: 598.60 | F108: 590.10 | G108: 582.20 | H108: 615.00 | I108: 622.90 | J108: 631.40 | K108: 614.4 | L108: 598 | M108: 7.76504
A109: 99 | B109: CERA | C109: 4498.4 | D109: 4461.82 | E109: 4387.68 | F109: 4276.97 | G109: 4202.83 | H109: 4572.53 | I109: 4646.67 | J109: 4757.38 | K109: 4535.95 | L109: 4351.1 | M109: 0.22875
A110: 100 | B110: CHALET | C110: 179.3 | D110: 180.28 | E110: 177.02 | F110: 174.73 | G110: 171.47 | H110: 182.57 | I110: 185.83 | J110: 188.12 | K110: 183.55 | L110: 178 | M110: 1.21112
A111: 101 | B111: CHAMBLFERT | C111: 310.25 | D111: 306.25 | E111: 300.50 | F111: 290.75 | G111: 285.00 | H111: 316.00 | I111: 321.75 | J111: 331.50 | K111: 312 | L111: 296.5 | M111: 34.49947
A112: 102 | B112: CHENNPETRO | C112: 144.35 | D112: 143.83 | E112: 139.97 | F112: 135.58 | G112: 131.72 | H112: 148.22 | I112: 152.08 | J112: 156.47 | K112: 147.7 | L112: 139.45 | M112: 8.37927
A113: 103 | B113: CHOLAHLDNG | C113: 684.65 | D113: 679.17 | E113: 668.38 | F113: 652.12 | G113: 641.33 | H113: 695.43 | I113: 706.22 | J113: 722.48 | K113: 689.95 | L113: 662.9 | M113: 1.94172
A114: 104 | B114: CHOLAFIN | C114: 519.35 | D114: 520.68 | E114: 514.37 | F114: 509.38 | G114: 503.07 | H114: 525.67 | I114: 531.98 | J114: 536.97 | K114: 527 | L114: 515.7 | M114: 25.68036
A115: 105 | B115: CIPLA | C115: 979.6 | D115: 976.22 | E115: 963.43 | F115: 947.27 | G115: 934.48 | H115: 992.38 | I115: 1005.17 | J115: 1021.33 | K115: 989 | L115: 960.05 | M115: 43.00755
A116: 106 | B116: CUB | C116: 169.75 | D116: 170.08 | E116: 167.67 | F116: 165.58 | G116: 163.17 | H116: 172.17 | I116: 174.58 | J116: 176.67 | K116: 172.5 | L116: 168 | M116: 17.81994
A117: 107 | B117: COALINDIA | C117: 144.5 | D117: 145.45 | E117: 143.00 | F117: 141.50 | G117: 139.05 | H117: 146.95 | I117: 149.40 | J117: 150.90 | K117: 147.9 | L117: 143.95 | M117: 215.76435
A118: 108 | B118: COCHINSHIP | C118: 386.2 | D118: 390.55 | E118: 377.65 | F118: 369.10 | G118: 356.20 | H118: 399.10 | I118: 412.00 | J118: 420.55 | K118: 403.45 | L118: 382 | M118: 6.19066
A119: 109 | B119: COFORGE | C119: 4061.3 | D119: 4071.72 | E119: 4021.58 | F119: 3981.87 | G119: 3931.73 | H119: 4111.43 | I119: 4161.57 | J119: 4201.28 | K119: 4121.85 | L119: 4032 | M119: 2.89428
A120: 110 | B120: COLPAL | C120: 1669.55 | D120: 1674.85 | E120: 1659.70 | F120: 1649.85 | G120: 1634.70 | H120: 1684.70 | I120: 1699.85 | J120: 1709.70 | K120: 1690 | L120: 1665 | M120: 5.12449
A121: 111 | B121: CONCOR | C121: 694.3 | D121: 698.02 | E121: 688.78 | F121: 683.27 | G121: 674.03 | H121: 703.53 | I121: 712.77 | J121: 718.28 | K121: 707.25 | L121: 692.5 | M121: 5.17367
A122: 112 | B122: COROMANDEL | C122: 898.6 | D122: 905.42 | E122: 887.28 | F122: 875.97 | G122: 857.83 | H122: 916.73 | I122: 934.87 | J122: 946.18 | K122: 923.55 | L122: 894.1 | M122: 3.41182
A123: 113 | B123: CREDITACC | C123: 756.6 | D123: 755.05 | E123: 750.00 | F123: 743.40 | G123: 738.35 | H123: 761.65 | I123: 766.70 | J123: 773.30 | K123: 760.1 | L123: 748.45 | M123: 4.47739
A124: 114 | B124: CROMPTON | C124: 421.95 | D124: 423.73 | E124: 413.97 | F124: 405.98 | G124: 396.22 | H124: 431.72 | I124: 441.48 | J124: 449.47 | K124: 433.5 | L124: 415.75 | M124: 14.17476
A125: 115 | B125: CUMMINSIND | C125: 850.95 | D125: 857.25 | E125: 835.25 | F125: 819.55 | G125: 797.55 | H125: 872.95 | I125: 894.95 | J125: 910.65 | K125: 879.25 | L125: 841.55 | M125: 9.5094
A126: 116 | B126: CYIENT | C126: 845.45 | D126: 848.22 | E126: 820.43 | F126: 795.42 | G126: 767.63 | H126: 873.23 | I126: 901.02 | J126: 926.03 | K126: 876 | L126: 823.2 | M126: 1.25856
A127: 117 | B127: DBCORP | C127: 102.45 | D127: 103.60 | E127: 99.85 | F127: 97.25 | G127: 93.50 | H127: 106.20 | I127: 109.95 | J127: 112.55 | K127: 107.35 | L127: 101 | M127: 4.70821
A128: 118 | B128: DCBBANK | C128: 104.7 | D128: 105.28 | E128: 103.92 | F128: 103.13 | G128: 101.77 | H128: 106.07 | I128: 107.43 | J128: 108.22 | K128: 106.65 | L128: 104.5 | M128: 9.52595
A129: 119 | B129: DCMSHRIRAM | C129: 880.6 | D129: 887.10 | E129: 860.50 | F129: 840.40 | G129: 813.80 | H129: 907.20 | I129: 933.80 | J129: 953.90 | K129: 913.7 | L129: 867 | M129: 10.0221
A130: 120 | B130: DLF | C130: 287.2 | D130: 289.52 | E130: 282.68 | F130: 278.17 | G130: 271.33 | H130: 294.03 | I130: 300.87 | J130: 305.38 | K130: 296.35 | L130: 285 | M130: 79.69215
A131: 121 | B131: DABUR | C131: 567.35 | D131: 566.47 | E131: 562.43 | F131: 557.52 | G131: 553.48 | H131: 571.38 | I131: 575.42 | J131: 580.33 | K131: 570.5 | L131: 561.55 | M131: 17.61569
A132: 122 | B132: DALBHARAT | C132: 1874.15 | D132: 1872.12 | E132: 1856.23 | F132: 1838.32 | G132: 1822.43 | H132: 1890.03 | I132: 1905.92 | J132: 1923.83 | K132: 1888 | L132: 1854.2 | M132: 0.68307
A133: 123 | B133: DEEPAKNTR | C133: 1760.3 | D133: 1765.93 | E133: 1741.97 | F133: 1723.63 | G133: 1699.67 | H133: 1784.27 | I133: 1808.23 | J133: 1826.57 | K133: 1789.9 | L133: 1747.6 | M133: 6.4706
A134: 124 | B134: DELTACORP | C134: 178.65 | D134: 179.87 | E134: 177.03 | F134: 175.42 | G134: 172.58 | H134: 181.48 | I134: 184.32 | J134: 185.93 | K134: 182.7 | L134: 178.25 | M134: 9.49606
A135: 125 | B135: DHANI | C135: 177.05 | D135: 178.67 | E135: 172.98 | F135: 168.92 | G135: 163.23 | H135: 182.73 | I135: 188.42 | J135: 192.48 | K135: 184.35 | L135: 174.6 | M135: 26.70808
A136: 126 | B136: DHANUKA | C136: 954.1 | D136: 959.03 | E136: 946.07 | F136: 938.03 | G136: 925.07 | H136: 967.07 | I136: 980.03 | J136: 988.07 | K136: 972 | L136: 951 | M136: 0.74493
A137: 127 | B137: DBL | C137: 546.7 | D137: 549.62 | E137: 541.28 | F137: 535.87 | G137: 527.53 | H137: 555.03 | I137: 563.37 | J137: 568.78 | K137: 557.95 | L137: 544.2 | M137: 1.59468
A138: 128 | B138: DISHTV | C138: 13.95 | D138: 14.12 | E138: 13.73 | F138: 13.52 | G138: 13.13 | H138: 14.33 | I138: 14.72 | J138: 14.93 | K138: 14.5 | L138: 13.9 | M138: 73.3124
A139: 129 | B139: DCAL | C139: 211.45 | D139: 213.08 | E139: 207.37 | F139: 203.28 | G139: 197.57 | H139: 217.17 | I139: 222.88 | J139: 226.97 | K139: 218.8 | L139: 209 | M139: 16.5287
A140: 130 | B140: DIVISLAB | C140: 4356.15 | D140: 4341.88 | E140: 4314.27 | F140: 4272.38 | G140: 4244.77 | H140: 4383.77 | I140: 4411.38 | J140: 4453.27 | K140: 4369.5 | L140: 4300 | M140: 3.74334
A141: 131 | B141: DIXON | C141: 4477.75 | D141: 4490.25 | E141: 4438.50 | F141: 4399.25 | G141: 4347.50 | H141: 4529.50 | I141: 4581.25 | J141: 4620.50 | K141: 4542 | L141: 4451 | M141: 0.92226
A142: 132 | B142: LALPATHLAB | C142: 3184.25 | D142: 3181.70 | E142: 3149.50 | F142: 3114.75 | G142: 3082.55 | H142: 3216.45 | I142: 3248.65 | J142: 3283.40 | K142: 3213.9 | L142: 3146.95 | M142: 2.92037
A143: 133 | B143: DRREDDY | C143: 5433.1 | D143: 5422.68 | E143: 5390.42 | F143: 5347.73 | G143: 5315.47 | H143: 5465.37 | I143: 5497.63 | J143: 5540.32 | K143: 5454.95 | L143: 5380 | M143: 5.76261
A144: 134 | B144: EIDPARRY | C144: 445.5 | D144: 450.37 | E144: 432.13 | F144: 418.77 | G144: 400.53 | H144: 463.73 | I144: 481.97 | J144: 495.33 | K144: 468.6 | L144: 437 | M144: 15.13808
A145: 135 | B145: EIHOTEL | C145: 111.7 | D145: 112.87 | E145: 110.03 | F145: 108.37 | G145: 105.53 | H145: 114.53 | I145: 117.37 | J145: 119.03 | K145: 115.7 | L145: 111.2 | M145: 3.94327
A146: 136 | B146: EPL | C146: 280.4 | D146: 277.22 | E146: 273.18 | F146: 265.97 | G146: 261.93 | H146: 284.43 | I146: 288.47 | J146: 295.68 | K146: 281.25 | L146: 270 | M146: 9.91432
A147: 137 | B147: ESABINDIA | C147: 1858.45 | D147: 1874.33 | E147: 1827.22 | F147: 1795.98 | G147: 1748.87 | H147: 1905.57 | I147: 1952.68 | J147: 1983.92 | K147: 1921.45 | L147: 1843.1 | M147: 0.09022
A148: 138 | B148: EDELWEISS | C148: 72.2 | D148: 72.68 | E148: 71.47 | F148: 70.73 | G148: 69.52 | H148: 73.42 | I148: 74.63 | J148: 75.37 | K148: 73.9 | L148: 71.95 | M148: 12.69472
A149: 139 | B149: EICHERMOT | C149: 2705.1 | D149: 2718.03 | E149: 2687.07 | F149: 2669.03 | G149: 2638.07 | H149: 2736.07 | I149: 2767.03 | J149: 2785.07 | K149: 2749 | L149: 2700 | M149: 2.90136
A150: 140 | B150: ELGIEQUIP | C150: 210.5 | D150: 211.25 | E150: 209.25 | F150: 208.00 | G150: 206.00 | H150: 212.50 | I150: 214.50 | J150: 215.75 | K150: 213.25 | L150: 210 | M150: 0.38348
A151: 141 | B151: EMAMILTD | C151: 549.9 | D151: 547.42 | E151: 542.83 | F151: 535.77 | G151: 531.18 | H151: 554.48 | I151: 559.07 | J151: 566.13 | K151: 552 | L151: 540.35 | M151: 2.76323
A152: 142 | B152: ENDURANCE | C152: 1593.35 | D152: 1581.22 | E152: 1557.43 | F152: 1521.52 | G152: 1497.73 | H152: 1617.13 | I152: 1640.92 | J152: 1676.83 | K152: 1605 | L152: 1545.3 | M152: 1.76827
A153: 143 | B153: ENGINERSIN | C153: 80.55 | D153: 80.83 | E153: 79.97 | F153: 79.38 | G153: 78.52 | H153: 81.42 | I153: 82.28 | J153: 82.87 | K153: 81.7 | L153: 80.25 | M153: 14.5432
A154: 144 | B154: EQUITAS | C154: 94.95 | D154: 94.38 | E154: 93.27 | F154: 91.58 | G154: 90.47 | H154: 96.07 | I154: 97.18 | J154: 98.87 | K154: 95.5 | L154: 92.7 | M154: 19.47232
A155: 145 | B155: ERIS | C155: 696.4 | D155: 698.60 | E155: 687.80 | F155: 679.20 | G155: 668.40 | H155: 707.20 | I155: 718.00 | J155: 726.60 | K155: 709.4 | L155: 690 | M155: 0.38881
A156: 146 | B156: ESCORTS | C156: 1195.35 | D156: 1199.90 | E156: 1184.85 | F156: 1174.35 | G156: 1159.30 | H156: 1210.40 | I156: 1225.45 | J156: 1235.95 | K156: 1214.95 | L156: 1189.4 | M156: 9.50899
A157: 147 | B157: EXIDEIND | C157: 182.85 | D157: 183.30 | E157: 181.65 | F157: 180.45 | G157: 178.80 | H157: 184.50 | I157: 186.15 | J157: 187.35 | K157: 184.95 | L157: 182.1 | M157: 20.05216
A158: 148 | B158: FDC | C158: 354.35 | D158: 355.52 | E158: 351.33 | F158: 348.32 | G158: 344.13 | H158: 358.53 | I158: 362.72 | J158: 365.73 | K158: 359.7 | L158: 352.5 | M158: 1.3262
A159: 149 | B159: FEDERALBNK | C159: 86.5 | D159: 86.75 | E159: 85.75 | F159: 85.00 | G159: 84.00 | H159: 87.50 | I159: 88.50 | J159: 89.25 | K159: 87.75 | L159: 86 | M159: 171.0026
A160: 150 | B160: FINEORG | C160: 2871.75 | D160: 2882.25 | E160: 2840.50 | F160: 2809.25 | G160: 2767.50 | H160: 2913.50 | I160: 2955.25 | J160: 2986.50 | K160: 2924 | L160: 2851 | M160: 0.22587
A161: 151 | B161: FINCABLES | C161: 514.4 | D161: 518.55 | E161: 507.20 | F161: 500.00 | G161: 488.65 | H161: 525.75 | I161: 537.10 | J161: 544.30 | K161: 529.9 | L161: 511.35 | M161: 3.14068
A162: 152 | B162: FINPIPE | C162: 179.85 | D162: 181.38 | E162: 176.07 | F162: 172.28 | G162: 166.97 | H162: 185.17 | I162: 190.48 | J162: 194.27 | K162: 186.7 | L162: 177.6 | M162: 22.91555
A163: 153 | B163: FSL | C163: 188.45 | D163: 189.65 | E163: 173.80 | F163: 159.15 | G163: 143.30 | H163: 204.30 | I163: 220.15 | J163: 234.80 | K163: 205.5 | L163: 175 | M163: 422.36208
A164: 154 | B164: FORTIS | C164: 240.3 | D164: 240.57 | E164: 235.78 | F164: 231.27 | G164: 226.48 | H164: 245.08 | I164: 249.87 | J164: 254.38 | K164: 245.35 | L164: 236.05 | M164: 35.67997
A165: 155 | B165: FCONSUMER | C165: 9.35 | D165: 9.45 | E165: 9.25 | F165: 9.15 | G165: 8.95 | H165: 9.55 | I165: 9.75 | J165: 9.85 | K165: 9.65 | L165: 9.35 | M165: 79.12445
A166: 156 | B166: FRETAIL | C166: 63.7 | D166: 64.35 | E166: 62.75 | F166: 61.80 | G166: 60.20 | H166: 65.30 | I166: 66.90 | J166: 67.85 | K166: 65.95 | L166: 63.4 | M166: 18.1857
A167: 157 | B167: GAIL | C167: 152 | D167: 152.37 | E167: 150.98 | F167: 149.97 | G167: 148.58 | H167: 153.38 | I167: 154.77 | J167: 155.78 | K167: 153.75 | L167: 151.35 | M167: 64.09358
A168: 158 | B168: GEPIL | C168: 339.5 | D168: 339.25 | E168: 333.55 | F168: 327.60 | G168: 321.90 | H168: 345.20 | I168: 350.90 | J168: 356.85 | K168: 344.95 | L168: 333.3 | M168: 4.01553
A169: 159 | B169: GHCL | C169: 268.55 | D169: 270.07 | E169: 263.98 | F169: 259.42 | G169: 253.33 | H169: 274.63 | I169: 280.72 | J169: 285.28 | K169: 276.15 | L169: 265.5 | M169: 1.27896
A170: 160 | B170: GMMPFAUDLR | C170: 4577 | D170: 4593.88 | E170: 4548.12 | F170: 4519.23 | G170: 4473.47 | H170: 4622.77 | I170: 4668.53 | J170: 4697.42 | K170: 4639.65 | L170: 4565 | M170: 0.181
A171: 161 | B171: GMRINFRA | C171: 30.7 | D171: 30.95 | E171: 30.25 | F171: 29.80 | G171: 29.10 | H171: 31.40 | I171: 32.10 | J171: 32.55 | K171: 31.65 | L171: 30.5 | M171: 520.48148
A172: 162 | B172: GALAXYSURF | C172: 3014.8 | D172: 3022.27 | E172: 2995.53 | F172: 2976.27 | G172: 2949.53 | H172: 3041.53 | I172: 3068.27 | J172: 3087.53 | K172: 3049 | L172: 3003 | M172: 0.2496
A173: 163 | B173: GRSE | C173: 208.45 | D173: 208.08 | E173: 203.22 | F173: 197.98 | G173: 193.12 | H173: 213.32 | I173: 218.18 | J173: 223.42 | K173: 212.95 | L173: 202.85 | M173: 5.46875
A174: 164 | B174: GARFIBRES | C174: 3399.5 | D174: 3406.58 | E174: 3358.17 | F174: 3316.83 | G174: 3268.42 | H174: 3447.92 | I174: 3496.33 | J174: 3537.67 | K174: 3455 | L174: 3365.25 | M174: 0.16415
A175: 165 | B175: GICRE | C175: 204.3 | D175: 203.60 | E175: 199.45 | F175: 194.60 | G175: 190.45 | H175: 208.45 | I175: 212.60 | J175: 217.45 | K175: 207.75 | L175: 198.75 | M175: 25.89861
A176: 166 | B176: GILLETTE | C176: 5703.6 | D176: 5717.20 | E176: 5676.40 | F176: 5649.20 | G176: 5608.40 | H176: 5744.40 | I176: 5785.20 | J176: 5812.40 | K176: 5758 | L176: 5690 | M176: 0.02471
A177: 167 | B177: GLAXO | C177: 1516.15 | D177: 1520.85 | E177: 1505.65 | F177: 1495.15 | G177: 1479.95 | H177: 1531.35 | I177: 1546.55 | J177: 1557.05 | K177: 1536.05 | L177: 1510.35 | M177: 0.28228
A178: 168 | B178: GLENMARK | C178: 655.2 | D178: 659.83 | E178: 648.37 | F178: 641.53 | G178: 630.07 | H178: 666.67 | I178: 678.13 | J178: 684.97 | K178: 671.3 | L178: 653 | M178: 14.33644
A179: 169 | B179: GODFRYPHLP | C179: 1006.85 | D179: 1012.20 | E179: 997.65 | F179: 988.45 | G179: 973.90 | H179: 1021.40 | I179: 1035.95 | J179: 1045.15 | K179: 1026.75 | L179: 1003 | M179: 1.57358
A180: 170 | B180: GODREJAGRO | C180: 638.4 | D180: 632.08 | E180: 615.32 | F180: 592.23 | G180: 575.47 | H180: 655.17 | I180: 671.93 | J180: 695.02 | K180: 648.85 | L180: 609 | M180: 18.55259
A181: 171 | B181: GODREJCP | C181: 877.8 | D181: 886.28 | E181: 864.57 | F181: 851.33 | G181: 829.62 | H181: 899.52 | I181: 921.23 | J181: 934.47 | K181: 908 | L181: 873.05 | M181: 42.06824
A182: 172 | B182: GODREJIND | C182: 583.6 | D182: 583.93 | E182: 570.87 | F182: 558.13 | G182: 545.07 | H182: 596.67 | I182: 609.73 | J182: 622.47 | K182: 597 | L182: 571.2 | M182: 8.19141
A183: 173 | B183: GODREJPROP | C183: 1406.05 | D183: 1404.55 | E183: 1395.45 | F183: 1384.85 | G183: 1375.75 | H183: 1415.15 | I183: 1424.25 | J183: 1434.85 | K183: 1413.65 | L183: 1393.95 | M183: 3.04321
A184: 174 | B184: GRANULES | C184: 324.8 | D184: 322.72 | E184: 318.63 | F184: 312.47 | G184: 308.38 | H184: 328.88 | I184: 332.97 | J184: 339.13 | K184: 326.8 | L184: 316.55 | M184: 39.11171
A185: 175 | B185: GRAPHITE | C185: 631.5 | D185: 632.83 | E185: 617.67 | F185: 603.83 | G185: 588.67 | H185: 646.67 | I185: 661.83 | J185: 675.67 | K185: 648 | L185: 619 | M185: 12.8788
A186: 176 | B186: GRASIM | C186: 1503.3 | D186: 1508.52 | E186: 1493.78 | F186: 1484.27 | G186: 1469.53 | H186: 1518.03 | I186: 1532.77 | J186: 1542.28 | K186: 1523.25 | L186: 1499 | M186: 7.34358
A187: 177 | B187: GESHIP | C187: 385.8 | D187: 388.47 | E187: 380.93 | F187: 376.07 | G187: 368.53 | H187: 393.33 | I187: 400.87 | J187: 405.73 | K187: 396 | L187: 383.6 | M187: 3.29033
A188: 178 | B188: GREAVESCOT | C188: 161.75 | D188: 163.75 | E188: 158.80 | F188: 155.85 | G188: 150.90 | H188: 166.70 | I188: 171.65 | J188: 174.60 | K188: 168.7 | L188: 160.8 | M188: 32.11192
A189: 179 | B189: GRINDWELL | C189: 1242.2 | D189: 1228.95 | E189: 1203.30 | F189: 1164.40 | G189: 1138.75 | H189: 1267.85 | I189: 1293.50 | J189: 1332.40 | K189: 1254.6 | L189: 1190.05 | M189: 2.15945
A190: 180 | B190: GUJALKALI | C190: 407.9 | D190: 409.78 | E190: 403.57 | F190: 399.23 | G190: 393.02 | H190: 414.12 | I190: 420.33 | J190: 424.67 | K190: 416 | L190: 405.45 | M190: 2.78767
A191: 181 | B191: GAEL | C191: 170.85 | D191: 172.15 | E191: 168.30 | F191: 165.75 | G191: 161.90 | H191: 174.70 | I191: 178.55 | J191: 181.10 | K191: 176 | L191: 169.6 | M191: 3.28609
A192: 182 | B192: FLUOROCHEM | C192: 1034.15 | D192: 1049.05 | E192: 1010.20 | F192: 986.25 | G192: 947.40 | H192: 1073.00 | I192: 1111.85 | J192: 1135.80 | K192: 1087.9 | L192: 1025.1 | M192: 0.63154
A193: 183 | B193: GUJGASLTD | C193: 662.45 | D193: 667.82 | E193: 652.73 | F193: 643.02 | G193: 627.93 | H193: 677.53 | I193: 692.62 | J193: 702.33 | K193: 682.9 | L193: 658.1 | M193: 28.72417
A194: 184 | B194: GMDCLTD | C194: 71.85 | D194: 73.08 | E194: 69.42 | F194: 66.98 | G194: 63.32 | H194: 75.52 | I194: 79.18 | J194: 81.62 | K194: 76.75 | L194: 70.65 | M194: 31.01199
A195: 185 | B195: GNFC | C195: 373.65 | D195: 372.43 | E195: 366.22 | F195: 358.78 | G195: 352.57 | H195: 379.87 | I195: 386.08 | J195: 393.52 | K195: 378.65 | L195: 365 | M195: 9.76814
A196: 186 | B196: GPPL | C196: 115 | D196: 115.68 | E196: 112.57 | F196: 110.13 | G196: 107.02 | H196: 118.12 | I196: 121.23 | J196: 123.67 | K196: 118.8 | L196: 113.25 | M196: 30.9913
A197: 187 | B197: GSFC | C197: 113.55 | D197: 113.55 | E197: 111.50 | F197: 109.45 | G197: 107.40 | H197: 115.60 | I197: 117.65 | J197: 119.70 | K197: 115.6 | L197: 111.5 | M197: 15.66847
A198: 188 | B198: GSPL | C198: 335.2 | D198: 333.57 | E198: 330.73 | F198: 326.27 | G198: 323.43 | H198: 338.03 | I198: 340.87 | J198: 345.33 | K198: 336.4 | L198: 329.1 | M198: 4.92726
A199: 189 | B199: GULFOILLUB | C199: 690.3 | D199: 696.12 | E199: 678.23 | F199: 666.17 | G199: 648.28 | H199: 708.18 | I199: 726.07 | J199: 738.13 | K199: 714 | L199: 684.05 | M199: 2.49425
A200: 190 | B200: HEG | C200: 2191.85 | D200: 2206.10 | E200: 2171.75 | F200: 2151.65 | G200: 2117.30 | H200: 2226.20 | I200: 2260.55 | J200: 2280.65 | K200: 2240.45 | L200: 2186 | M200: 1.00457
A201: 191 | B201: HCLTECH | C201: 983.6 | D201: 986.00 | E201: 978.10 | F201: 972.60 | G201: 964.70 | H201: 991.50 | I201: 999.40 | J201: 1004.90 | K201: 993.9 | L201: 980.5 | M201: 18.9517
A202: 192 | B202: HDFCAMC | C202: 2944 | D202: 2950.30 | E202: 2923.70 | F202: 2903.40 | G202: 2876.80 | H202: 2970.60 | I202: 2997.20 | J202: 3017.50 | K202: 2976.9 | L202: 2930 | M202: 2.26803
A203: 193 | B203: HDFCBANK | C203: 1502.05 | D203: 1500.80 | E203: 1493.40 | F203: 1484.75 | G203: 1477.35 | H203: 1509.45 | I203: 1516.85 | J203: 1525.50 | K203: 1508.2 | L203: 1492.15 | M203: 54.85846
A204: 194 | B204: HDFCLIFE | C204: 686.5 | D204: 689.68 | E204: 676.87 | F204: 667.23 | G204: 654.42 | H204: 699.32 | I204: 712.13 | J204: 721.77 | K204: 702.5 | L204: 680.05 | M204: 308.20343
A205: 195 | B205: HFCL | C205: 67.2 | D205: 67.43 | E205: 66.07 | F205: 64.93 | G205: 63.57 | H205: 68.57 | I205: 69.93 | J205: 71.07 | K205: 68.8 | L205: 66.3 | M205: 151.1625
A206: 196 | B206: HATHWAY | C206: 26.2 | D206: 26.37 | E206: 25.93 | F206: 25.67 | G206: 25.23 | H206: 26.63 | I206: 27.07 | J206: 27.33 | K206: 26.8 | L206: 26.1 | M206: 69.6143
... 321 more rows

Sheet Bulk Deals
E6: Back To Main Page
A7: Subject : | B7: BULK DEAL | D7: =Main!B10 -> 2021-06-30
A9: Date | B9: Scrip code | C9: Scrip Name | D9: Client Name | E9: Buy / Sell | F9: Quantity Traded | G9: Trade Price / Wt.Avg.trade price | H9: Exchange
A10: 2021-06-29 | B10: 539570 | C10: ACEWIN | D10: SIVAKUMARAN | E10: SELL | F10: 115,200 | G10: 8.99 | H10: BSE
A11: 2021-06-29 | B11: 543309 | C11: ADESHWAR | D11: AMISH RASIK MEHTA HUF | E11: BUY | F11: 120,000 | G11: 25.15 | H11: BSE
A12: 2021-06-29 | B12: 522251 | C12: CENLUB | D12: RAJEEV JAWAHAR | E12: SELL | F12: 25,000 | G12: 76.44 | H12: BSE
A13: 2021-06-29 | B13: 543172 | C13: COSPOWER | D13: SHRENI SHARES PRIVATE LIMITED | E13: BUY | F13: 8,000 | G13: 50.81 | H13: BSE
A14: 2021-06-29 | B14: 543172 | C14: COSPOWER | D14: SHRENI SHARES PRIVATE LIMITED | E14: SELL | F14: 6,000 | G14: 52.75 | H14: BSE
A15: 2021-06-29 | B15: 543172 | C15: COSPOWER | D15: ATULKUMARNAGINLALCHAUHAN | E15: BUY | F15: 2,000 | G15: 46 | H15: BSE
A16: 2021-06-29 | B16: 543172 | C16: COSPOWER | D16: ATULKUMARNAGINLALCHAUHAN | E16: SELL | F16: 44,000 | G16: 50 | H16: BSE
A17: 2021-06-29 | B17: 543172 | C17: COSPOWER | D17: SATYA PRAKASH MITTAL | E17: BUY | F17: 34,000 | G17: 49.79 | H17: BSE
A18: 2021-06-29 | B18: 540361 | C18: DANUBE | D18: KARUNA PRAVIN SHAH | E18: BUY | F18: 7,500 | G18: 26.9 | H18: BSE
A19: 2021-06-29 | B19: 540361 | C19: DANUBE | D19: KARUNA PRAVIN SHAH | E19: SELL | F19: 33,041 | G19: 28.36 | H19: BSE
A20: 2021-06-29 | B20: 540361 | C20: DANUBE | D20: SHAH BIREN P HUF | E20: SELL | F20: 47,506 | G20: 28.95 | H20: BSE
A21: 2021-06-29 | B21: 539197 | C21: DEVHARI | D21: PARUL ASHOK SHAH | E21: SELL | F21: 464,723 | G21: 0.82 | H21: BSE
A22: 2021-06-29 | B22: 539197 | C22: DEVHARI | D22: DHARMIK NITINBHAI CHAUHAN | E22: BUY | F22: 523,300 | G22: 0.82 | H22: BSE
A23: 2021-06-29 | B23: 539197 | C23: DEVHARI | D23: DHARMIK NITINBHAI CHAUHAN | E23: SELL | F23: 303,300 | G23: 0.8 | H23: BSE
A24: 2021-06-29 | B24: 530643 | C24: ECORECO | D24: BENNETT COLEMAN & CO LTD | E24: SELL | F24: 340,304 | G24: 57.66 | H24: BSE
A25: 2021-06-29 | B25: 542668 | C25: EVANS | D25: KHETBAI NARSHI GADA | E25: SELL | F25: 14,000 | G25: 91.5 | H25: BSE
A26: 2021-06-29 | B26: 542918 | C26: GIANLIFE | D26: MAYURI SHRIPAL VORA | E26: BUY | F26: 30,000 | G26: 37.35 | H26: BSE
A27: 2021-06-29 | B27: 540743 | C27: GODREJAGRO | D27: GODREJ INDUSTRIES LTD | E27: BUY | F27: 3,126,102 | G27: 621.51 | H27: BSE
A28: 2021-06-29 | B28: 500164 | C28: GODREJIND | D28: TAD FAMILY TRUST | E28: BUY | F28: 2,520,068 | G28: 575 | H28: BSE
A29: 2021-06-29 | B29: 500164 | C29: GODREJIND | D29: HNG FAMILY TRUST | E29: BUY | F29: 2,520,068 | G29: 575 | H29: BSE
A30: 2021-06-29 | B30: 500164 | C30: GODREJIND | D30: SNG FAMILY TRUST | E30: BUY | F30: 2,520,068 | G30: 575 | H30: BSE
A31: 2021-06-29 | B31: 500164 | C31: GODREJIND | D31: PG FAMILY TRUST | E31: BUY | F31: 2,520,069 | G31: 575 | H31: BSE
A32: 2021-06-29 | B32: 500164 | C32: GODREJIND | D32: NG FAMILY TRUST | E32: BUY | F32: 2,520,069 | G32: 575 | H32: BSE
A33: 2021-06-29 | B33: 500164 | C33: GODREJIND | D33: BNG FAMILY TRUST | E33: BUY | F33: 2,520,069 | G33: 575 | H33: BSE
A34: 2021-06-29 | B34: 500164 | C34: GODREJIND | D34: ANAMUDI REAL ESTATES LLP | E34: SELL | F34: 6,633,552 | G34: 575 | H34: BSE
A35: 2021-06-29 | B35: 500164 | C35: GODREJIND | D35: GODREJ SEEDS AND GENETICS LIMITED | E35: SELL | F35: 8,486,859 | G35: 575 | H35: BSE
A36: 2021-06-29 | B36: 540777 | C36: HDFCLIFE | D36: STANDARD LIFE (MAURITIUS HOLDINGS) 2006 LTD | E36: SELL | F36: 50,422,552 | G36: 672.89 | H36: BSE
A37: 2021-06-29 | B37: 540777 | C37: HDFCLIFE | D37: STANDARD LIFE MAURITIUS HOLDINGS 2006 LTD | E37: SELL | F37: 50,422,552 | G37: 672.46 | H37: BSE
A38: 2021-06-29 | B38: 539697 | C38: HILIKS | D38: BRAHMAJI A | E38: SELL | F38: 78,061 | G38: 17.02 | H38: BSE
A39: 2021-06-29 | B39: 536709 | C39: INDRENEW | D39: GAURAV CHANDRAKANT SHAH | E39: SELL | F39: 46,775 | G39: 11.57 | H39: BSE
A40: 2021-06-29 | B40: 536709 | C40: INDRENEW | D40: JHANVI ARVINDBHAI SURTI | E40: BUY | F40: 29,123 | G40: 11.55 | H40: BSE
A41: 2021-06-29 | B41: 536709 | C41: INDRENEW | D41: INDIRA ARVIND SURTI | E41: BUY | F41: 31,200 | G41: 11.55 | H41: BSE
A42: 2021-06-29 | B42: 540809 | C42: MRCEXIM | D42: ESPS FINSERVE PRIVATE LIMITED | E42: BUY | F42: 64,000 | G42: 5.42 | H42: BSE
A43: 2021-06-29 | B43: 540809 | C43: MRCEXIM | D43: ESPS FINSERVE PRIVATE LIMITED | E43: SELL | F43: 16,000 | G43: 5.2 | H43: BSE
A44: 2021-06-29 | B44: 540243 | C44: NEWLIGHT | D44: NISHANT PRAVIN WASHA | E44: BUY | F44: 25,000 | G44: 29.17 | H44: BSE
A45: 2021-06-29 | B45: 540243 | C45: NEWLIGHT | D45: MONIKA RAJPUT | E45: SELL | F45: 13,370 | G45: 29 | H45: BSE
A46: 2021-06-29 | B46: 506122 | C46: PANKAJPIYUS | D46: PRANABA KUMAR NAYAK | E46: SELL | F46: 4,000 | G46: 99.35 | H46: BSE
A47: 2021-06-29 | B47: 504335 | C47: PAZEL | D47: ALPHA LEON ENTERPRISES LLP | E47: BUY | F47: 6 | G47: 0.63 | H47: BSE
A48: 2021-06-29 | B48: 504335 | C48: PAZEL | D48: ALPHA LEON ENTERPRISES LLP | E48: SELL | F48: 2,998,993 | G48: 0.64 | H48: BSE
A49: 2021-06-29 | B49: 509835 | C49: PREMSYN | D49: JAIN MAHAVEER | E49: BUY | F49: 25,297 | G49: 14.49 | H49: BSE
A50: 2021-06-29 | B50: 512217 | C50: PRISMMEDI | D50: JILESH NAVIN CHHEDA | E50: BUY | F50: 100,000 | G50: 7.54 | H50: BSE
A51: 2021-06-29 | B51: 512217 | C51: PRISMMEDI | D51: ACME INVESTMENT ADVISORS PRIVATE LIMITED | E51: SELL | F51: 58,000 | G51: 7.54 | H51: BSE
A52: 2021-06-29 | B52: 512217 | C52: PRISMMEDI | D52: JASJOT SINGH | E52: SELL | F52: 100,000 | G52: 7.54 | H52: BSE
A53: 2021-06-29 | B53: 534675 | C53: PROZONINTU | D53: DEEP GUPTA FAMILY TRUST | E53: SELL | F53: 810,000 | G53: 32.28 | H53: BSE
A54: 2021-06-29 | B54: 539673 | C54: RCL | D54: GULREZKAMALWARSI | E54: SELL | F54: 8,000 | G54: 8.03 | H54: BSE
A55: 2021-06-29 | B55: 500111 | C55: RELCAPITAL | D55: MANSI SHARE & STOCK ADVISORS PRIVATE LIMITED | E55: BUY | F55: 553,038 | G55: 27.27 | H55: BSE
A56: 2021-06-29 | B56: 500111 | C56: RELCAPITAL | D56: MANSI SHARE & STOCK ADVISORS PRIVATE LIMITED | E56: SELL | F56: 1,353,025 | G56: 27.27 | H56: BSE
A57: 2021-06-29 | B57: 539561 | C57: REMLIFE | D57: SIDDHARTH CHIMANLAL SHAH . | E57: SELL | F57: 45,580 | G57: 102.26 | H57: BSE
A58: 2021-06-29 | B58: 533470 | C58: RUSHIL | D58: GHANSHYAMBHAI AMBALAL THAKKAR | E58: SELL | F58: 299,466 | G58: 250 | H58: BSE
A59: 2021-06-29 | B59: 533470 | C59: RUSHIL | D59: SANJAY AGARWAL | E59: BUY | F59: 300,000 | G59: 250 | H59: BSE
A60: 2021-06-29 | B60: 530525 | C60: SHEETAL | D60: PAULOMI MAYANK KOTHARI | E60: SELL | F60: 60,000 | G60: 4.46 | H60: BSE
A61: 2021-06-29 | B61: 539833 | C61: SICLTD | D61: VARSHA NARENDRA MORABIA | E61: BUY | F61: 500,000 | G61: 0.34 | H61: BSE
A62: 2021-06-29 | B62: 539833 | C62: SICLTD | D62: NARENDRA BALWANT MORBIA | E62: BUY | F62: 500,000 | G62: 0.34 | H62: BSE
A63: 2021-06-29 | B63: 539833 | C63: SICLTD | D63: VENKAYAMMA PALADUGU | E63: BUY | F63: 400,000 | G63: 0.34 | H63: BSE
A64: 2021-06-29 | B64: 533019 | C64: SIMPLXPAP | D64: NATIONAL ISURANCE CO LTD | E64: SELL | F64: 24,847 | G64: 3.81 | H64: BSE
A65: 2021-06-29 | B65: 539026 | C65: SSPNFIN | D65: ESPS FINSERVE PRIVATE LIMITED | E65: BUY | F65: 32,000 | G65: 13.55 | H65: BSE
A66: 2021-06-29 | B66: 539026 | C66: SSPNFIN | D66: ASHOK KUMAR SINGH | E66: SELL | F66: 32,000 | G66: 13.53 | H66: BSE
A67: 2021-06-29 | B67: 539026 | C67: SSPNFIN | D67: ESPS FINSERVE PRIVATE LIMITED. | E67: SELL | F67: 20,000 | G67: 12.7 | H67: BSE
A68: 2021-06-29 | B68: 539026 | C68: SSPNFIN | D68: SUBASH RAMASHISH MISHRA | E68: BUY | F68: 28,000 | G68: 12.8 | H68: BSE
A69: 2021-06-29 | B69: 539026 | C69: SSPNFIN | D69: ASHOK KUMAR SINGH | E69: BUY | F69: 32,000 | G69: 12.6 | H69: BSE
A70: 2021-06-29 | B70: 539026 | C70: SSPNFIN | D70: SURESH RAMCHANDRA SONI | E70: SELL | F70: 28,000 | G70: 12.75 | H70: BSE
A71: 2021-06-29 | B71: 539026 | C71: SSPNFIN | D71: DEVJEET CHAKRABORTY | E71: BUY | F71: 16,000 | G71: 13.55 | H71: BSE
A72: 2021-06-29 | B72: 539026 | C72: SSPNFIN | D72: ASHOK KUMAR SINGH | E72: BUY | F72: 20,000 | G72: 12.7 | H72: BSE
A73: 2021-06-29 | B73: 539026 | C73: SSPNFIN | D73: DEVJEET CHAKRABORTY | E73: SELL | F73: 28,000 | G73: 12.89 | H73: BSE
A74: 2021-06-29 | B74: 521113 | C74: SUDTIND-B | D74: GAURISHANKAR LALCHAND DALMIA | E74: BUY | F74: 125,165 | G74: 17.5 | H74: BSE
A75: 2021-06-29 | B75: 521113 | C75: SUDTIND-B | D75: HT MEDIA LIMITED | E75: SELL | F75: 125,000 | G75: 17.5 | H75: BSE
A76: 2021-06-29 | B76: 542025 | C76: SUNRETAIL | D76: VANRAJ DADBHAI KAHOR | E76: SELL | F76: 63,000 | G76: 30.54 | H76: BSE
A77: 2021-06-29 | B77: 509945 | C77: THACKER | D77: RUSTOM DADY MEHER HOMJI | E77: SELL | F77: 6,215 | G77: 218.39 | H77: BSE
A78: 2021-06-29 | B78: 513216 | C78: UTTAMSTL | D78: RUSHABH MUKESH VORA | E78: BUY | F78: 1,000,000 | G78: 5.84 | H78: BSE
A79: 2021-06-29 | B79: 513216 | C79: UTTAMSTL | D79: RUSHABH MUKESH VORA | E79: SELL | F79: 1,100,000 | G79: 5.79 | H79: BSE
A80: 2021-06-29 | B80: 513216 | C80: UTTAMSTL | D80: MANSI SHARE & STOCK ADVISORS PRIVATE LIMITED | E80: BUY | F80: 2,000,004 | G80: 5.71 | H80: BSE
A81: 2021-06-29 | B81: 513216 | C81: UTTAMSTL | D81: ARCHISHA STEELS PRIVATE LIMITED | E81: SELL | F81: 2,500,000 | G81: 5.84 | H81: BSE
A82: 2021-06-29 | B82: 513216 | C82: UTTAMSTL | D82: SAINATH TRADING COMPANY PRIVATE LIMITED . | E82: SELL | F82: 3,100,000 | G82: 5.84 | H82: BSE
A83: 2021-06-29 | B83: 513216 | C83: UTTAMSTL | D83: EVERGREEN TRADEPLACE PRIVATE LIMITED | E83: SELL | F83: 3,100,000 | G83: 5.84 | H83: BSE
A84: 2021-06-29 | B84: 513216 | C84: UTTAMSTL | D84: TOPGAIN FINANCE PRIVATE LIMITED | E84: BUY | F84: 1,500,000 | G84: 5.84 | H84: BSE
A85: 2021-06-29 | B85: 513216 | C85: UTTAMSTL | D85: TEJAS TRADEFIN LLP | E85: BUY | F85: 3,065,880 | G85: 5.48 | H85: BSE
A86: 2021-06-29 | B86: 513216 | C86: UTTAMSTL | D86: TEJAS TRADEFIN LLP | E86: SELL | F86: 848,427 | G86: 5.37 | H86: BSE
A87: 2021-06-29 | B87: 513216 | C87: UTTAMSTL | D87: TOPGAIN FINANCE PRIVATE LIMITED | E87: SELL | F87: 1,300,000 | G87: 5.3 | H87: BSE
A88: 2021-06-29 | B88: 513216 | C88: UTTAMSTL | D88: ALPHA LEON ENTERPRISES LLP | E88: BUY | F88: 1,120,055 | G88: 5.64 | H88: BSE
A89: 2021-06-29 | B89: 513216 | C89: UTTAMSTL | D89: ALPHA LEON ENTERPRISES LLP | E89: SELL | F89: 605,092 | G89: 5.3 | H89: BSE
A90: 2021-06-29 | B90: 503657 | C90: VEERENRGY | D90: ICHHABEN ABHUBHAI DESAI | E90: BUY | F90: 323,577 | G90: 13.61 | H90: BSE
A91: 2021-06-29 | B91: 503657 | C91: VEERENRGY | D91: RAISONNEUR CAPITAL LTD | E91: SELL | F91: 323,577 | G91: 13.61 | H91: BSE
A92: 2021-06-29 | B92: 517393 | C92: VINTRON | D92: NETAXCESS COMMUNICATIONS LIMITED | E92: SELL | F92: 1,355,000 | G92: 0.8 | H92: BSE
A93: 2021-06-29 | B93: 539222 | C93: VMV | D93: ESPS FINSERVE PRIVATE LIMITED. | E93: SELL | F93: 30,000 | G93: 9.23 | H93: BSE
A94: 2021-06-29 | B94: 539222 | C94: VMV | D94: DHARMENDRASINH SHIVBHA JADEJA | E94: SELL | F94: 87,500 | G94: 9.35 | H94: BSE
A95: 2021-06-29 | B95: 539222 | C95: VMV | D95: SHUBHAM RAMESHCHANDRA SHARMA | E95: BUY | F95: 52,500 | G95: 9.36 | H95: BSE
A96: 2021-06-29 | B96: 505412 | C96: WENDT | D96: SBI MUTUAL FUND | E96: BUY | F96: 69,932 | G96: 3850 | H96: BSE
A97: 2021-06-29 | B97: 505412 | C97: WENDT | D97: PLUTUS WEALTH MANAGEMENT LLP | E97: SELL | F97: 70,000 | G97: 3850.01 | H97: BSE
A98: 2021-06-29 | B98: 503624 | C98: ZSVARAJT | D98: PRANABA KUMAR NAYAK | E98: BUY | F98: 78,506 | G98: 4.08 | H98: BSE
A99: 2021-06-29 | B99: ANDHRACEMT | C99: Andhra Cements Limited | D99: ALPHA LEON ENTERPRISES LLP | E99: BUY | F99: 1,700,003 | G99: 15.1 | H99: NSE
A100: 2021-06-29 | B100: ANDHRSUGAR | C100: The Andhra Sugars Ltd | D100: GRAVITON RESEARCH CAPITAL LLP | E100: BUY | F100: 212,163 | G100: 588.34 | H100: NSE
A101: 2021-06-29 | B101: ANDHRSUGAR | C101: The Andhra Sugars Ltd | D101: NK SECURITIES RESEARCH PRIVATE LIMITED | E101: BUY | F101: 152,173 | G101: 600.45 | H101: NSE
A102: 2021-06-29 | B102: APEX | C102: Apex Frozen Foods Limited | D102: PARTH INFIN BROKERS PVT LTD | E102: BUY | F102: 253,710 | G102: 285.5 | H102: NSE
A103: 2021-06-29 | B103: ARCHIES | C103: Archies Limited | D103: MANSI SHARES & STOCK ADVISORS PVT LTD | E103: BUY | F103: 300,005 | G103: 20.29 | H103: NSE
A104: 2021-06-29 | B104: ARCHIES | C104: Archies Limited | D104: URMILA DOSHI | E104: BUY | F104: 724,492 | G104: 20.13 | H104: NSE
A105: 2021-06-29 | B105: ARIES | C105: Aries Agro Limited | D105: SANTOSH KUMAR AGARWAL | E105: BUY | F105: 72,491 | G105: 150.07 | H105: NSE
A106: 2021-06-29 | B106: ARIES | C106: Aries Agro Limited | D106: XTX MARKETS LLP | E106: BUY | F106: 102,783 | G106: 147.31 | H106: NSE
A107: 2021-06-29 | B107: ARIES | C107: Aries Agro Limited | D107: GRAVITON RESEARCH CAPITAL LLP | E107: BUY | F107: 114,317 | G107: 148.05 | H107: NSE
A108: 2021-06-29 | B108: DODLA | C108: Dodla Dairy Limited | D108: GRAVITON RESEARCH CAPITAL LLP | E108: BUY | F108: 306,655 | G108: 607.81 | H108: NSE
A109: 2021-06-29 | B109: DWARKESH | C109: Dwarikesh Sugar Industrie | D109: GRAVITON RESEARCH CAPITAL LLP | E109: BUY | F109: 1,484,149 | G109: 80.14 | H109: NSE
A110: 2021-06-29 | B110: GICHSGFIN | C110: Gic Housing Finance Ltd | D110: GRAVITON RESEARCH CAPITAL LLP | E110: BUY | F110: 423,728 | G110: 166.28 | H110: NSE
A111: 2021-06-29 | B111: GODREJPROP | C111: Godrej Properties Ltd | D111: GODREJ INDUSTRIES LTD | E111: BUY | F111: 7,042,374 | G111: 1416 | H111: NSE
A112: 2021-06-29 | B112: LINCOLN | C112: Lincoln Pharma Ltd | D112: XTX MARKETS LLP | E112: BUY | F112: 153,303 | G112: 339.2 | H112: NSE
A113: 2021-06-29 | B113: LINCOLN | C113: Lincoln Pharma Ltd | D113: GRAVITON RESEARCH CAPITAL LLP | E113: BUY | F113: 179,634 | G113: 340.02 | H113: NSE
A114: 2021-06-29 | B114: MANGALAM | C114: Mangalam Drugs And Organi | D114: JIGNEY BHACHECH (HUF) | E114: BUY | F114: 105,910 | G114: 150.58 | H114: NSE
A115: 2021-06-29 | B115: MOKSH | C115: Moksh Ornaments Limited | D115: ABHAY NARAIN GUPTA | E115: BUY | F115: 100,000 | G115: 96 | H115: NSE
A116: 2021-06-29 | B116: MOKSH | C116: Moksh Ornaments Limited | D116: DAYAL TAHILRAM PARWANI | E116: BUY | F116: 100,000 | G116: 96 | H116: NSE
A117: 2021-06-29 | B117: NELCO | C117: Nelco Ltd. | D117: NK SECURITIES RESEARCH PRIVATE LIMITED | E117: BUY | F117: 334,905 | G117: 363.03 | H117: NSE
A118: 2021-06-29 | B118: NELCO | C118: Nelco Ltd. | D118: NUMIV RESEARCH PRIVATE LIMITED | E118: BUY | F118: 150,626 | G118: 362.72 | H118: NSE
A119: 2021-06-29 | B119: NELCO | C119: Nelco Ltd. | D119: GRAVITON RESEARCH CAPITAL LLP | E119: BUY | F119: 257,433 | G119: 353.16 | H119: NSE
A120: 2021-06-29 | B120: NELCO | C120: Nelco Ltd. | D120: QE SECURITIES | E120: BUY | F120: 155,057 | G120: 366.97 | H120: NSE
A121: 2021-06-29 | B121: NELCO | C121: Nelco Ltd. | D121: MUDUPULAVEMULA SURENDRANADHA REDDY | E121: BUY | F121: 121,675 | G121: 368.01 | H121: NSE
A122: 2021-06-29 | B122: NELCO | C122: Nelco Ltd. | D122: XTX MARKETS LLP | E122: BUY | F122: 373,936 | G122: 363.91 | H122: NSE
A123: 2021-06-29 | B123: ORTINLAB | C123: Ortin Laboratories Ltd | D123: MUKUL MAHESHWARI | E123: BUY | F123: 53,197 | G123: 38 | H123: NSE
A124: 2021-06-29 | B124: ORTINLAB | C124: Ortin Laboratories Ltd | D124: URMILA DOSHI | E124: BUY | F124: 15,000 | G124: 37.51 | H124: NSE
A125: 2021-06-29 | B125: RCOM | C125: Reliance Comm. Ltd. | D125: TOPGAIN FINANCE PRIVATE LIMITED | E125: BUY | F125: 47,777,652 | G125: 4.18 | H125: NSE
A126: 2021-06-29 | B126: RCOM | C126: Reliance Comm. Ltd. | D126: ADROIT FINANCIAL SERVICES PVT LTD | E126: BUY | F126: 41,319,027 | G126: 4.27 | H126: NSE
A127: 2021-06-29 | B127: RCOM | C127: Reliance Comm. Ltd. | D127: ASHWIN STOCKS AND INVESTMENT PRIVATE LIMITED | E127: BUY | F127: 33,000,000 | G127: 4.27 | H127: NSE
A128: 2021-06-29 | B128: RCOM | C128: Reliance Comm. Ltd. | D128: TEJAS TRADEFIN LLP | E128: BUY | F128: 19,570,546 | G128: 4.21 | H128: NSE
A129: 2021-06-29 | B129: RELCAPITAL | C129: Reliance Capital Limited | D129: ALPHA LEON ENTERPRISES LLP | E129: BUY | F129: 914,893 | G129: 26.11 | H129: NSE
A130: 2021-06-29 | B130: RELCAPITAL | C130: Reliance Capital Limited | D130: ASHWIN STOCKS AND INVESTMENT PRIVATE LIMITED | E130: BUY | F130: 1,328,083 | G130: 26.42 | H130: NSE
A131: 2021-06-29 | B131: RELCAPITAL | C131: Reliance Capital Limited | D131: MANSI SHARES & STOCK ADVISORS PVT LTD | E131: BUY | F131: 3,114,444 | G131: 26.5 | H131: NSE
A132: 2021-06-29 | B132: RELCAPITAL | C132: Reliance Capital Limited | D132: TEJAS TRADEFIN LLP | E132: BUY | F132: 1,416,923 | G132: 25.34 | H132: NSE
A133: 2021-06-29 | B133: RUSHIL | C133: Rushil Decor Limited | D133: SANJAY AGARWAL | E133: BUY | F133: 100,000 | G133: 250 | H133: NSE
A134: 2021-06-29 | B134: RUSHIL | C134: Rushil Decor Limited | D134: SAJJAN BHAJANKA | E134: BUY | F134: 400,000 | G134: 250 | H134: NSE
A135: 2021-06-29 | B135: SEQUENT | C135: Sequent Scientific Ltd. | D135: GRAVITON RESEARCH CAPITAL LLP | E135: BUY | F135: 1,390,142 | G135: 321.71 | H135: NSE
A136: 2021-06-29 | B136: SREINFRA | C136: SREI Infrastructure Finan | D136: TEJAS TRADEFIN LLP | E136: BUY | F136: 2,856,780 | G136: 13.7 | H136: NSE
A137: 2021-06-29 | B137: SUMIT | C137: Sumit Woods Limited | D137: SUNIL BHANDARI | E137: BUY | F137: 166,001 | G137: 14.35 | H137: NSE
A138: 2021-06-29 | B138: TRF | C138: TRF Limited | D138: NK SECURITIES RESEARCH PRIVATE LIMITED | E138: BUY | F138: 76,789 | G138: 158.76 | H138: NSE
A139: 2021-06-29 | B139: TWL | C139: Titagarh Wagons Limited | D139: GRAVITON RESEARCH CAPITAL LLP | E139: BUY | F139: 1,121,819 | G139: 73.7 | H139: NSE
A140: 2021-06-29 | B140: UTTAMSTL | C140: Uttam Galva Steels Limite | D140: ALPHA LEON ENTERPRISES LLP | E140: BUY | F140: 1,850,002 | G140: 5.69 | H140: NSE
A141: 2021-06-29 | B141: UTTAMSTL | C141: Uttam Galva Steels Limite | D141: TOPGAIN FINANCE PRIVATE LIMITED | E141: BUY | F141: 900,001 | G141: 5.47 | H141: NSE
A142: 2021-06-29 | B142: UTTAMSTL | C142: Uttam Galva Steels Limite | D142: TEJAS TRADEFIN LLP | E142: BUY | F142: 2,379,315 | G142: 5.58 | H142: NSE
A143: 2021-06-29 | B143: UTTAMSTL | C143: Uttam Galva Steels Limite | D143: MANSI SHARES & STOCK ADVISORS PVT LTD | E143: BUY | F143: 5,000,012 | G143: 5.6 | H143: NSE
A144: 2021-06-29 | B144: UTTAMSTL | C144: Uttam Galva Steels Limite | D144: MULTIPLIER S AND S ADV PVT LTD | E144: BUY | F144: 1,811,417 | G144: 5.85 | H144: NSE
A145: 2021-06-29 | B145: UTTAMSTL | C145: Uttam Galva Steels Limite | D145: PARTH INFIN BROKERS PVT LTD | E145: BUY | F145: 2,100,000 | G145: 5.85 | H145: NSE
A146: 2021-06-29 | B146: UTTAMSTL | C146: Uttam Galva Steels Limite | D146: ANKITA VISHAL SHAH | E146: BUY | F146: 1,300,001 | G146: 5.77 | H146: NSE
A147: 2021-06-29 | B147: UTTAMSTL | C147: Uttam Galva Steels Limite | D147: PURVISH MUKESH SHAH | E147: BUY | F147: 500,010 | G147: 5.52 | H147: NSE
A148: 2021-06-29 | B148: UTTAMSTL | C148: Uttam Galva Steels Limite | D148: VISHAL PRAFULCHANDRA SHAH | E148: BUY | F148: 300,000 | G148: 5.85 | H148: NSE
A149: 2021-06-29 | B149: VAISHALI | C149: Vaishali Pharma Limited | D149: DHWAJA SHARES & SECURITIES PVT LTD | E149: BUY | F149: 90,000 | G149: 44.87 | H149: NSE
A150: 2021-06-29 | B150: VAISHALI | C150: Vaishali Pharma Limited | D150: OPG SECURITIES PVT. LTD. | E150: BUY | F150: 113,410 | G150: 44.99 | H150: NSE
A151: 2021-06-29 | B151: VIKASLIFE | C151: Vikas Lifecare Limited | D151: ALPHA LEON ENTERPRISES LLP | E151: BUY | F151: 11,974,109 | G151: 2.85 | H151: NSE
A152: 2021-06-29 | B152: VISHAL | C152: Vishal Fabrics Limited | D152: CHIRIPAL TEXTILE MILLS PRIVATE | E152: BUY | F152: 400,000 | G152: 72 | H152: NSE
A153: 2021-06-29 | B153: ANDHRACEMT | C153: Andhra Cements Limited | D153: ALPHA LEON ENTERPRISES LLP | E153: SELL | F153: 3 | G153: 16.25 | H153: NSE
A154: 2021-06-29 | B154: ANDHRSUGAR | C154: The Andhra Sugars Ltd | D154: NK SECURITIES RESEARCH PRIVATE LIMITED | E154: SELL | F154: 152,173 | G154: 600.91 | H154: NSE
A155: 2021-06-29 | B155: ANDHRSUGAR | C155: The Andhra Sugars Ltd | D155: GRAVITON RESEARCH CAPITAL LLP | E155: SELL | F155: 212,163 | G155: 589.08 | H155: NSE
A156: 2021-06-29 | B156: APEX | C156: Apex Frozen Foods Limited | D156: PARTH INFIN BROKERS PVT LTD | E156: SELL | F156: 221,245 | G156: 285.93 | H156: NSE
A157: 2021-06-29 | B157: ARCHIES | C157: Archies Limited | D157: URMILA DOSHI | E157: SELL | F157: 724,492 | G157: 20.04 | H157: NSE
A158: 2021-06-29 | B158: ARCHIES | C158: Archies Limited | D158: MANSI SHARES & STOCK ADVISORS PVT LTD | E158: SELL | F158: 150,005 | G158: 20.26 | H158: NSE
A159: 2021-06-29 | B159: ARIES | C159: Aries Agro Limited | D159: XTX MARKETS LLP | E159: SELL | F159: 103,291 | G159: 147.34 | H159: NSE
A160: 2021-06-29 | B160: ARIES | C160: Aries Agro Limited | D160: SANTOSH KUMAR AGARWAL | E160: SELL | F160: 72,491 | G160: 150.36 | H160: NSE
A161: 2021-06-29 | B161: ARIES | C161: Aries Agro Limited | D161: GRAVITON RESEARCH CAPITAL LLP | E161: SELL | F161: 114,317 | G161: 147.62 | H161: NSE
A162: 2021-06-29 | B162: DODLA | C162: Dodla Dairy Limited | D162: GRAVITON RESEARCH CAPITAL LLP | E162: SELL | F162: 306,655 | G162: 607.81 | H162: NSE
A163: 2021-06-29 | B163: DWARKESH | C163: Dwarikesh Sugar Industrie | D163: GRAVITON RESEARCH CAPITAL LLP | E163: SELL | F163: 1,484,149 | G163: 80.15 | H163: NSE
A164: 2021-06-29 | B164: GICHSGFIN | C164: Gic Housing Finance Ltd | D164: GRAVITON RESEARCH CAPITAL LLP | E164: SELL | F164: 423,728 | G164: 166.39 | H164: NSE
A165: 2021-06-29 | B165: GUJAPOLLO | C165: Gujarat Apollo Equip Ltd. | D165: MANJULA R PATEL | E165: SELL | F165: 115,000 | G165: 233.24 | H165: NSE
A166: 2021-06-29 | B166: LINCOLN | C166: Lincoln Pharma Ltd | D166: XTX MARKETS LLP | E166: SELL | F166: 151,327 | G166: 339.89 | H166: NSE
A167: 2021-06-29 | B167: LINCOLN | C167: Lincoln Pharma Ltd | D167: GRAVITON RESEARCH CAPITAL LLP | E167: SELL | F167: 179,634 | G167: 339.84 | H167: NSE
A168: 2021-06-29 | B168: MOKSH | C168: Moksh Ornaments Limited | D168: VIMLA JAWANMALJI SHAH | E168: SELL | F168: 370,000 | G168: 96 | H168: NSE
A169: 2021-06-29 | B169: NELCO | C169: Nelco Ltd. | D169: QE SECURITIES | E169: SELL | F169: 162,119 | G169: 368.1 | H169: NSE
A170: 2021-06-29 | B170: NELCO | C170: Nelco Ltd. | D170: XTX MARKETS LLP | E170: SELL | F170: 374,335 | G170: 364.88 | H170: NSE
A171: 2021-06-29 | B171: NELCO | C171: Nelco Ltd. | D171: GRAVITON RESEARCH CAPITAL LLP | E171: SELL | F171: 257,433 | G171: 353.1 | H171: NSE
A172: 2021-06-29 | B172: NELCO | C172: Nelco Ltd. | D172: MUDUPULAVEMULA SURENDRANADHA REDDY | E172: SELL | F172: 121,675 | G172: 369.58 | H172: NSE
A173: 2021-06-29 | B173: NELCO | C173: Nelco Ltd. | D173: NUMIV RESEARCH PRIVATE LIMITED | E173: SELL | F173: 150,478 | G173: 363 | H173: NSE
A174: 2021-06-29 | B174: NELCO | C174: Nelco Ltd. | D174: NK SECURITIES RESEARCH PRIVATE LIMITED | E174: SELL | F174: 334,905 | G174: 363.25 | H174: NSE
A175: 2021-06-29 | B175: ORTINLAB | C175: Ortin Laboratories Ltd | D175: URMILA DOSHI | E175: SELL | F175: 41,000 | G175: 37.85 | H175: NSE
A176: 2021-06-29 | B176: ORTINLAB | C176: Ortin Laboratories Ltd | D176: MUKUL MAHESHWARI | E176: SELL | F176: 64,000 | G176: 37.56 | H176: NSE
A177: 2021-06-29 | B177: RCOM | C177: Reliance Comm. Ltd. | D177: TOPGAIN FINANCE PRIVATE LIMITED | E177: SELL | F177: 48,060,907 | G177: 4.24 | H177: NSE
A178: 2021-06-29 | B178: RCOM | C178: Reliance Comm. Ltd. | D178: ASHWIN STOCKS AND INVESTMENT PRIVATE LIMITED | E178: SELL | F178: 39,000,000 | G178: 4.29 | H178: NSE
A179: 2021-06-29 | B179: RCOM | C179: Reliance Comm. Ltd. | D179: ADROIT FINANCIAL SERVICES PVT LTD | E179: SELL | F179: 43,150,764 | G179: 4.28 | H179: NSE
A180: 2021-06-29 | B180: RCOM | C180: Reliance Comm. Ltd. | D180: TEJAS TRADEFIN LLP | E180: SELL | F180: 19,268,278 | G180: 4.2 | H180: NSE
A181: 2021-06-29 | B181: RELCAPITAL | C181: Reliance Capital Limited | D181: HOUSING DEVELOPMENT FINANCE CORPORATION LIMITED | E181: SELL | F181: 2,696,393 | G181: 26.38 | H181: NSE
A182: 2021-06-29 | B182: RELCAPITAL | C182: Reliance Capital Limited | D182: TEJAS TRADEFIN LLP | E182: SELL | F182: 1,615,852 | G182: 25.65 | H182: NSE
A183: 2021-06-29 | B183: RELCAPITAL | C183: Reliance Capital Limited | D183: MANSI SHARES & STOCK ADVISORS PVT LTD | E183: SELL | F183: 2,873,545 | G183: 26.34 | H183: NSE
A184: 2021-06-29 | B184: RELCAPITAL | C184: Reliance Capital Limited | D184: ASHWIN STOCKS AND INVESTMENT PRIVATE LIMITED | E184: SELL | F184: 1,628,083 | G184: 26.28 | H184: NSE
A185: 2021-06-29 | B185: RELCAPITAL | C185: Reliance Capital Limited | D185: ALPHA LEON ENTERPRISES LLP | E185: SELL | F185: 1,432,893 | G185: 26.21 | H185: NSE
A186: 2021-06-29 | B186: RUSHIL | C186: Rushil Decor Limited | D186: FAMILY FUND | E186: SELL | F186: 98,971 | G186: 250 | H186: NSE
A187: 2021-06-29 | B187: RUSHIL | C187: Rushil Decor Limited | D187: THAKKAR GHANSHYAMBHAI AMBALAL | E187: SELL | F187: 400,000 | G187: 250 | H187: NSE
A188: 2021-06-29 | B188: SEQUENT | C188: Sequent Scientific Ltd. | D188: GRAVITON RESEARCH CAPITAL LLP | E188: SELL | F188: 1,390,142 | G188: 321.99 | H188: NSE
A189: 2021-06-29 | B189: SREINFRA | C189: SREI Infrastructure Finan | D189: TEJAS TRADEFIN LLP | E189: SELL | F189: 3,582,913 | G189: 14.12 | H189: NSE
A190: 2021-06-29 | B190: SUMIT | C190: Sumit Woods Limited | D190: SUNIL BHANDARI | E190: SELL | F190: 166,001 | G190: 14.41 | H190: NSE
A191: 2021-06-29 | B191: SUMIT | C191: Sumit Woods Limited | D191: NISHA BARUAH | E191: SELL | F191: 234,732 | G191: 14.3 | H191: NSE
A192: 2021-06-29 | B192: TRF | C192: TRF Limited | D192: NK SECURITIES RESEARCH PRIVATE LIMITED | E192: SELL | F192: 76,789 | G192: 158.92 | H192: NSE
A193: 2021-06-29 | B193: TWL | C193: Titagarh Wagons Limited | D193: GRAVITON RESEARCH CAPITAL LLP | E193: SELL | F193: 1,121,819 | G193: 73.66 | H193: NSE
A194: 2021-06-29 | B194: UTTAMSTL | C194: Uttam Galva Steels Limite | D194: TOPGAIN FINANCE PRIVATE LIMITED | E194: SELL | F194: 117,964 | G194: 5.6 | H194: NSE
A195: 2021-06-29 | B195: UTTAMSTL | C195: Uttam Galva Steels Limite | D195: TEJAS TRADEFIN LLP | E195: SELL | F195: 2,515,533 | G195: 5.36 | H195: NSE
A196: 2021-06-29 | B196: UTTAMSTL | C196: Uttam Galva Steels Limite | D196: MULTIPLIER S AND S ADV PVT LTD | E196: SELL | F196: 1,811,417 | G196: 5.85 | H196: NSE
A197: 2021-06-29 | B197: UTTAMSTL | C197: Uttam Galva Steels Limite | D197: MANSI SHARES & STOCK ADVISORS PVT LTD | E197: SELL | F197: 333,072 | G197: 5.85 | H197: NSE
A198: 2021-06-29 | B198: UTTAMSTL | C198: Uttam Galva Steels Limite | D198: ALPHA LEON ENTERPRISES LLP | E198: SELL | F198: 3,049,963 | G198: 5.85 | H198: NSE
A199: 2021-06-29 | B199: UTTAMSTL | C199: Uttam Galva Steels Limite | D199: VISHAL PRAFULCHANDRA SHAH | E199: SELL | F199: 800,000 | G199: 5.35 | H199: NSE
A200: 2021-06-29 | B200: UTTAMSTL | C200: Uttam Galva Steels Limite | D200: PURVISH MUKESH SHAH | E200: SELL | F200: 1,200,010 | G200: 5.44 | H200: NSE
A201: 2021-06-29 | B201: UTTAMSTL | C201: Uttam Galva Steels Limite | D201: ANKITA VISHAL SHAH | E201: SELL | F201: 1 | G201: 5.35 | H201: NSE
A202: 2021-06-29 | B202: UTTAMSTL | C202: Uttam Galva Steels Limite | D202: PARTH INFIN BROKERS PVT LTD | E202: SELL | F202: 1,000,000 | G202: 5.35 | H202: NSE
A203: 2021-06-29 | B203: UTTAMSTL | C203: Uttam Galva Steels Limite | D203: SAINATH TRADING COMPANY PRIVATE LIMITED . | E203: SELL | F203: 3,000,000 | G203: 5.85 | H203: NSE
A204: 2021-06-29 | B204: UTTAMSTL | C204: Uttam Galva Steels Limite | D204: ARCHISHA STEELS PRIVATE LIMITED | E204: SELL | F204: 2,500,000 | G204: 5.85 | H204: NSE
A205: 2021-06-29 | B205: UTTAMSTL | C205: Uttam Galva Steels Limite | D205: EVERGREEN TRADEPLACE PRIVATE LIMITED | E205: SELL | F205: 4,267,866 | G205: 5.73 | H205: NSE
A206: 2021-06-29 | B206: VAISHALI | C206: Vaishali Pharma Limited | D206: OPG SECURITIES PVT. LTD. | E206: SELL | F206: 3,810 | G206: 44.78 | H206: NSE
... 2 more rows

Sheet Call Tracker (Equity & F&O)
M5: Back To Main Page
A6: Retail Research Technical Calls & Fundamental Performance Report for the month of June-2021
M7: =Main!B10 -> 2021-06-30
B8: Positional Call
A9: Sr.no | B9: Date | D9: Company | E9: Rec | F9: Rec Price | G9: Stop Loss*** | H9: Call Closed At | I9: Target | J9: Remark | K9: Profit / Loss per Share | L9: All charges | M9: Net Gain / Loss % | N9: Status | O9: Closed Date
A10: 1 | B10: 2021-04-05 | D10: HDFCBANK | E10: Buy | F10: 1465-1475 | G10: 1370 | I10: 1600-1700 | J10: Open | R10: H
A11: 2 | B11: 2021-05-03 | D11: HDFCLIFE | E11: Buy | F11: 663 | G11: 619 | H11: 703.5 | I11: 720-740 | J11: Profit of Rs.40.5/- | K11: =H11-F11 -> 40.5 | L11: =(F11*-0.8)/100 -> -5.30 | M11: =(K11+L11)/F11 -> 5.31% | N11: Successful | O11: 2021-06-17 | R11: H
A12: 3 | B12: 2021-05-26 | D12: JKCEMENT | E12: Buy | F12: 2830-2850 | G12: 2650 | I12: 3100-3200 | J12: Open | R12: H
A13: 4 | B13: 2021-05-27 | D13: BHARTIARTL | E13: Buy | F13: 522.5 | G13: 488 | H13: 544 | I13: 590-610 | J13: Part Profit of Rs.21.5/- | K13: =H13-F13 -> 21.5 | L13: =(F13*-0.8)/100 -> -4.18 | M13: =(K13+L13)/F13 -> 3.31% | N13: Successful | O13: 2021-06-08 | R13: H
A14: 5 | B14: 2021-05-31 | D14: RELIANCE | E14: Buy | F14: 2085 | G14: 1970 | H14: 2,245.00 | I14: 2250-2300 | J14: Profit of Rs.160/- | K14: =H14-F14 -> 160 | L14: =(F14*-0.8)/100 -> -16.68 | M14: =(K14+L14)/F14 -> 6.87% | N14: Successful | O14: 2021-06-03 | R14: H
A15: 6 | B15: 2021-06-01 | D15: HEROMOTOCO | E15: Buy | F15: 2965-2985 | G15: 2790 | I15: 3300-3350 | J15: Open | R15: H
A16: 7 | B16: 2021-06-02 | D16: SFL | E16: Buy | F16: 2035 | G16: 1895 | H16: 2,195.00 | I16: 2250-2300 | J16: Profit of Rs.160/- | K16: =H16-F16 -> 160 | L16: =(F16*-0.8)/100 -> -16.28 | M16: =(K16+L16)/F16 -> 7.06% | N16: Successful | O16: 2021-06-04 | R16: H
A17: 8 | B17: 2021-06-03 | D17: HUHTAMAKI | E17: Buy<> | F17: 292 | G17: 275 | H17: 306.5 | I17: 317-327 | J17: Part Profit of Rs.14.5/- | K17: =H17-F17 -> 14.5 | L17: =(F17*-0.8)/100 -> -2.34 | M17: =(K17+L17)/F17 -> 4.17% | N17: Successful | O17: 2021-06-04 | R17: H
A18: 9 | B18: 2021-06-10 | D18: BRITANNIA | E18: Buy | F18: 3570-3600 | G18: 3345 | I18: 3900-4000 | J18: Open | R18: H
A19: 10 | B19: 2021-06-14 | D19: IRCTC | E19: Buy | F19: 2057.5 | G19: 1930 | H19: 2,125.00 | I19: 2250-2300 | J19: Profit of Rs.67.5/- | K19: =H19-F19 -> 67.5 | L19: =(F19*-0.8)/100 -> -16.46 | M19: =(K19+L19)/F19 -> 2.48% | N19: Successful | O19: 2021-06-29 | R19: H
A20: 11 | B20: 2021-06-15 | D20: PRSMJOHNSN | E20: Buy | F20: 130-132 | G20: 123 | I20: 150 | J20: Open | R20: N
A21: 12 | B21: 2021-06-16 | D21: ESCORTS | E21: Buy | F21: 1190-1205 | G21: 1119 | I21: 1300-1350 | J21: Open | R21: H
A22: 13 | B22: 2021-06-16 | D22: HERANBA | E22: Buy | F22: 760 | G22: 710 | H22: 710.00 | I22: 830-860 | J22: Loss of Rs.50/- | K22: =H22-F22 -> -50 | L22: =(F22*-0.7)/100 -> -5.32 | M22: =(K22+L22)/F22 -> -7.28% | N22: Unsuccessful | O22: 2021-06-18 | R22: N
A27: CLBS = Closing Basis ***
A28: Dividend adjusted <> | F28: Reinitiated $
A29: Part book {} | F29: Revised stoploss #
B31: Momentum Call
A32: Sr.no | B32: Date | D32: Company | E32: Rec | F32: Rec Price | G32: Stop Loss | H32: Call Closed At | I32: Target | J32: Remark | K32: Profit / Loss per Share/Lot | L32: All charges | M32: Net Gain / Loss % | N32: Status | O32: Closed Date
A33: 1 | B33: 2021-05-21 | D33: BEML | E33: Buy | F33: 1314 | G33: 1275 | H33: 1352 | I33: 1380-1400 | J33: Profit of Rs.38/- | K33: =H33-F33 -> 38 | L33: =(F33*-0.7)/100 -> -9.20 | M33: =(K33+L33)/F33 -> 2.19% | N33: Successful | O33: 2021-06-03 | R33: N
A34: 2 | B34: 2021-05-25 | D34: EXIDEIND | E34: Buy | F34: 190.5 | G34: 185 | H34: 195.5 | I34: 200-205 | J34: Profit of Rs.5/- | K34: =H34-F34 -> 5 | L34: =(F34*-0.7)/100 -> -1.33 | M34: =(K34+L34)/F34 -> 1.92% | N34: Successful | O34: 2021-06-07 | R34: H
A35: 3 | B35: 2021-05-28 | D35: TVSMOTOR | E35: Buy | F35: 636.5 | G35: 615 | H35: 614 | I35: 665-675 | J35: Loss of Rs.22.5/- | K35: =H35-F35 -> -22.5 | L35: =(F35*-0.7)/100 -> -4.46 | M35: =(K35+L35)/F35 -> -4.23% | N35: Unsuccessful | O35: 2021-06-01 | R35: N
A36: 4 | B36: 2021-06-01 | D36: SBIN | E36: Buy | F36: 431 | G36: 418 | H36: 418 | I36: 450-455 | J36: Loss of Rs.13/- | K36: =H36-F36 -> -13 | L36: =(F36*-0.7)/100 -> -3.02 | M36: =(K36+L36)/F36 -> -3.72% | N36: Unsuccessful | O36: 2021-06-18 | R36: H
A37: 5 | B37: 2021-06-03 | D37: AMARAJABAT | E37: Buy | F37: 745 | G37: 725 | H37: 764 | I37: 780-790 | J37: Profit of Rs.19/- | K37: =H37-F37 -> 19 | L37: =(F37*-0.7)/100 -> -5.22 | M37: =(K37+L37)/F37 -> 1.85% | N37: Successful | O37: 2021-06-07 | R37: H
A38: 6 | B38: 2021-06-03 | D38: ESCORTS | E38: Buy | F38: 1195 | G38: 1160 | H38: 1217.5 | I38: 1240-1250 | J38: Profit of Rs.22.5/- | K38: =H38-F38 -> 22.5 | L38: =(F38*-0.07)/100 -> -0.84 | M38: =(K38+L38)/F38 -> 1.81% | N38: Successful | O38: 2021-06-03 | R38: H
A39: 7 | B39: 2021-06-07 | D39: IBULHSGFIN | E39: Buy | F39: 253 | G39: 245 | H39: 261 | I39: 265-270 | J39: Profit of Rs.8/- | K39: 8 | L39: =(F39*-0.7)/100 -> -1.77 | M39: 2.46% | N39: Successful | O39: 2021-06-09 | R39: H
A40: 8 | B40: 2021-06-08 | D40: IEX | E40: Buy | F40: 361 | G40: 349 | H40: 368 | I40: 375-380 | J40: Profit of Rs.7/- | K40: =H40-F40 -> 7 | L40: =(F40*-0.07)/100 -> -0.25 | M40: =(K40+L40)/F40 -> 1.87% | N40: Successful | O40: 2021-06-08 | R40: H
A41: 9 | B41: 2021-06-09 | D41: IRCTC | E41: Buy | F41: 2119 | G41: 2045 | H41: 2045 | I41: 2200-2250 | J41: Loss of Rs.74/- | K41: -74 | L41: =(F41*-0.7)/100 -> -14.83 | M41: -4.19% | N41: Unsuccessful | O41: 2021-06-14 | R41: H
A42: 10 | B42: 2021-06-10 | D42: AMBER | E42: Buy | F42: 2840 | G42: 2760 | H42: 2760 | I42: 2980-3020 | J42: Loss of Rs.80/- | K42: -80 | L42: -19.88 | M42: -3.52% | N42: Unsuccessful | O42: 2021-06-14 | R42: H
A43: 11 | B43: 2021-06-14 | D43: RECLTD | E43: Buy | F43: 158.25 | G43: 153.5 | H43: 153 | I43: 165-170 | J43: Loss of Rs.5.25/- | K43: =H43-F43 -> -5.25 | L43: -1.11 | M43: =(K43+L43)/F43 -> -4.02% | N43: Unsuccessful | O43: 2021-06-17 | R43: H
A44: 12 | B44: 2021-06-15 | D44: CARBORUNIV | E44: Buy | F44: 580 | G44: 562 | H44: 596 | I44: 610-620 | J44: Profit of Rs.16/- | K44: 16 | L44: -4.06 | M44: 2.06% | N44: Successful | O44: 2021-06-18 | R44: H
A45: 13 | B45: 2021-06-16 | D45: MIDHANI | E45: Buy | F45: 210.5 | G45: 205 | H45: 204 | I45: 220-224 | J45: Loss of Rs.6.5/- | K45: =H45-F45 -> -6.5 | L45: -1.47 | M45: =(K45+L45)/F45 -> -3.79% | N45: Unsuccessful | O45: 2021-06-18 | R45: H
A46: 14 | B46: 2021-06-21 | D46: SIEMENS | E46: Buy | F46: 1990 | G46: 1940 | H46: 2045 | I46: 2070-2090 | J46: Profit of Rs.55/- | K46: 55 | L46: -13.93 | M46: 2.06% | N46: Successful | O46: 2021-06-23 | R46: H
A47: 15 | B47: 2021-06-21 | D47: CARBORUNIV | E47: Buy | F47: 584 | G47: 567 | H47: 599 | I47: 610-620 | J47: Profit of Rs.15/- | K47: =H47-F47 -> 15 | L47: =(F47*-0.7)/100 -> -4.09 | M47: =(K47+L47)/F47 -> 1.87% | N47: Successful | O47: 2021-06-28 | R47: H
A48: 16 | B48: 2021-06-23 | D48: GICHSGFIN | E48: Buy | F48: 151 | G48: 146 | H48: 154 | I48: 164 | J48: Profit of Rs.3/- | K48: 3 | L48: -1.06 | M48: 1.29% | N48: Successful | O48: 2021-06-28 | R48: N
A49: 17 | B49: 2021-06-24 | D49: RELIANCE | E49: Buy | F49: 2205 | G49: 2140 | H49: 2140 | I49: 2300-2320 | J49: Loss of Rs.65/- | K49: =H49-F49 -> -65 | L49: =(F49*-0.7)/100 -> -15.44 | M49: =(K49+L49)/F49 -> -3.65% | N49: Unsuccessful | O49: 2021-06-25 | R49: H
A50: 18 | B50: 2021-06-24 | D50: AMARAJABAT | E50: Buy | F50: 741-745 | G50: 718 | I50: 780-790 | J50: Open | R50: H
A51: 19 | B51: 2021-06-24 | D51: COROMANDEL | E51: Buy | F51: 892.5 | G51: 863 | H51: 913.5 | I51: 950 | J51: Profit of Rs.21/- | K51: =H51-F51 -> 21 | L51: =(F51*-0.07)/100 -> -0.62 | M51: =(K51+L51)/F51 -> 2.28% | N51: Successful | O51: 2021-06-24 | R51: N
A52: 20 | B52: 2021-06-24 | D52: ABFRL | E52: Buy | F52: 210.5 | G52: 205 | H52: 216 | I52: 222 | J52: Profit of Rs.5.5/- | K52: 5.5 | L52: =(F52*-0.7)/100 -> -1.47 | M52: 1.91% | N52: Successful | O52: 2021-06-25 | R52: N
A53: 21 | B53: 2021-06-25 | D53: KOTAKBANK | E53: Buy | F53: 1720-1730 | G53: 1665 | I53: 1800-1830 | J53: Open | R53: H
A54: 22 | B54: 2021-06-28 | D54: METROPOLIS | E54: Buy | F54: 2820-2830 | G54: 2735 | I54: 3000 | J54: Open | R54: N
A59: CLBS = Closing Basis *** | H59: *
A60: Dividend adjusted <> | F60: Reinitiated $
F61: Revised stoploss #
A63: Master Trade High Risk
A64: Sr.no | B64: Date | D64: Company | E64: Rec | F64: Rec Price | G64: Stop Loss | H64: Call Closed At | I64: Target | J64: Remark | K64: Profit / Loss per share | L64: All charges | M64: Gain / Loss per Lot | N64: Lot | O64: Status | P64: Closed Date
A65: 1 | B65: 2021-05-27 | D65: HINDUNILVR JUNE FUT | E65: Buy | F65: 2330 | G65: 2285 | H65: 2361 | I65: 2390-2410 | J65: Profit of Rs.31/- | K65: =H65-F65 -> 31 | L65: =(H65*N65)*0.07% -> 495.81 | M65: =(K65*N65)-L65 -> 8804.2 | N65: 300 | O65: Successful | P65: 2021-06-02 | R65: H
A66: 2 | B66: 2021-06-02 | D66: HDFCLIFE JUNE FUT | E66: Buy | F66: 678.5 | G66: 668 | H66: 685.5 | I66: 695-700 | J66: Profit of Rs.7/- | K66: 7 | L66: 527.84 | M66: 7172.2 | N66: 1100 | O66: Successful | P66: 2021-06-03 | R66: H
A67: 3 | B67: 2021-06-02 | D67: PEL JUNE FUT | E67: Buy | F67: 1840 | G67: 1794 | H67: 1868.5 | I67: 1910-1930 | J67: Profit of Rs.28.5/- | K67: =H67-F67 -> 28.5 | L67: =(H67*N67)*0.07% -> 359.69 | M67: =(K67*N67)-L67 -> 7477.8 | N67: 275 | O67: Successful | P67: 2021-06-03 | R67: H
A68: 4 | B68: 2021-06-02 | D68: NAUKRI JUNE FUT | E68: Buy | F68: 4530 | G68: 4440 | H68: 4630 | I68: 4700-4750 | J68: Profit of Rs.100/- | K68: =H68-F68 -> 100 | L68: =(H68*N68)*0.07% -> 405.13 | M68: =(K68*N68)-L68 -> 12094.9 | N68: 125 | O68: Successful | P68: 2021-06-03 | R68: H
A69: 5 | B69: 2021-06-04 | D69: HINDUNILVR JUNE FUT | E69: Buy | F69: 2334 | G69: 2289 | H69: 2362 | I69: 2380-2400 | J69: Profit of Rs.28/- | K69: 28 | L69: 496.02 | M69: 7904.0 | N69: 300 | O69: Successful | P69: 2021-06-09 | R69: H
A70: 6 | B70: 2021-06-07 | D70: ESCORTS JUNE FUT | E70: Buy | F70: 1221 | G70: 1197 | H70: 1200 | I70: 1250-1260 | J70: Loss of Rs.21/- | K70: -21 | L70: 462.00 | M70: -12012.0 | N70: 550 | O70: Unsuccessful | P70: 2021-06-09 | R70: H
A71: 7 | B71: 2021-06-08 | D71: NAUKRI JUNE FUT | E71: Buy | F71: 4650 | G71: 4540 | H71: 4580 | I71: 4800-4850 | J71: Loss of Rs.70/- | K71: =H71-F71 -> -70 | L71: =(H71*N71)*0.07% -> 400.75 | M71: =(K71*N71)-L71 -> -9150.8 | N71: 125 | O71: Unsuccessful | P71: 2021-06-09 | R71: H
A72: 8 | B72: 2021-06-08 | D72: HCLTECH JUNE FUT | E72: Buy | F72: 968 | G72: 949 | H72: 980 | I72: 990-1000 | J72: Profit of Rs.12/- | K72: =H72-F72 -> 12 | L72: =(H72*N72)*0.07% -> 480.20 | M72: =(K72*N72)-L72 -> 7919.8 | N72: 700 | O72: Successful | P72: 2021-06-09 | R72: H
A73: 9 | B73: 2021-06-11 | C73: HEROMOTOCO APRIL FUT | D73: RELIANCE JUNE FUT | E73: Buy | F73: 2216 | G73: 2145 | H73: 2255 | I73: 2300 | J73: Porfit of Rs.43.5/- | K73: =H73-F73 -> 39.00 | L73: 394.63 | M73: =(43.5*250)-494.63 -> 10380.37 | N73: 250 | O73: Successful | P73: 2021-06-22 | R73: H
C74: HEROMOTOCO APR 3050 CE | D74: RELIANCE 2260 CE | E74: Sell | F74: 37 | H74: 32.5 | K74: 4.50 | L74: 100.00 | R74: H
A75: 10 | B75: 2021-06-14 | C75: HEROMOTOCO APRIL FUT | D75: DRREDDY JUNE FUT | E75: Buy | F75: 5440 | G75: 5295 | H75: 5295 | I75: 5700 | J75: Loss of Rs.89/- | K75: =H75-F75 -> -145.00 | L75: =(H75*N75)*0.07% -> 463.31 | M75: =(-89*N75)-563.31 -> -11688.31 | N75: 125 | O75: Unsuccessful | P75: 2021-06-17 | R75: H
C76: HEROMOTOCO APR 3050 CE | D76: DRREDDY 5600 CE | E76: Sell | F76: 74 | G76: 18 | K76: =F76-G76 -> 56.00 | L76: 100.00 | R76: H
A77: 11 | B77: 2021-06-15 | D77: TECHM JUN FUT | E77: Buy | F77: 1071 | G77: 1050 | H77: 1084 | I77: 1100-1110 | J77: Profit of Rs.13/- | K77: =H77-F77 -> 13 | L77: =(H77*N77)*0.07% -> 455.28 | M77: =(K77*N77)-L77 -> 7344.7 | N77: 600 | O77: Successful | P77: 2021-06-17 | R77: H
A78: 12 | B78: 2021-06-18 | C78: HEROMOTOCO APRIL FUT | D78: NIFTY JUNE FUT | E78: Buy | F78: 15500 | G78: 15370 | H78: 15595 | I78: 15700 | J78: Porfit of Rs.80/- | K78: =H78-F78 -> 95.00 | L78: 818.74 | M78: =(80*N78)-918.74 -> 5081.26 | N78: 75 | O78: Successful | P78: 2021-06-18 | R78: H
C79: HEROMOTOCO APR 3050 CE | D79: NIFTY 15600 CE | E79: Sell | F79: 102.5 | H79: 117.5 | K79: =F79-H79 -> -15.00 | L79: 100.00 | R79: H
A80: 13 | B80: 2021-06-18 | D80: TATASTEEL JUN FUT | E80: Buy | F80: 1076 | G80: 1060 | H80: 1086 | I80: 1100-1110 | J80: Profit of Rs.10/- | K80: =H80-F80 -> 10 | L80: =(H80*N80)*0.07% -> 646.17 | M80: =(K80*N80)-L80 -> 7853.8 | N80: 850 | O80: Successful | P80: 2021-06-18 | R80: H
A81: 14 | B81: 2021-06-18 | D81: HCLTECH JUN FUT | E81: Buy | F81: 981 | G81: 962 | H81: 982.5 | I81: 1010-1020 | J81: Profit of Rs.1.5/- | K81: =H81-F81 -> 1.5 | L81: =(H81*N81)*0.07% -> 481.43 | M81: =(K81*N81)-L81 -> 568.6 | N81: 700 | O81: Neutral | P81: 2021-06-24 | R81: N
A82: 15 | B82: 2021-06-24 | D82: TECHM JUL FUT | E82: Buy | F82: 1034 | G82: 1014 | H82: 1049 | I82: 1065-1075 | J82: Profit of Rs.15/- | K82: 15 | L82: 440.58 | M82: 8559.4 | N82: 600 | O82: Successful | P82: 2021-06-24 | R82: H
A83: 16 | B83: 2021-06-25 | D83: LTI JUL FUT | E83: Buy | F83: 4195 | G83: 4110 | H83: 4110 | I83: 4350-4380 | J83: Loss of Rs.85/- | K83: -85 | L83: 359.63 | M83: -10984.6 | N83: 125 | O83: Unsuccessful | P83: 2021-06-29 | R83: N
A84: 17 | B84: 2021-06-25 | D84: GRASIM JUL FUT | E84: Buy | F84: 1502 | G84: 1472 | H84: 1527.5 | I84: 1560 | J84: Profit of Rs.25.5/- | K84: =H84-F84 -> 25.5 | L84: =(H84*N84)*0.07% -> 507.89 | M84: =(K84*N84)-L84 -> 11604.6 | N84: 475 | O84: Successful | P84: 2021-06-28 | R84: N
A85: 18 | B85: 2021-06-25 | D85: SIEMENS JUL FUT | E85: Buy | F85: 2010-2015 | G85: 1965 | I85: 2100 | J85: Open | R85: H
A86: 19 | B86: 2021-06-25 | D86: AXISBANK JUL FUT | E86: Buy | F86: 764 | G86: 752 | H86: 771.5 | I86: 780-790 | J86: Profit of Rs.7.5/- | K86: =H86-F86 -> 7.5 | L86: =(H86*N86)*0.07% -> 648.06 | M86: =(K86*N86)-L86 -> 8351.9 | N86: 1200 | O86: Successful | P86: 2021-06-28 | R86: H
A87: 20 | B87: 2021-06-28 | D87: ICICIBANK JUL FUT | E87: Buy | F87: 651 | G87: 640 | H87: 642 | I87: 665-670 | J87: Loss of Rs.9/- | K87: -9 | L87: 617.93 | M87: -12992.9 | N87: 1375 | O87: Unsuccessful | P87: 2021-06-29 | R87: H
A88: 21 | B88: 2021-06-28 | D88: SBIN JUL FUT | E88: Buy | F88: 427 | G88: 418 | H88: 432.5 | I88: 445 | J88: Profit of Rs.5.5/- | K88: =H88-F88 -> 5.5 | L88: =(H88*N88)*0.07% -> 454.13 | M88: =(K88*N88)-L88 -> 7795.9 | N88: 1500 | O88: Successful | P88: 2021-06-28 | R88: H
A89: 22 | B89: 2021-06-28 | D89: LUPIN JUL FUT | E89: Buy | F89: 1163 | G89: 1148 | H89: 1173 | I89: 1195 | J89: Profit of Rs.10/- | K89: 10 | L89: 697.94 | M89: 7802.1 | N89: 850 | O89: Successful | P89: 2021-06-29 | R89: N
A90: 23 | B90: 2021-06-28 | D90: NIFTY JUL FUT | E90: Sell | F90: 15850 | G90: 15970 | H90: 15770 | I90: 15650-15600 | J90: Profit of Rs.80/- | K90: =F90-H90 -> 80 | L90: 827.93 | M90: 5172.1 | N90: 75 | O90: Successful | P90: 2021-06-29 | R90: H
A91: 24 | B91: 2021-06-29 | D91: MPHASIS JUL FUT | E91: Buy | F91: 2015 | G91: 1975 | H91: 2047.5 | I91: 1990 | J91: Profit of Rs.32.5/- | K91: =H91-F91 -> 32.5 | L91: =(H91*N91)*0.07% -> 465.81 | M91: =(K91*N91)-L91 -> 10096.7 | N91: 325 | O91: Successful | P91: 2021-06-29 | R91: H
A92: 25 | B92: 2021-06-29 | D92: SBIN JUL FUT | E92: Buy | F92: 426-427 | G92: 418 | I92: 445 | J92: Open | R92: H
A93: 26 | B93: 2021-06-29 | D93: LUPIN JUL FUT | E93: Buy | F93: 1162-1164 | G93: 1148 | I93: 1195 | J93: Open | R93: N
A94: 27 | B94: 2021-06-29 | D94: HDFCLIFE JUL FUT | E94: Buy | F94: 687-689 | G94: 676 | I94: 700-705 | J94: Open | R94: H
A98: Master Trade Medium Risk
A99: Sr.no | B99: Date | D99: Company | E99: Rec | F99: Rec Price | G99: Stop Loss | H99: Call Closed At | I99: Target | J99: Remark | K99: Profit/ Loss per lot | L99: All charges | M99: Gain / Loss per Lot | N99: Lot | O99: Status | P99: Closed Date
A100: 1 | B100: 2021-05-28 | D100: M&MFIN 185 CE JUNE | E100: Sell | F100: 2.55 | G100: 3.8 | H100: 1.4 | I100: 0.1 | J100: Profit of Rs.1.15/- | K100: =F100-H100 -> 1.15 | L100: 100 | M100: =(K100*N100)-L100 -> 4500.0 | N100: 4000 | O100: Successful | P100: 2021-06-14 | R100: N
A101: 2 | B101: 2021-05-31 | D101: NIFTY 15600 CE 3 JUNE | E101: Buy | F101: 64 | G101: 17 | H101: 76 | I101: 100-120 | J101: Profit of Rs.12/- | K101: =H101-F101 -> 12 | L101: 100 | M101: 800.0 | N101: 75 | O101: Successful | P101: 2021-06-01 | R101: H
A102: 3 | B102: 2021-06-02 | D102: NIFTY 15500 CE 3 JUNE | E102: Buy | F102: 57.5 | G102: 17 | H102: 71.5 | I102: 100-110 | J102: Profit of Rs.14/- | K102: 14 | L102: 100 | M102: 950.0 | N102: 75 | O102: Successful | P102: 2021-06-02 | R102: H
A103: 4 | B103: 2021-06-07 | D103: IRCTC 2200 CE JUNE | E103: Buy | F103: 40.5 | G103: 27 | H103: 52.5 | I103: 55-60 | J103: Profit of Rs.12/- | K103: 12 | L103: 100 | M103: 3800.0 | N103: 325 | O103: Successful | P103: 2021-06-07 | R103: H
A104: 5 | B104: 2021-06-09 | D104: TECHM 1080 CE JUNE | E104: Buy | F104: 18 | G104: 9 | H104: 22 | I104: 28-32 | J104: Profit of Rs.4/- | K104: 4 | L104: 100 | M104: 2300.0 | N104: 600 | O104: Successful | P104: 2021-06-10 | R104: H
A105: 6 | B105: 2021-06-10 | D105: NIFTY 15550 PE 17 JUNE | E105: Buy | F105: 63.5 | G105: 17 | H105: 17 | I105: 110-120 | J105: Loss of Rs.46.5/- | K105: -46.5 | L105: 100 | M105: -3587.5 | N105: 75 | O105: Unsuccessful | P105: 2021-06-14 | R105: H
A106: 7 | B106: 2021-06-11 | D106: GRANULES 350 CE JUNE | E106: Buy | F106: 8.25 | G106: 4.5 | H106: 4.5 | I106: 14-16 | J106: Loss of Rs.3.75/- | K106: -3.75 | L106: 100 | M106: =(K106*N106)-L106 -> -5912.5 | N106: 1550 | O106: Unsuccessful | P106: 2021-06-16 | R106: H
A107: 8 | B107: 2021-06-15 | D107: M&MFIN 190 CE JUNE | E107: Sell | F107: 2.1 | G107: 3.6 | H107: 0.95 | I107: 0.1 | J107: Profit of Rs.1.15/- | K107: =F107-H107 -> 1.15 | L107: 100 | M107: =(K107*N107)-L107 -> 4500.0 | N107: 4000 | O107: Successful | P107: 2021-06-16 | R107: N
A108: 9 | B108: 2021-06-15 | D108: BANKNIFTY 35000 PE 17 JUNE | E108: Buy | F108: 145 | G108: 40 | H108: 210 | I108: 300-350 | J108: Profit of Rs.65/- | K108: =H108-F108 -> 65 | L108: 100 | M108: =(K108*N108)-L108 -> 1525.0 | N108: 25 | O108: Successful | P108: 2021-06-16 | R108: N
A109: 10 | B109: 2021-06-15 | D109: PETRONET 245 CE JUNE | E109: Sell | F109: 2.45 | G109: 4 | H109: 1.45 | I109: 0.1 | J109: Profit of Rs.1/- | K109: =F109-H109 -> 1 | L109: 100 | M109: 2900.0 | N109: 3000 | O109: Successful | P109: 2021-06-16 | R109: H
A110: 11 | B110: 2021-06-16 | D110: HDFCBANK 1500 CE JUNE | E110: Buy | F110: 21.5 | G110: 11 | H110: 12 | I110: 40 | J110: Loss of Rs.9.5/- | K110: =H110-F110 -> -9.5 | L110: 100 | M110: -5325.0 | N110: 550 | O110: Unsuccessful | P110: 2021-06-17 | R110: N
A111: 12 | B111: 2021-06-17 | D111: BANKNIFTY 35000 CE 24 JUNE | E111: Buy | F111: 340 | G111: 190 | H111: 190 | I111: 550-600 | J111: Loss of Rs.150/- | K111: =H111-F111 -> -150 | L111: 100 | M111: -3850.0 | N111: 25 | O111: Unsuccessful | P111: 2021-06-18 | R111: H
A112: 13 | B112: 2021-06-17 | D112: RELIANCE 2220 CE JUNE | E112: Buy | F112: 39 | G112: 18 | H112: 45.5 | I112: 75-85 | J112: Profit of Rs.6.5/- | K112: =H112-F112 -> 6.5 | L112: 100 | M112: =(K112*N112)-L112 -> 1525.0 | N112: 250 | O112: Successful | P112: 2021-06-17 | R112: H
A113: 14 | B113: 2021-06-17 | D113: NIFTY 15650 CE 17-JUNE | E113: Buy | F113: 13.5 | H113: 26 | I113: 40 | J113: Profit of Rs.12.5/- | K113: =H113-F113 -> 12.5 | L113: 100 | M113: =(K113*N113)-L113 -> 837.5 | N113: 75 | O113: Successful | P113: 2021-06-17 | R113: N
A114: 15 | B114: 2021-06-18 | D114: M&MFIN 180 CE JUN | E114: Sell | F114: 1.2 | G114: 2.25 | H114: 0.1 | I114: 0.1 | J114: Profit of Rs.1.1/- | K114: =F114-H114 -> 1.1 | L114: 100 | M114: 4300.0 | N114: 4000 | O114: Successful | P114: 2021-06-22 | R114: N
A115: 16 | B115: 2021-06-18 | D115: RELIANCE 2160 PE JUN | E115: Sell | F115: 22 | G115: 37 | H115: 5.5 | I115: 0.1 | J115: Profit of Rs.16.5/- | K115: =F115-H115 -> 16.5 | L115: 100 | M115: 4025.0 | N115: 250 | O115: Successful | P115: 2021-06-22 | R115: H
A116: 17 | B116: 2021-06-18 | D116: POWERGRID 220 PE JUN | E116: Sell | F116: 1.05 | G116: 1.8 | H116: 0.45 | I116: 0.1 | J116: Profit of Rs.0.60/- | K116: =F116-H116 -> 0.6 | L116: 100 | M116: =(K116*N116)-L116 -> 2300.0 | N116: 4000 | O116: Successful | P116: 2021-06-21 | R116: H
A117: 18 | B117: 2021-06-18 | D117: TECHM 1060 PE JUNE | E117: Sell | F117: 13 | G117: 22 | H117: 7.5 | I117: 0.1 | J117: Profit of Rs.5.5/- | K117: =F117-H117 -> 5.5 | L117: 100 | M117: 3200.0 | N117: 600 | O117: Successful | P117: 2021-06-22 | R117: H
A118: 19 | B118: 2021-06-18 | D118: NIFTY 15800 CE JUNE | E118: Sell | F118: 56 | G118: 88 | H118: 17.5 | I118: 0.1 | J118: Profit of Rs.38.5/- | K118: =F118-H118 -> 38.5 | L118: 100 | M118: =(K118*N118)-L118 -> 2787.5 | N118: 75 | O118: Successful | P118: 2021-06-21 | R118: H
A119: 20 | B119: 2021-06-21 | D119: VOLTAS 1020 CE JUN | E119: Buy | F119: 12.5 | G119: 4 | H119: 13.5 | I119: 20-25 | J119: Profit of Rs.1/- | K119: =H119-F119 -> 1 | L119: 100 | M119: 400.0 | N119: 500 | O119: Successful | P119: 2021-06-23 | R119: H
A120: 21 | B120: 2021-06-21 | D120: KOTAKBANK 1760 CE JUN | E120: Buy | F120: 16 | G120: 5 | H120: 21 | I120: 30-35 | J120: Profit of Rs.5/- | K120: =H120-F120 -> 5 | L120: 100 | M120: =(K120*N120)-L120 -> 1900.0 | N120: 400 | O120: Successful | P120: 2021-06-21 | R120: N
A121: 22 | B121: 2021-06-21 | D121: RBLBANK 215 CE JUN | E121: Sell | F121: 2.4 | G121: 3.9 | H121: 1.6 | I121: 0.1 | J121: Profit of Rs.0.80/- | K121: =F121-H121 -> 0.8 | L121: 100 | M121: 2220.0 | N121: 2900 | O121: Successful | P121: 2021-06-22 | R121: H
A122: 23 | B122: 2021-06-21 | D122: NIFTY 15800 CE JUNE | E122: Sell | F122: 52.5 | G122: 85 | H122: 85 | I122: 0.1 | J122: Loss of Rs.32.5/- | K122: =F122-H122 -> -32.5 | L122: 100 | M122: =(K122*N122)-L122 -> -2537.5 | N122: 75 | O122: Unsuccessful | P122: 2021-06-22 | R122: H
A123: 24 | B123: 2021-06-21 | D123: NIFTY 15700 PE JUN | E123: Buy | F123: 81.5 | G123: 38 | H123: 64.5 | I123: 150 | J123: Loss of Rs.17/- | K123: =H123-F123 -> -17 | L123: 100 | M123: =(K123*N123)-L123 -> -1375.0 | N123: 75 | O123: Unsuccessful | P123: 2021-06-21 | R123: N
A124: 25 | B124: 2021-06-22 | D124: HINDUNILVR 2520 CE JUN | E124: Buy | F124: 18 | G124: 3 | H124: 25.5 | I124: 35-40 | J124: Profit of Rs.7.5/- | K124: 7.5 | L124: 100 | M124: 2150.0 | N124: 300 | O124: Successful | P124: 2021-06-22 | R124: N
A125: 26 | B125: 2021-06-22 | D125: KOTAKBANK 1780 CE JUN | E125: Buy | F125: 17 | G125: 5 | H125: 5 | I125: 30-35 | J125: Loss of Rs.12/- | K125: =H125-F125 -> -12 | L125: 100 | M125: =(K125*N125)-L125 -> -4900.0 | N125: 400 | O125: Unsuccessful | P125: 2021-06-23 | R125: N
A126: 27 | B126: 2021-06-22 | D126: HINDUNILVR 2500 CE JUN | E126: Buy | F126: 13 | H126: 19.5 | I126: 35 | J126: Profit of Rs.6.5/- | K126: =H126-F126 -> 6.5 | L126: 100 | M126: =(K126*N126)-L126 -> 1850.0 | N126: 300 | O126: Successful | P126: 2021-06-22 | R126: N
A127: 28 | B127: 2021-06-22 | D127: HINDUNILVR 2500 CE JUN | E127: Buy | F127: 13.5 | H127: 20 | I127: 35 | J127: Profit of Rs.6.5/- | K127: =H127-F127 -> 6.5 | L127: 100 | M127: =(K127*N127)-L127 -> 1850.0 | N127: 300 | O127: Successful | P127: 2021-06-23 | R127: N
A128: 29 | B128: 2021-06-22 | C128: HEROMOTOCO APRIL FUT | D128: RELIANCE 2220 CE JUN | E128: Buy | F128: 29.5 | H128: 0 | J128: Loss of Rs.12/- | K128: -29.50 | L128: 100.00 | M128: =(-12*N128)-200 -> -3200 | N128: 250 | O128: Unsuccessful | P128: 2021-06-24 | R128: H
C129: HEROMOTOCO APR 3050 CE | D129: RELIANCE 2260 CE JUN | E129: Sell | F129: 17.5 | H129: 0 | K129: =F129-G129 -> 17.50 | L129: 100.00 | R129: H
A130: 30 | B130: 2021-06-23 | D130: HINDUNILVR 2500 CE JUN | E130: Buy | F130: 12.5 | H130: 0 | I130: 25-30 | J130: Loss of Rs.12.5/- | K130: =H130-F130 -> -12.5 | L130: 100 | M130: =(K130*N130)-L130 -> -3850.0 | N130: 300 | O130: Unsuccessful | P130: 2021-06-24 | R130: N
A131: 31 | B131: 2021-06-23 | D131: NIFTY 15700 CE JUN | E131: Buy | F131: 61.5 | G131: 20 | H131: 74 | I131: 120 | J131: Profit of Rs.6.5/- | K131: =H131-F131 -> 12.5 | L131: 100 | M131: =(K131*N131)-L131 -> 837.5 | N131: 75 | O131: Successful | P131: 2021-06-24 | R131: N
A132: 32 | B132: 2021-06-28 | D132: BANKNIFTY 35500 CE 01-JUL | E132: Buy | F132: 220 | G132: 25 | H132: 280 | I132: 500-550 | J132: Profit of Rs.60/- | K132: =H132-F132 -> 60 | L132: 100 | M132: =(K132*N132)-L132 -> 1100.0 | N132: 20 | O132: Successful | P132: 2021-06-28 | R132: H
A133: 33 | B133: 2021-06-28 | D133: TCS 3420 CE JUL | E133: Sell | F133: 73.5 | G133: 92 | H133: 62.5 | I133: 40-30 | J133: Profit of Rs.11/- | K133: =F133-H133 -> 11 | L133: 100 | M133: 3200.0 | N133: 300 | O133: Successful | P133: 2021-06-29 | R133: H
A134: 34 | B134: 2021-06-29 | D134: AMBUJACEM 355 CE JUL | E134: Sell | F134: 6.20-6.50 | G134: 7.75 | I134: 3-2.0 | J134: Open | R134: H
A135: 35 | B135: 2021-06-29 | C135: HEROMOTOCO APRIL FUT | D135: IRCTC JUL 2140 CE | E135: Buy | F135: 88-90 | J135: Open | R135: H
C136: HEROMOTOCO APR 3050 CE | D136: IRCTC JUL 2200 CE | E136: Sell | F136: 68-70 | R136: H
A137: 36 | B137: 2021-06-29 | D137: CONCOR 660 PE JUL | E137: Sell | F137: 10.5-11.5 | G137: 14.5 | I137: 5 | J137: Open | R137: N
A138: 37 | B138: 2021-06-29 | D138: BANKNIFTY 35100 CE 01-JUL | E138: Buy | F138: 190-200 | G138: 25 | I138: 450-500 | J138: Open | R138: H
A144: Techno -Funda (positional)
A145: Sr.no | B145: Date | D145: Company | E145: Rec | F145: Rec Price | G145: Stop Loss*** | H145: Call Closed At | I145: Target | J145: Remark | K145: Profit / Loss per Share/Lot | L145: All charges | M145: Net Gain / Loss % | N145: Status | O145: Closed Date
A146: 1 | B146: 2021-05-11 | D146: RITES | E146: Buy | F146: 239 | G146: 218 | H146: 264.00 | I146: 280-290 | J146: Profit of Rs.25/- | K146: =H146-F146 -> 25 | L146: =(F146*-0.8)/100 -> -1.91 | M146: =(K146+L146)/F146 -> 9.66% | N146: Successful | O146: 2021-06-07 | R146: H
A147: 2 | B147: 2021-06-16 | D147: WHIRLPOOL | E147: Buy | F147: 2260-2300 | G147: 2070 | I147: 2600-2700 | J147: Open | R147: H
A150: CLBS = Closing Basis *** | F150: Reinitiated $
A151: Dividend adjusted <> | F151: Revised stoploss #
B153: Intrday Call
A154: Sr.no | B154: Date | D154: Company | E154: Rec | F154: Rec Price | G154: Stop Loss | H154: Call Closed At | I154: Target | J154: Remark | K154: Profit / Loss per Share/Lot | L154: Gain / Loss per Lot | M154: Lot | N154: All charges | O154: Net Gain / Loss % | P154: Status | Q154: Closed Date
B167: Investment Idea
A168: Sr.no | B168: Date | D168: Company | E168: Rec | F168: Rec Price | G168: Point of Review | H168: Close Rate | I168: Target | J168: Remark | K168: Profit / Loss per Share | L168: Gain / Loss % | M168: Status | N168: Closed Date
A169: 1 | B169: 2013-11-01 | D169: L&T Finance Holding | E169: Accu | F169: 82.00 | G169: - | H169: 100 | I169: 100.00 | J169: Target Achieved | K169: =H169-F169 -> 18.00 | L169: =K169/F169 -> 21.95% | M169: Successful | N169: 2016-10-14
A170: 2 | B170: 2014-06-04 | D170: Finolex Inds | E170: Buy | F170: 257.00 | G170: - | H170: 300 | I170: 300.00 | J170: Target Achieved | K170: 43.00 | L170: 16.73% | M170: Successful | N170: 2014-07-02
A171: 3 | B171: 2014-07-08 | D171: JK Cement | E171: Buy | F171: 393.00 | G171: - | H171: 468 | I171: 468.00 | J171: Target Achieved | K171: 75.00 | L171: 19.08% | M171: Successful | N171: 2014-08-12
A172: 4 | B172: 2014-08-06 | D172: Finolex Cables | E172: Buy | F172: 205.00 | G172: - | H172: 275 | I172: 250.00 | J172: Target Achieved | K172: 70.00 | L172: 34.15% | M172: Successful | N172: 2014-11-19
A173: 5 | B173: 2014-09-04 | D173: Exide Inds | E173: Buy | F173: 162.00 | G173: - | H173: 190 | I173: 190.00 | J173: Target Achieved | K173: 28.00 | L173: 17.28% | M173: Successful | N173: 2015-01-02
A174: 6 | B174: 2014-09-04 | D174: Deepak Nitrite | E174: Buy | F174: 75.00 | G174: - | H174: 91.5 | I174: 95-100 | J174: Profit of Rs.16.50/- | K174: 16.50 | L174: 22.00% | M174: Successful | N174: 2014-11-11
A175: 7 | B175: 2014-10-01 | D175: Mercks | E175: Buy | F175: 850.00 | G175: - | H175: 982.5 | I175: 1050.00 | J175: Profit of Rs.132.50/- | K175: 132.50 | L175: 15.59% | M175: Successful | N175: 2015-02-04
A176: 8 | B176: 2014-10-01 | D176: Grindwell Norton | E176: Buy | F176: 475.00 | G176: - | H176: 515 | I176: 600.00 | J176: Profit of Rs.40/- | K176: 40.00 | L176: 8.42% | M176: Successful | N176: 2014-10-27
A177: 9 | B177: 2014-10-01 | D177: Snowman Logistics | E177: Buy | F177: 86.00 | G177: - | H177: 99 | I177: 140.00 | J177: Profit of Rs.13.00/- | K177: 13.00 | L177: 15.12% | M177: Successful | N177: 2014-10-27
A178: 10 | B178: 2014-10-14 | D178: Birla Corp | E178: Buy | F178: 496.60 | G178: - | H178: 621 | I178: 580.00 | J178: Target Achieved | K178: 124.40 | L178: 25.05% | M178: Successful | N178: 2016-08-23
A179: 11 | B179: 2014-10-14 | D179: Ultratech Cem | E179: Buy | F179: 2481.90 | G179: - | H179: 2840 | I179: 2870.00 | J179: Profit of Rs.358.10/- | K179: 358.10 | L179: 14.43% | M179: Successful | N179: 2015-01-13
A180: 12 | B180: 2014-10-16 | D180: Sintex Inds | E180: Buy | F180: 84.50 | G180: - | H180: 93 | I180: 110.00 | J180: Profit of Rs.8.50/- | K180: 8.50 | L180: 10.06% | M180: Successful | N180: 2014-10-27
A181: 13 | B181: 2014-10-16 | D181: HSIL | E181: Buy | F181: 401.00 | G181: - | H181: 428 | I181: 450.00 | J181: Profit of Rs.27.00/- | K181: 27.00 | L181: 6.73% | M181: Successful | N181: 2015-01-16
A182: 14 | B182: 2014-10-16 | D182: Eveready Inds | E182: Buy | F182: 101.00 | G182: - | H182: 112 | I182: 120.00 | J182: Profit of Rs.11.00/- | K182: 11.00 | L182: 10.89% | M182: Successful | N182: 2014-10-27
A183: 15 | B183: 2014-11-11 | D183: Pennar Inds | E183: Buy | F183: 59.00 | G183: - | H183: 76 | I183: 76.00 | J183: Target Achieved | K183: 17.00 | L183: 28.81% | M183: Successful | N183: 2017-10-24
A184: 16 | B184: 2014-11-11 | D184: Snowman Logistics | E184: Buy | F184: 99.00 | G184: - | H184: 120 | I184: 120.00 | J184: Profit of Rs.21/- | K184: 21.00 | L184: 21.21% | M184: Successful | N184: 2014-11-17
A185: 17 | B185: 2014-11-13 | D185: Dharamsi Morarji Chem | E185: Buy | F185: 22.00 | G185: - | H185: 33.55 | I185: 32.00 | J185: Profit of Rs 11.55/- | K185: 11.55 | L185: 52.50% | M185: Successful | N185: 2015-07-03
A186: 18 | B186: 2014-12-03 | D186: Tatachem | E186: Buy | F186: 440.00 | G186: - | H186: 520 | I186: 520.00 | J186: Profit of Rs 80.00/- | K186: 80.00 | L186: 18.18% | M186: Successful | N186: 2015-07-23
A187: 19 | B187: 2014-12-03 | D187: Advanta | E187: Buy | F187: 360.00 | G187: - | H187: 427 | I187: 425.00 | J187: Profit of Rs.67.00/- | K187: 67.00 | L187: 18.61% | M187: Successful | N187: 2015-02-23
A188: 20 | B188: 2015-01-08 | D188: GDL | E188: Buy | F188: 360.00 | G188: - | H188: 455 | I188: 420.00 | J188: Profit of Rs.95.00/- | K188: 95.00 | L188: 26.39% | M188: Successful | N188: 2015-01-20
A189: 21 | B189: 2015-01-08 | D189: NRB Bearing | E189: Buy | F189: 130.00 | H189: 175.5 | I189: 165.00 | J189: Profit of Rs 45.50/- | K189: 45.50 | L189: 35.00% | M189: Successful | N189: 2017-12-19
A190: 22 | B190: 2015-02-05 | D190: GSFC | E190: Accu | F190: 98.00 | H190: 120 | I190: 120.00 | J190: Target Achieved | K190: 22.00 | L190: 22.45% | M190: Successful | N190: 2017-01-18
A191: 23 | B191: 2015-02-05 | D191: Sundrmfast | E191: Accu | F191: 196.00 | H191: 262 | I191: 255.00 | J191: Target Achieved | K191: 66.00 | L191: 33.67% | M191: Successful | N191: 2016-08-17
A192: 24 | B192: 2015-03-04 | D192: GPPL | E192: Accu | F192: 235 | H192: 77.00 | I192: 280-285 | J192: Loss of Rs.158/- | K192: -158.00 | L192: -67.23% | M192: Unsuccessful | N192: 2019-02-26
A193: 25 | B193: 2015-03-04 | D193: ORIENTCEM | E193: Accu | F193: 185.00 | H193: 224 | I193: 220-225 | J193: Target Achieved | K193: 39.00 | L193: 21.08% | M193: Successful | N193: 2016-10-04
A194: 26 | B194: 2015-03-27 | D194: PFS | E194: Accu | F194: 49.5 | H194: 15.85 | I194: 67.00 | J194: Loss of Rs.33.65/- | K194: -33.65 | L194: -68% | M194: Unsuccessful | N194: 2019-06-11
A195: 27 | B195: 2015-03-30 | D195: Walchandnagar Ind Ltd | E195: Accu | F195: 183.50 | H195: 219 | I195: 218.00 | J195: Profit of Rs.35.50/- | K195: 35.50 | L195: 19.35% | M195: Successful | N195: 2015-04-09
A196: 28 | B196: 2015-04-20 | D196: Kalpataru Power Transmission Ltd | E196: Accu | F196: =(227+237)/2 -> 232.00 | H196: 298 | I196: 298.00 | J196: Target Achieved | K196: 66.00 | L196: 28.45% | M196: Successful | N196: 2017-03-29
A197: 29 | B197: 2015-05-04 | D197: Mastek Ltd | E197: Buy | F197: 385.00 | H197: =212.5+331 -> 543.5 | I197: 510.00 | J197: Profit of Rs 158.50/- | K197: 158.50 | L197: 41.17% | M197: Successful | N197: 2015-08-19
A198: 30 | B198: 2015-05-04 | D198: Suprajit Eng | E198: Buy | F198: 115.50 | H198: 146 | I198: 142.00 | J198: Profit of Rs 30.50/- | K198: 30.50 | L198: 26.41% | M198: Successful | N198: 2015-07-17
A199: 31 | B199: 2015-05-27 | D199: TCI | E199: Buy | F199: 237.50 | H199: 279.5 | I199: 278.00 | J199: Target Achieved | K199: 42.00 | L199: 17.68% | M199: Successful | N199: 2015-08-06
A200: 32 | B200: 2015-06-19 | D200: HSIL | E200: Accu | F200: 340.00 | H200: 448 | I200: 448.00 | J200: Target Achieved | K200: 108.00 | L200: 31.76% | M200: Successful | N200: 2017-10-10
A201: 33 | B201: 2015-07-06 | D201: Capital First | E201: Accu | F201: 390.00 | H201: 460 | I201: 460.00 | J201: Target Achieved | K201: =H201-F201 -> 70.00 | L201: =K201/F201 -> 17.95% | M201: Successful | N201: 2016-04-18
A202: 34 | B202: 2015-07-10 | D202: Dolphin OffShore | E202: Accu | F202: 122.5 | H202: 61.00 | I202: 172.00 | J202: Loss of Rs.61.50/- | K202: -61.50 | L202: -50.20% | M202: Unsuccessful | N202: 2018-08-21
A203: 35 | B203: 2015-08-03 | D203: Allcargo logistics | E203: Accu | F203: 297.50 | H203: 350 | I203: 360.00 | J203: Profit of Rs 52.50/- | K203: 52.50 | L203: 17.65% | M203: Successful | N203: 2015-08-16
A204: 36 | B204: 2015-08-03 | D204: Camline Fine | E204: Accu | F204: 115.50 | H204: 149 | I204: 140.00 | J204: Profit of Rs 33.50/- | K204: 33.50 | L204: 29.00% | M204: Successful | N204: 2017-01-05
A205: 37 | B205: 2015-09-04 | D205: TCI | E205: Accu | F205: 226.00 | H205: 292 | I205: 292.00 | J205: Target Achieved | K205: 66.00 | L205: 29.20% | M205: Successful | N205: 2015-10-09
A206: 38 | B206: 2015-09-07 | D206: Kalpataru Power Transmission Ltd | E206: Accu | F206: 232.50 | H206: 312.5 | I206: 310.00 | J206: Target Achieved | K206: 80.00 | L206: 34.41% | M206: Successful | N206: 2017-03-29
A207: 39 | B207: 2015-09-21 | D207: LLOYD ELECTRIC & ENG LTD | E207: Accu | F207: 196.50 | H207: 238 | I207: 238.00 | J207: Target Achieved | K207: 41.50 | L207: 21.12% | M207: Successful | N207: 2015-10-14
A208: 40 | B208: 2015-09-24 | D208: L&T Finance Holding | E208: Accu | F208: 65.00 | H208: 82 | I208: 82.00 | J208: Target Achieved | K208: 17.00 | L208: 26.15% | M208: Successful | N208: 2016-07-27
A209: 41 | B209: 2015-10-14 | D209: KEC International ltd | E209: Accu | F209: 144.00 | H209: 182.5 | I209: 181.00 | J209: Target Achieved | K209: 38.50 | L209: 26.74% | M209: Successful | N209: 2017-03-23
A210: 42 | B210: 2015-10-14 | D210: Gruh Finance | E210: Accu | F210: 264.00 | H210: 311 | I210: 311.00 | J210: Target Achieved | K210: 47.00 | L210: 17.80% | M210: Successful | N210: 2016-08-22
A211: 43 | B211: 2015-11-10 | D211: Pidilitind | E211: Buy | F211: 549.50 | H211: 630 | I211: 630.00 | J211: Target Achieved | K211: 80.50 | L211: 14.65% | M211: Successful | N211: 2016-02-19
A212: 44 | B212: 2015-12-04 | D212: Zensar Technology | E212: Accu | F212: 1027.50 | H212: 1315 | I212: 1250.00 | J212: Target Achieved | K212: 287.50 | L212: 27.98% | M212: Successful | N212: 2018-05-24
A213: 45 | B213: 2015-12-29 | D213: Vinati Organics Ltd | E213: Accu | F213: 465.00 | H213: 540 | I213: 540.00 | J213: Target Achieved | K213: 75.00 | L213: 16.13% | M213: Successful | N213: 2016-06-09
A214: 46 | B214: 2016-01-11 | D214: GSFC | E214: Buy | F214: 81.00 | H214: 110 | I214: 110.00 | J214: Target Achieved | K214: 29.00 | L214: 35.80% | M214: Successful | N214: 2017-01-10
A215: 47 | B215: 2016-01-13 | D215: SSWL | E215: Buy | F215: 417.50 | H215: 547 | I215: 535.00 | J215: Target Achieved | K215: 129.50 | L215: 31.02% | M215: Successful | N215: 2016-07-27
A216: 48 | B216: 2016-02-08 | D216: Persistent System Ltd | E216: Accu | F216: 650.00 | H216: 800 | I216: 800.00 | J216: Target Achieved | K216: 150.00 | L216: 23.08% | M216: Successful | N216: 2018-02-23
A217: 49 | B217: 2016-03-04 | D217: UPL | E217: Accu | F217: 437.50 | H217: 504.5 | I217: 522.00 | J217: Profit of Rs.67/- | K217: 67.00 | L217: 15.31% | M217: Successful | N217: 2016-04-20
A218: 50 | B218: 2016-03-09 | D218: Ashoka Buildcon Ltd | E218: Accu | F218: 189.50 | H218: 218 | I218: 218.00 | J218: Target Achieved | K218: 28.50 | L218: 15.04% | M218: Successful | N218: 2017-10-26
A219: 51 | B219: 2016-04-11 | D219: PTC INDIA FIN SERV LTD | E219: Accu | F219: 36.5 | H219: 15.85 | I219: 60.00 | J219: Loss of Rs.20.65/- | K219: -20.65 | L219: -56.58% | M219: Unsuccessful | N219: 2019-06-11
A220: 52 | B220: 2016-04-12 | D220: CAMLINFINE $ | E220: Accu | F220: 93.00 | H220: 149 | I220: 140.00 | J220: Profit of Rs 56/- | K220: 56.00 | L220: 60.22% | M220: Successful | N220: 2017-01-05
A221: 53 | B221: 2016-04-12 | D221: Greaves Cotton Ltd. | E221: Accu | F221: 130.00 | H221: 150 | I221: 150-155 | J221: Target Achieved | K221: 20.00 | L221: 15.38% | M221: Successful | N221: 2016-07-13
A222: 54 | B222: 2016-04-13 | D222: DHFL | E222: Accu | F222: 196.00 | H222: 299 | I222: 299.00 | J222: Target Achieved | K222: 103.00 | L222: 52.55% | M222: Successful | N222: 2016-09-07
A223: 55 | B223: 2016-04-13 | D223: Magma | E223: Accu | F223: 88.00 | H223: 103 | I223: 103.00 | J223: Target Achieved | K223: 15.00 | L223: 17.05% | M223: Successful | N223: 2016-06-09
A224: 56 | B224: 2016-05-02 | D224: KEC International ltd $ | E224: Accu | F224: 127.50 | H224: 148 | I224: 148-150 | J224: Target Achieved | K224: =H224-F224 -> 20.50 | L224: =K224/F224 -> 16.08% | M224: Successful | N224: 2016-07-13
A225: 57 | B225: 2016-05-03 | D225: Mindtree | E225: Accu | F225: 675.00 | H225: 815 | I225: 790-800 | J225: Target Achieved | K225: =H225-F225 -> 140.00 | L225: =K225/F225 -> 20.74% | M225: Successful | N225: 2018-02-23
A226: 58 | B226: 2016-06-01 | D226: Atulauto | E226: Accu | F226: 500 | H226: 232.50 | I226: 565-570 | J226: Loss of Rs.267.50 /- | K226: =H226-F226 -> -267.50 | L226: =K226/F226 -> -53.50% | M226: Unsuccessful | N226: 2019-09-27
A227: 59 | B227: 2016-06-06 | D227: TRITURBINE | E227: Accu | F227: 110.00 | H227: 126.5 | I227: 125.00 | J227: Profit of Rs.16.50/- | K227: =H227-F227 -> 16.50 | L227: =K227/F227 -> 15.00% | M227: Successful | N227: 2016-07-01
A228: 60 | B228: 2016-06-17 | D228: Pennar Industries Ltd | E228: Accu | F228: 44.00 | H228: 69.5 | I228: 69.50 | J228: Profit of Rs.25.50/- | K228: =H228-F228 -> 25.50 | L228: =K228/F228 -> 57.95% | M228: Successful | N228: 2017-08-30
A229: 61 | B229: 2016-06-28 | D229: EVEREADY | E229: Accu | F229: 262.50 | H229: 340 | I229: 333.00 | J229: Profit of Rs.77.50/- | K229: 77.50 | L229: 29.52% | M229: Successful | N229: 2017-10-09
A230: 62 | B230: 2016-06-28 | D230: FIEMIND | E230: Accu | F230: 840.00 | H230: 1230 | I230: 1230.00 | J230: Target Achieved | K230: 390.00 | L230: 46.43% | M230: Successful | N230: 2016-10-06
A231: 63 | B231: 2016-07-05 | D231: Bajaj Corp Ltd | E231: Accu | F231: 395 | H231: =(468.5+342.5)/2 -> 405.50 | I231: 510.00 | J231: Profit of Rs.10.50/- | K231: =H231-F231 -> 10.50 | L231: =K231/F231 -> 3% | M231: Neutral | N231: 2019-05-21
A232: 64 | B232: 2016-08-02 | D232: GPPL $ | E232: Buy | F232: =169.5-12.8 -> 156.7 | H232: 77.00 | I232: 198-200 | J232: Loss of Rs.79.7/- | K232: -79.70 | L232: -50.86% | M232: Unsuccessful | N232: 2019-02-26
A233: 65 | B233: 2016-08-04 | D233: WONDERLA HOLIDAYS LTD | E233: Accu | F233: 400 | H233: 305.00 | I233: 475.00 | J233: Loss of Rs.95/- | K233: -95.00 | L233: -23.75% | M233: Unsuccessful | N233: 2019-05-21
A234: 66 | B234: 2016-08-11 | D234: CAMLINFINE | E234: Accu | F234: 86.50 | H234: 130 | I234: 130.00 | J234: Profit of Rs.43.50/- | K234: 43.50 | L234: 50.29% | M234: Successful | N234: 2017-12-22
A235: 67 | B235: 2016-08-18 | D235: GRANULES | E235: Accu | F235: 133.5 | H235: 126.50 | I235: 178.00 | J235: Exit | K235: -7.00 | L235: -5.24% | M235: Unsuccessful | N235: 2016-09-02
A236: 68 | B236: 2016-08-31 | D236: VA TECH WABAG | E236: Accu | F236: 560.00 | H236: 725 | I236: 725.00 | J236: Target Achieved | K236: 165.00 | L236: 29.46% | M236: Successful | N236: 2016-03-27
A237: 69 | B237: 2016-09-01 | D237: SKIPPER LIMITED | E237: Accu | F237: 160.50 | H237: 210 | I237: 210.00 | J237: Target Achieved | K237: 49.50 | L237: 30.84% | M237: Successful | N237: 2017-05-16
... 99 more rows
